NUMERO_MANDATO;RIGA_MANDATO;QUIET;IMPORTO_RIGA;IMPORTO_MANDATO;BENEFICIARIO;CIG;DATA_MANDATO;CAPITOLO;ARTICOLO;NUMERO_IMPEGNO;TITOLO;DESCR_TITOLO;LIVELLO_II;DESCR_LIVELLO_II;LIVELLO_III;DESCR_LIVELLO_III;LIVELLO_IV;DESCR_LIVELLO_IV;LIVELLO_V;DESCR_LIVELLO_V;DATA_PAG_EFF
2102;1;9999999;379,27;379,27;OMESSO NOMINATIVO NEL RISPETTO DELLA NORMATIVA SULLA PROTEZIONE DATI PERSONALI; ;03/07/2023;8361;0;570;1;Spese correnti;4;Trasferimenti correnti;2;Trasferimenti correnti a Famiglie;2;Interventi assistenziali;999;Altri assegni e sussidi assistenziali;05/07/2023
2103;1;9999999;300;300;OMESSO NOMINATIVO NEL RISPETTO DELLA NORMATIVA SULLA PROTEZIONE DATI PERSONALI; ;03/07/2023;7462;0;571;1;Spese correnti;4;Trasferimenti correnti;2;Trasferimenti correnti a Famiglie;5;Altri trasferimenti a famiglie;999;Altri trasferimenti a famiglie n.a.c.;05/07/2023
2104;1;9999999;300;300;OMESSO NOMINATIVO NEL RISPETTO DELLA NORMATIVA SULLA PROTEZIONE DATI PERSONALI; ;03/07/2023;7462;0;571;1;Spese correnti;4;Trasferimenti correnti;2;Trasferimenti correnti a Famiglie;5;Altri trasferimenti a famiglie;999;Altri trasferimenti a famiglie n.a.c.;05/07/2023
2105;1;9999999;300;300;OMESSO NOMINATIVO NEL RISPETTO DELLA NORMATIVA SULLA PROTEZIONE DATI PERSONALI; ;03/07/2023;7462;0;571;1;Spese correnti;4;Trasferimenti correnti;2;Trasferimenti correnti a Famiglie;5;Altri trasferimenti a famiglie;999;Altri trasferimenti a famiglie n.a.c.;05/07/2023
2106;1;9999999;300;300;OMESSO NOMINATIVO NEL RISPETTO DELLA NORMATIVA SULLA PROTEZIONE DATI PERSONALI; ;03/07/2023;7462;0;571;1;Spese correnti;4;Trasferimenti correnti;2;Trasferimenti correnti a Famiglie;5;Altri trasferimenti a famiglie;999;Altri trasferimenti a famiglie n.a.c.;05/07/2023
2108;1;9999999;1;1;BANCA MONTE DEI PASCHI DI SIENA S.P.A.; ;03/07/2023;820;0;0;1;Spese correnti;3;Acquisto di beni e servizi;2;Acquisto di servizi;17;Servizi finanziari;2;Oneri per servizio di tesoreria;04/07/2023
2109;1;9999999;353,8;353,8;INIZIATIVE UNINDUSTRIA SRL; ;03/07/2023;8204;4;121;1;Spese correnti;3;Acquisto di beni e servizi;2;Acquisto di servizi;99;Altri servizi;999;Altri servizi diversi n.a.c.;05/07/2023
2110;1;9999999;432,18;432,18;OMESSO NOMINATIVO NEL RISPETTO DELLA NORMATIVA SULLA PROTEZIONE DATI PERSONALI; ;03/07/2023;8361;0;1316;1;Spese correnti;4;Trasferimenti correnti;2;Trasferimenti correnti a Famiglie;2;Interventi assistenziali;999;Altri assegni e sussidi assistenziali;05/07/2023
2111;1;9999999;663,24;663,24;OMESSO NOMINATIVO NEL RISPETTO DELLA NORMATIVA SULLA PROTEZIONE DATI PERSONALI; ;03/07/2023;8361;0;471;1;Spese correnti;4;Trasferimenti correnti;2;Trasferimenti correnti a Famiglie;2;Interventi assistenziali;999;Altri assegni e sussidi assistenziali;05/07/2023
2112;1;9999999;634,4;634,4;EASY-TECH SRLS UNIPERSONALE;ZDD3B8C211;04/07/2023;1185;1;556;1;Spese correnti;3;Acquisto di beni e servizi;2;Acquisto di servizi;9;Manutenzione ordinaria e riparazioni;8;Manutenzione ordinaria e riparazioni di beni immobili;07/07/2023
2113;1;9999999;2.159,40;2.159,40;EASY-TECH SRLS UNIPERSONALE;ZDD3B8C211;04/07/2023;1185;17;557;1;Spese correnti;3;Acquisto di beni e servizi;2;Acquisto di servizi;9;Manutenzione ordinaria e riparazioni;8;Manutenzione ordinaria e riparazioni di beni immobili;07/07/2023
2114;1;9999999;36,6;36,6;EASY-TECH SRLS UNIPERSONALE;ZDD3B8C211;04/07/2023;2760;0;558;1;Spese correnti;3;Acquisto di beni e servizi;2;Acquisto di servizi;9;Manutenzione ordinaria e riparazioni;8;Manutenzione ordinaria e riparazioni di beni immobili;07/07/2023
2115;1;9999999;512,4;512,4;EASY-TECH SRLS UNIPERSONALE;ZDD3B8C211;04/07/2023;2770;1;555;1;Spese correnti;3;Acquisto di beni e servizi;2;Acquisto di servizi;9;Manutenzione ordinaria e riparazioni;8;Manutenzione ordinaria e riparazioni di beni immobili;07/07/2023
2116;1;9999999;455,48;455,48;EASY-TECH SRLS UNIPERSONALE;ZDD3B8C211;04/07/2023;2980;0;554;1;Spese correnti;3;Acquisto di beni e servizi;2;Acquisto di servizi;9;Manutenzione ordinaria e riparazioni;8;Manutenzione ordinaria e riparazioni di beni immobili;07/07/2023
2117;1;9999999;496,12;496,12;EASY-TECH SRLS UNIPERSONALE;ZDD3B8C211;04/07/2023;2980;1;553;1;Spese correnti;3;Acquisto di beni e servizi;2;Acquisto di servizi;9;Manutenzione ordinaria e riparazioni;8;Manutenzione ordinaria e riparazioni di beni immobili;07/07/2023
2118;1;9999999;1.000,00;1.000,00;OMESSO NOMINATIVO NEL RISPETTO DELLA NORMATIVA SULLA PROTEZIONE DATI PERSONALI;Z6A3B3AC62;04/07/2023;6950;0;508;1;Spese correnti;3;Acquisto di beni e servizi;2;Acquisto di servizi;9;Manutenzione ordinaria e riparazioni;11;Manutenzione ordinaria e riparazioni di altri beni materiali;07/07/2023
2119;1;9999999;220;220;A.EMME TERMOIDRAULICA DI MANZATO ALESSANDRO;Z6A3B3AC62;04/07/2023;7440;0;509;1;Spese correnti;3;Acquisto di beni e servizi;2;Acquisto di servizi;9;Manutenzione ordinaria e riparazioni;12;Manutenzione ordinaria e riparazioni di terreni e beni materiali non prodotti;07/07/2023
2120;1;9999999;515,63;515,63;RETE FERROVIARIA ITALIANA SPA C/O FERSERVIZI SPA; ;04/07/2023;5800;0;583;1;Spese correnti;3;Acquisto di beni e servizi;2;Acquisto di servizi;7;Utilizzo di beni di terzi;999;Altre spese sostenute per utilizzo di beni di terzi n.a.c.;07/07/2023
2121;1;9999999;53,28;741,4;RETE FERROVIARIA ITALIANA SPA C/O FERSERVIZI SPA; ;04/07/2023;7022;0;582;1;Spese correnti;3;Acquisto di beni e servizi;2;Acquisto di servizi;7;Utilizzo di beni di terzi;999;Altre spese sostenute per utilizzo di beni di terzi n.a.c.;07/07/2023
2121;2;9999999;53,28;741,4;RETE FERROVIARIA ITALIANA SPA C/O FERSERVIZI SPA; ;04/07/2023;7022;0;582;1;Spese correnti;3;Acquisto di beni e servizi;2;Acquisto di servizi;7;Utilizzo di beni di terzi;999;Altre spese sostenute per utilizzo di beni di terzi n.a.c.;07/07/2023
2121;3;9999999;53,28;741,4;RETE FERROVIARIA ITALIANA SPA C/O FERSERVIZI SPA; ;04/07/2023;7022;0;582;1;Spese correnti;3;Acquisto di beni e servizi;2;Acquisto di servizi;7;Utilizzo di beni di terzi;999;Altre spese sostenute per utilizzo di beni di terzi n.a.c.;07/07/2023
2121;4;9999999;103,29;741,4;RETE FERROVIARIA ITALIANA SPA C/O FERSERVIZI SPA; ;04/07/2023;7022;0;582;1;Spese correnti;3;Acquisto di beni e servizi;2;Acquisto di servizi;7;Utilizzo di beni di terzi;999;Altre spese sostenute per utilizzo di beni di terzi n.a.c.;07/07/2023
2121;5;9999999;103,29;741,4;RETE FERROVIARIA ITALIANA SPA C/O FERSERVIZI SPA; ;04/07/2023;7022;0;582;1;Spese correnti;3;Acquisto di beni e servizi;2;Acquisto di servizi;7;Utilizzo di beni di terzi;999;Altre spese sostenute per utilizzo di beni di terzi n.a.c.;07/07/2023
2121;6;9999999;374,98;741,4;RETE FERROVIARIA ITALIANA SPA C/O FERSERVIZI SPA; ;04/07/2023;7022;0;582;1;Spese correnti;3;Acquisto di beni e servizi;2;Acquisto di servizi;7;Utilizzo di beni di terzi;999;Altre spese sostenute per utilizzo di beni di terzi n.a.c.;07/07/2023
2124;1;9999999;159.145,83;159.145,83;VILLANOVA COSTRUZIONI SRL;9487674444;04/07/2023;13215;0;997;2;Spese in conto capitale;2;Investimenti fissi lordi e acquisto di terreni;1;Beni materiali;9;Beni immobili;3;Fabbricati ad uso scolastico;07/07/2023
2125;1;9999999;10.851,67;10.851,67;VILLANOVA COSTRUZIONI SRL;9487674444;04/07/2023;13215;0;1344;2;Spese in conto capitale;2;Investimenti fissi lordi e acquisto di terreni;1;Beni materiali;9;Beni immobili;3;Fabbricati ad uso scolastico;07/07/2023
2126;1;9999999;919,88;919,88;STUDIO A.S.A. DEI DOTTORI SERENA E TOMASI;9800614A84;04/07/2023;15925;3;1374;2;Spese in conto capitale;2;Investimenti fissi lordi e acquisto di terreni;1;Beni materiali;9;Beni immobili;12;Infrastrutture stradali;07/07/2023
2127;1;9999999;50;50;COMUNE DI PREGANZIOL - ECONOMO PEZZATO ELENA; ;04/07/2023;1147;1;407;1;Spese correnti;3;Acquisto di beni e servizi;1;Acquisto di beni;2;Altri beni di consumo;999;Altri beni e materiali di consumo n.a.c.;07/07/2023
2128;1;9999999;71,2;71,2;COMUNE DI PREGANZIOL - ECONOMO PEZZATO ELENA; ;04/07/2023;2190;1;419;1;Spese correnti;3;Acquisto di beni e servizi;1;Acquisto di beni;2;Altri beni di consumo;999;Altri beni e materiali di consumo n.a.c.;07/07/2023
2130;1;9999999;9,4;46,2;COMUNE DI PREGANZIOL - ECONOMO PEZZATO ELENA; ;04/07/2023;4506;1;381;1;Spese correnti;3;Acquisto di beni e servizi;1;Acquisto di beni;2;Altri beni di consumo;999;Altri beni e materiali di consumo n.a.c.;07/07/2023
2130;2;9999999;10,3;46,2;COMUNE DI PREGANZIOL - ECONOMO PEZZATO ELENA; ;04/07/2023;4506;1;381;1;Spese correnti;3;Acquisto di beni e servizi;1;Acquisto di beni;2;Altri beni di consumo;999;Altri beni e materiali di consumo n.a.c.;07/07/2023
2130;3;9999999;26,5;46,2;COMUNE DI PREGANZIOL - ECONOMO PEZZATO ELENA; ;04/07/2023;4506;1;381;1;Spese correnti;3;Acquisto di beni e servizi;1;Acquisto di beni;2;Altri beni di consumo;999;Altri beni e materiali di consumo n.a.c.;07/07/2023
2131;1;9999999;150;150;GESTORE DEI SERVIZI ENERGETICI - GSE S.P.A.; ;05/07/2023;13218;0;577;2;Spese in conto capitale;2;Investimenti fissi lordi e acquisto di terreni;1;Beni materiali;9;Beni immobili;3;Fabbricati ad uso scolastico;10/07/2023
2132;1;9999999;33;33;GESTORE DEI SERVIZI ENERGETICI - GSE S.P.A.; ;05/07/2023;13218;0;577;2;Spese in conto capitale;2;Investimenti fissi lordi e acquisto di terreni;1;Beni materiali;9;Beni immobili;3;Fabbricati ad uso scolastico;10/07/2023
2133;1;9999999;3.999,99;3.999,99;PULITORI ED AFFINI SPA;87752258BF;05/07/2023;1794;0;656;1;Spese correnti;3;Acquisto di beni e servizi;2;Acquisto di servizi;13;Servizi ausiliari per il funzionamento dell'ente;2;Servizi di pulizia e lavanderia;10/07/2023
2134;1;9999999;826,33;826,33;POSTE ITALIANE SPA;ZCE3502180;05/07/2023;1793;0;288;1;Spese correnti;3;Acquisto di beni e servizi;2;Acquisto di servizi;16;Servizi amministrativi;2;Spese postali;10/07/2023
2136;1;9999999;200;200;EDILVERDE S.R.L.;Z82398837C;06/07/2023;1147;1;149;1;Spese correnti;3;Acquisto di beni e servizi;1;Acquisto di beni;2;Altri beni di consumo;999;Altri beni e materiali di consumo n.a.c.;11/07/2023
2137;1;9999999;22,2;22,2;EDILVERDE S.R.L.;Z82398837C;06/07/2023;1300;0;150;1;Spese correnti;3;Acquisto di beni e servizi;1;Acquisto di beni;2;Altri beni di consumo;999;Altri beni e materiali di consumo n.a.c.;11/07/2023
2138;1;9999999;1.327,66;1.327,66;TRIVENETA S.R.L.;ZA03B59968;06/07/2023;1300;0;523;1;Spese correnti;3;Acquisto di beni e servizi;1;Acquisto di beni;2;Altri beni di consumo;999;Altri beni e materiali di consumo n.a.c.;11/07/2023
2139;1;9999999;2.870,66;2.870,66;GB IMPIANTI DI BETTIOL GIANFRANCO;ZA43B2EE19;06/07/2023;2760;0;513;1;Spese correnti;3;Acquisto di beni e servizi;2;Acquisto di servizi;9;Manutenzione ordinaria e riparazioni;8;Manutenzione ordinaria e riparazioni di beni immobili;11/07/2023
2140;1;9999999;201,3;201,3;GB IMPIANTI DI BETTIOL GIANFRANCO;ZA43B2EE19;06/07/2023;2980;1;512;1;Spese correnti;3;Acquisto di beni e servizi;2;Acquisto di servizi;9;Manutenzione ordinaria e riparazioni;8;Manutenzione ordinaria e riparazioni di beni immobili;11/07/2023
2141;1;9999999;219,6;219,6;GB IMPIANTI DI BETTIOL GIANFRANCO;ZA43B2EE19;06/07/2023;4030;0;580;1;Spese correnti;3;Acquisto di beni e servizi;2;Acquisto di servizi;9;Manutenzione ordinaria e riparazioni;8;Manutenzione ordinaria e riparazioni di beni immobili;11/07/2023
2142;1;9999999;4.119,99;4.119,99;TRIVENETA S.R.L.;ZA03B59968;06/07/2023;5640;0;520;1;Spese correnti;3;Acquisto di beni e servizi;1;Acquisto di beni;2;Altri beni di consumo;999;Altri beni e materiali di consumo n.a.c.;11/07/2023
2143;1;9999999;631,96;631,96;SIMPLY FUN SRLS;ZA73109CB3;06/07/2023;7440;0;354;1;Spese correnti;3;Acquisto di beni e servizi;2;Acquisto di servizi;9;Manutenzione ordinaria e riparazioni;11;Manutenzione ordinaria e riparazioni di altri beni materiali;11/07/2023
2144;1;9999999;294,15;294,15;EUROGROUP S.P.A.;9496917FD1;06/07/2023;13451;0;1372;2;Spese in conto capitale;2;Investimenti fissi lordi e acquisto di terreni;1;Beni materiali;9;Beni immobili;3;Fabbricati ad uso scolastico;11/07/2023
2145;1;9999999;4.896,00;4.896,00;EUROGROUP S.P.A.;ZB7393B87F;06/07/2023;13450;0;1375;2;Spese in conto capitale;2;Investimenti fissi lordi e acquisto di terreni;1;Beni materiali;9;Beni immobili;3;Fabbricati ad uso scolastico;11/07/2023
2146;1;9999999;12.912,34;12.912,34;EUROGROUP S.P.A.;ZB7393B87F;06/07/2023;13450;0;1375;2;Spese in conto capitale;2;Investimenti fissi lordi e acquisto di terreni;1;Beni materiali;9;Beni immobili;3;Fabbricati ad uso scolastico;11/07/2023
2148;1;9999999;400;400;TERMICA SILE S.R.L.;Z733832940;10/07/2023;1185;1;975;1;Spese correnti;3;Acquisto di beni e servizi;2;Acquisto di servizi;9;Manutenzione ordinaria e riparazioni;4;Manutenzione ordinaria e riparazioni di impianti e macchinari;12/07/2023
2149;1;9999999;1.367,00;1.367,00;ARCH. PIANI MASSIMO - PM STUDIO DI PROGETTAZIONE ARCHITETTONICA E ACUSTICA ARCHITETTONICA;ZDA37C6417;10/07/2023;1340;0;865;1;Spese correnti;3;Acquisto di beni e servizi;2;Acquisto di servizi;11;Prestazioni professionali e specialistiche;999;Altre prestazioni professionali e specialistiche n.a.c.;12/07/2023
2150;1;9999999;3.200,50;3.200,50;ARCH. PIANI MASSIMO - PM STUDIO DI PROGETTAZIONE ARCHITETTONICA E ACUSTICA ARCHITETTONICA;ZDA37C6417;10/07/2023;1340;0;1170;1;Spese correnti;3;Acquisto di beni e servizi;2;Acquisto di servizi;11;Prestazioni professionali e specialistiche;999;Altre prestazioni professionali e specialistiche n.a.c.;12/07/2023
2151;1;9999999;100;100;TERMICA SILE S.R.L.;Z733832940;10/07/2023;2760;0;970;1;Spese correnti;3;Acquisto di beni e servizi;2;Acquisto di servizi;9;Manutenzione ordinaria e riparazioni;4;Manutenzione ordinaria e riparazioni di impianti e macchinari;12/07/2023
2152;1;9999999;345,47;345,47;TERMICA SILE S.R.L.;Z733832940;10/07/2023;2760;0;970;1;Spese correnti;3;Acquisto di beni e servizi;2;Acquisto di servizi;9;Manutenzione ordinaria e riparazioni;4;Manutenzione ordinaria e riparazioni di impianti e macchinari;12/07/2023
2153;1;9999999;100;100;TERMICA SILE S.R.L.;Z733832940;10/07/2023;2770;1;971;1;Spese correnti;3;Acquisto di beni e servizi;2;Acquisto di servizi;9;Manutenzione ordinaria e riparazioni;4;Manutenzione ordinaria e riparazioni di impianti e macchinari;12/07/2023
2154;1;9999999;381,35;381,35;TERMICA SILE S.R.L.;Z733832940;10/07/2023;2980;1;972;1;Spese correnti;3;Acquisto di beni e servizi;2;Acquisto di servizi;9;Manutenzione ordinaria e riparazioni;4;Manutenzione ordinaria e riparazioni di impianti e macchinari;12/07/2023
2155;1;9999999;2.093,18;2.093,18;TERMICA SILE S.R.L.;Z733832940;10/07/2023;2980;1;972;1;Spese correnti;3;Acquisto di beni e servizi;2;Acquisto di servizi;9;Manutenzione ordinaria e riparazioni;4;Manutenzione ordinaria e riparazioni di impianti e macchinari;12/07/2023
2156;1;9999999;200;200;TERMICA SILE S.R.L.;Z733832940;10/07/2023;4030;0;973;1;Spese correnti;3;Acquisto di beni e servizi;2;Acquisto di servizi;9;Manutenzione ordinaria e riparazioni;4;Manutenzione ordinaria e riparazioni di impianti e macchinari;12/07/2023
2157;1;9999999;100;100;TERMICA SILE S.R.L.;Z733832940;10/07/2023;4540;0;974;1;Spese correnti;3;Acquisto di beni e servizi;2;Acquisto di servizi;9;Manutenzione ordinaria e riparazioni;4;Manutenzione ordinaria e riparazioni di impianti e macchinari;12/07/2023
2158;1;9999999;200;200;TERMICA SILE S.R.L.;Z733832940;10/07/2023;4660;0;976;1;Spese correnti;3;Acquisto di beni e servizi;2;Acquisto di servizi;9;Manutenzione ordinaria e riparazioni;4;Manutenzione ordinaria e riparazioni di impianti e macchinari;12/07/2023
2159;1;9999999;200;200;TERMICA SILE S.R.L.;Z733832940;10/07/2023;5080;0;978;1;Spese correnti;3;Acquisto di beni e servizi;2;Acquisto di servizi;9;Manutenzione ordinaria e riparazioni;4;Manutenzione ordinaria e riparazioni di impianti e macchinari;12/07/2023
2160;1;9999999;50;50;TERMICA SILE S.R.L.;Z733832940;10/07/2023;6590;1;977;1;Spese correnti;3;Acquisto di beni e servizi;2;Acquisto di servizi;9;Manutenzione ordinaria e riparazioni;4;Manutenzione ordinaria e riparazioni di impianti e macchinari;12/07/2023
2161;1;9999999;100;100;TERMICA SILE S.R.L.;Z733832940;10/07/2023;7550;0;979;1;Spese correnti;3;Acquisto di beni e servizi;2;Acquisto di servizi;9;Manutenzione ordinaria e riparazioni;4;Manutenzione ordinaria e riparazioni di impianti e macchinari;12/07/2023
2163;1;9999999;1,11;1,11;AGENZIA DELLE ENTRATE-RISCOSSIONE; ;10/07/2023;2351;1;249;1;Spese correnti;3;Acquisto di beni e servizi;2;Acquisto di servizi;3;Aggi di riscossione;999;Altri aggi di riscossione n.a.c.;12/07/2023
2164;1;9999999;4,61;4,61;AGENZIA DELLE ENTRATE-RISCOSSIONE; ;10/07/2023;2351;1;228;1;Spese correnti;3;Acquisto di beni e servizi;2;Acquisto di servizi;3;Aggi di riscossione;999;Altri aggi di riscossione n.a.c.;12/07/2023
2165;1;9999999;0,12;0,12;AGENZIA DELLE ENTRATE-RISCOSSIONE; ;10/07/2023;2351;1;249;1;Spese correnti;3;Acquisto di beni e servizi;2;Acquisto di servizi;3;Aggi di riscossione;999;Altri aggi di riscossione n.a.c.;12/07/2023
2166;1;9999999;0,04;0,04;AGENZIA DELLE ENTRATE-RISCOSSIONE; ;10/07/2023;2351;1;249;1;Spese correnti;3;Acquisto di beni e servizi;2;Acquisto di servizi;3;Aggi di riscossione;999;Altri aggi di riscossione n.a.c.;12/07/2023
2167;1;9999999;0,15;0,15;AGENZIA DELLE ENTRATE-RISCOSSIONE; ;10/07/2023;2351;1;1063;1;Spese correnti;3;Acquisto di beni e servizi;2;Acquisto di servizi;3;Aggi di riscossione;999;Altri aggi di riscossione n.a.c.;12/07/2023
2168;1;9999999;0,95;0,95;AGENZIA DELLE ENTRATE-RISCOSSIONE; ;10/07/2023;2351;1;1531;1;Spese correnti;3;Acquisto di beni e servizi;2;Acquisto di servizi;3;Aggi di riscossione;999;Altri aggi di riscossione n.a.c.;12/07/2023
2169;1;9999999;0,11;0,11;AGENZIA DELLE ENTRATE-RISCOSSIONE; ;10/07/2023;2351;1;249;1;Spese correnti;3;Acquisto di beni e servizi;2;Acquisto di servizi;3;Aggi di riscossione;999;Altri aggi di riscossione n.a.c.;12/07/2023
2170;1;9999999;0,75;0,75;AGENZIA DELLE ENTRATE-RISCOSSIONE; ;10/07/2023;2351;1;249;1;Spese correnti;3;Acquisto di beni e servizi;2;Acquisto di servizi;3;Aggi di riscossione;999;Altri aggi di riscossione n.a.c.;12/07/2023
2171;1;9999999;0,64;0,64;AGENZIA DELLE ENTRATE-RISCOSSIONE; ;10/07/2023;2351;1;370;1;Spese correnti;3;Acquisto di beni e servizi;2;Acquisto di servizi;3;Aggi di riscossione;999;Altri aggi di riscossione n.a.c.;12/07/2023
2172;1;9999999;8,18;8,18;AGENZIA DELLE ENTRATE-RISCOSSIONE; ;10/07/2023;1010;0;172;1;Spese correnti;3;Acquisto di beni e servizi;2;Acquisto di servizi;3;Aggi di riscossione;999;Altri aggi di riscossione n.a.c.;12/07/2023
2173;1;9999999;0,35;0,35;AGENZIA DELLE ENTRATE-RISCOSSIONE; ;10/07/2023;1010;0;250;1;Spese correnti;3;Acquisto di beni e servizi;2;Acquisto di servizi;3;Aggi di riscossione;999;Altri aggi di riscossione n.a.c.;12/07/2023
2174;1;9999999;0,35;0,35;AGENZIA DELLE ENTRATE-RISCOSSIONE; ;10/07/2023;1010;0;250;1;Spese correnti;3;Acquisto di beni e servizi;2;Acquisto di servizi;3;Aggi di riscossione;999;Altri aggi di riscossione n.a.c.;12/07/2023
2175;1;9999999;3,36;3,36;BANCA MONTE DEI PASCHI DI SIENA S.P.A.; ;11/07/2023;820;0;0;1;Spese correnti;3;Acquisto di beni e servizi;2;Acquisto di servizi;17;Servizi finanziari;2;Oneri per servizio di tesoreria;14/07/2023
2176;1;9999999;1,26;1,26;BANCA MONTE DEI PASCHI DI SIENA S.P.A.; ;11/07/2023;820;0;0;1;Spese correnti;3;Acquisto di beni e servizi;2;Acquisto di servizi;17;Servizi finanziari;2;Oneri per servizio di tesoreria;13/07/2023
2177;1;9999999;6.175,88;6.175,88;FILIPPETTO NICOLA; ;11/07/2023;170;0;1012;1;Spese correnti;3;Acquisto di beni e servizi;2;Acquisto di servizi;1;Organi e incarichi istituzionali dell'amministrazione;8;Compensi agli organi istituzionali di revisione, di controllo ed altri incarichi istituzionali dell'amministrazione;14/07/2023
2178;1;9999999;4.117,26;4.117,26;CHINELLATO CARLO; ;11/07/2023;170;0;1012;1;Spese correnti;3;Acquisto di beni e servizi;2;Acquisto di servizi;1;Organi e incarichi istituzionali dell'amministrazione;8;Compensi agli organi istituzionali di revisione, di controllo ed altri incarichi istituzionali dell'amministrazione;14/07/2023
2179;1;9999999;179,99;179,99;CED DIGITAL & SERVIZI SRL;Z1239E62C0;11/07/2023;1779;0;261;1;Spese correnti;3;Acquisto di beni e servizi;1;Acquisto di beni;1;Giornali, riviste e pubblicazioni;1;Giornali e riviste;14/07/2023
2180;1;9999999;793;793;SOC. IMM. MURETTO S.N.C. DI CRESCENTE V. & C.; ;11/07/2023;1812;0;327;1;Spese correnti;3;Acquisto di beni e servizi;2;Acquisto di servizi;7;Utilizzo di beni di terzi;1;Locazione di beni immobili;14/07/2023
2182;1;9999999;30;30;BANCOPOSTA; ;13/07/2023;820;0;127;1;Spese correnti;3;Acquisto di beni e servizi;2;Acquisto di servizi;17;Servizi finanziari;2;Oneri per servizio di tesoreria;18/07/2023
2184;1;9999999;472,05;472,05;BI ESSE SPA;Z7B398A8D1;13/07/2023;1147;1;156;1;Spese correnti;3;Acquisto di beni e servizi;1;Acquisto di beni;2;Altri beni di consumo;999;Altri beni e materiali di consumo n.a.c.;18/07/2023
2185;1;9999999;300;300;BI ESSE SPA;Z7B398A8D1;13/07/2023;1147;2;157;1;Spese correnti;3;Acquisto di beni e servizi;1;Acquisto di beni;2;Altri beni di consumo;999;Altri beni e materiali di consumo n.a.c.;18/07/2023
2186;1;9999999;779,92;779,92;BI ESSE SPA;Z7B398A8D1;13/07/2023;5840;0;155;1;Spese correnti;3;Acquisto di beni e servizi;1;Acquisto di beni;2;Altri beni di consumo;999;Altri beni e materiali di consumo n.a.c.;18/07/2023
2187;1;9999999;405,04;405,04;UNA COOPERATIVA SOCIALE;ZE93AAC6AB;13/07/2023;7550;0;373;1;Spese correnti;3;Acquisto di beni e servizi;2;Acquisto di servizi;9;Manutenzione ordinaria e riparazioni;8;Manutenzione ordinaria e riparazioni di beni immobili;18/07/2023
2188;1;9999999;9.212,21;9.212,21;CODESS SOCIALE-COOP. ONLUS;8855832FBD;13/07/2023;7560;1;771;1;Spese correnti;3;Acquisto di beni e servizi;2;Acquisto di servizi;15;Contratti di servizio pubblico;10;Contratti di servizio di asilo nido;18/07/2023
2189;1;9999999;12.558,30;12.558,30;CODESS SOCIALE-COOP. ONLUS;8855832FBD;13/07/2023;7560;1;771;1;Spese correnti;3;Acquisto di beni e servizi;2;Acquisto di servizi;15;Contratti di servizio pubblico;10;Contratti di servizio di asilo nido;18/07/2023
2190;1;9999999;11.608,66;11.608,66;ASSOCIAZIONE COMUNI MARCA TREVIGIANA; ;13/07/2023;4261;2;1019;1;Spese correnti;3;Acquisto di beni e servizi;2;Acquisto di servizi;99;Altri servizi;999;Altri servizi diversi n.a.c.;18/07/2023
2198;1;9999999;15.000,00;15.000,00;OMESSO NOMINATIVO NEL RISPETTO DELLA NORMATIVA SULLA PROTEZIONE DATI PERSONALI; ;14/07/2023;9445;0;1074;1;Spese correnti;4;Trasferimenti correnti;3;Trasferimenti correnti a Imprese;99;Trasferimenti correnti a altre imprese;999;Trasferimenti correnti a altre imprese;18/07/2023
2199;1;9999999;5.383,85;5.383,85;OMESSO NOMINATIVO NEL RISPETTO DELLA NORMATIVA SULLA PROTEZIONE DATI PERSONALI; ;14/07/2023;9445;0;1074;1;Spese correnti;4;Trasferimenti correnti;3;Trasferimenti correnti a Imprese;99;Trasferimenti correnti a altre imprese;999;Trasferimenti correnti a altre imprese;18/07/2023
2200;1;9999999;7.776,33;7.776,33;OMESSO NOMINATIVO NEL RISPETTO DELLA NORMATIVA SULLA PROTEZIONE DATI PERSONALI; ;14/07/2023;9445;0;1074;1;Spese correnti;4;Trasferimenti correnti;3;Trasferimenti correnti a Imprese;99;Trasferimenti correnti a altre imprese;999;Trasferimenti correnti a altre imprese;18/07/2023
2201;1;9999999;-11,83;1.274,91;LEGGERE S.R.L.;Z673A59373;14/07/2023;4506;0;478;1;Spese correnti;3;Acquisto di beni e servizi;1;Acquisto di beni;1;Giornali, riviste e pubblicazioni;2;Pubblicazioni;18/07/2023
2201;2;9999999;36,42;1.274,91;LEGGERE S.R.L.;Z673A59373;14/07/2023;4506;0;478;1;Spese correnti;3;Acquisto di beni e servizi;1;Acquisto di beni;1;Giornali, riviste e pubblicazioni;2;Pubblicazioni;18/07/2023
2201;3;9999999;1.250,32;1.274,91;LEGGERE S.R.L.;Z673A59373;14/07/2023;4506;0;478;1;Spese correnti;3;Acquisto di beni e servizi;1;Acquisto di beni;1;Giornali, riviste e pubblicazioni;2;Pubblicazioni;18/07/2023
2202;1;9999999;2.314,56;2.314,56;POWERMEDIA SRL;ZE63BABA7E;17/07/2023;1780;0;562;1;Spese correnti;3;Acquisto di beni e servizi;1;Acquisto di beni;2;Altri beni di consumo;6;Materiale informatico;19/07/2023
2203;1;9999999;13.736,43;13.736,43;CODESS SOCIALE-COOP. ONLUS;9120417633;17/07/2023;8250;0;578;1;Spese correnti;3;Acquisto di beni e servizi;2;Acquisto di servizi;15;Contratti di servizio pubblico;9;Contratti di servizio di assistenza sociale domiciliare;19/07/2023
2204;1;9999999;63.220,30;63.220,30;COSTRUZIONI MANUTENZIONI CECCHIN S.R.L.;91356977A7;17/07/2023;11302;3;1380;2;Spese in conto capitale;2;Investimenti fissi lordi e acquisto di terreni;1;Beni materiali;9;Beni immobili;19;Fabbricati ad uso strumentale;19/07/2023
2205;1;9999999;112.926,00;112.926,00;COSTRUZIONI MANUTENZIONI CECCHIN S.R.L.;91356977A7;17/07/2023;11302;3;1380;2;Spese in conto capitale;2;Investimenti fissi lordi e acquisto di terreni;1;Beni materiali;9;Beni immobili;19;Fabbricati ad uso strumentale;19/07/2023
2206;1;9999999;950;950;OMESSO NOMINATIVO NEL RISPETTO DELLA NORMATIVA SULLA PROTEZIONE DATI PERSONALI; ;17/07/2023;8361;0;649;1;Spese correnti;4;Trasferimenti correnti;2;Trasferimenti correnti a Famiglie;2;Interventi assistenziali;999;Altri assegni e sussidi assistenziali;19/07/2023
2207;1;9999999;918,68;918,68;OMESSO NOMINATIVO NEL RISPETTO DELLA NORMATIVA SULLA PROTEZIONE DATI PERSONALI; ;17/07/2023;8361;0;648;1;Spese correnti;4;Trasferimenti correnti;2;Trasferimenti correnti a Famiglie;2;Interventi assistenziali;999;Altri assegni e sussidi assistenziali;19/07/2023
2208;1;9999999;300;300;OMESSO NOMINATIVO NEL RISPETTO DELLA NORMATIVA SULLA PROTEZIONE DATI PERSONALI; ;17/07/2023;7462;0;647;1;Spese correnti;4;Trasferimenti correnti;2;Trasferimenti correnti a Famiglie;5;Altri trasferimenti a famiglie;999;Altri trasferimenti a famiglie n.a.c.;19/07/2023
2209;1;9999999;300;300;OMESSO NOMINATIVO NEL RISPETTO DELLA NORMATIVA SULLA PROTEZIONE DATI PERSONALI; ;17/07/2023;7462;0;647;1;Spese correnti;4;Trasferimenti correnti;2;Trasferimenti correnti a Famiglie;5;Altri trasferimenti a famiglie;999;Altri trasferimenti a famiglie n.a.c.;19/07/2023
2210;1;9999999;300;300;OMESSO NOMINATIVO NEL RISPETTO DELLA NORMATIVA SULLA PROTEZIONE DATI PERSONALI; ;17/07/2023;7462;0;647;1;Spese correnti;4;Trasferimenti correnti;2;Trasferimenti correnti a Famiglie;5;Altri trasferimenti a famiglie;999;Altri trasferimenti a famiglie n.a.c.;19/07/2023
2211;1;9999999;580,56;580,56;OLIVETTI S.P.A. CREDIT MANAGEMENT;7660530556;17/07/2023;1813;0;1183;1;Spese correnti;3;Acquisto di beni e servizi;2;Acquisto di servizi;7;Utilizzo di beni di terzi;4;Noleggi di hardware;19/07/2023
2212;1;9999999;70;70;DELFINO & PARTNERS SPA;ZF03BC717F;19/07/2023;557;0;581;1;Spese correnti;3;Acquisto di beni e servizi;2;Acquisto di servizi;4;Acquisto di servizi per formazione e addestramento del personale dell'ente;999;Acquisto di servizi per altre spese per formazione e addestramento n.a.c.;21/07/2023
2213;1;9999999;189,55;189,55;ABACO S.P.A.;9,44E+58;19/07/2023;1010;0;1259;1;Spese correnti;3;Acquisto di beni e servizi;2;Acquisto di servizi;3;Aggi di riscossione;999;Altri aggi di riscossione n.a.c.;21/07/2023
2214;1;9999999;8.957,01;8.957,01;ABACO S.P.A.;9,44E+58;19/07/2023;1010;0;1259;1;Spese correnti;3;Acquisto di beni e servizi;2;Acquisto di servizi;3;Aggi di riscossione;999;Altri aggi di riscossione n.a.c.;21/07/2023
2215;1;9999999;871,31;871,31;AUTOFFICINA B.M.T. CARS & TRUCKS SRL;ZE83A04208;19/07/2023;1340;1;284;1;Spese correnti;3;Acquisto di beni e servizi;2;Acquisto di servizi;9;Manutenzione ordinaria e riparazioni;1;Manutenzione ordinaria e riparazioni di mezzi di trasporto ad uso civile, di sicurezza e ordine pubblico;21/07/2023
2216;1;9999999;1.437,38;1.437,38;M.M.R. SAS DI MARIO BARBERO & C.;Z933BB8D79;19/07/2023;1340;1;575;1;Spese correnti;3;Acquisto di beni e servizi;2;Acquisto di servizi;9;Manutenzione ordinaria e riparazioni;1;Manutenzione ordinaria e riparazioni di mezzi di trasporto ad uso civile, di sicurezza e ordine pubblico;21/07/2023
2217;1;9999999;331,62;331,62;M.M.R. SAS DI MARIO BARBERO & C.;Z933BB8D79;19/07/2023;1342;0;576;1;Spese correnti;3;Acquisto di beni e servizi;2;Acquisto di servizi;11;Prestazioni professionali e specialistiche;999;Altre prestazioni professionali e specialistiche n.a.c.;21/07/2023
2218;1;9999999;1.423,13;1.423,13;STUDIO CAVAGGIONI SCARL;ZCD36F5326;19/07/2023;1798;0;606;1;Spese correnti;3;Acquisto di beni e servizi;2;Acquisto di servizi;19;Servizi informatici e di telecomunicazioni;6;Servizi di sicurezza;21/07/2023
2219;1;9999999;297,5;297,5;AUTOFFICINA B.M.T. CARS & TRUCKS SRL;ZE83A04208;19/07/2023;2422;1;283;1;Spese correnti;3;Acquisto di beni e servizi;2;Acquisto di servizi;9;Manutenzione ordinaria e riparazioni;1;Manutenzione ordinaria e riparazioni di mezzi di trasporto ad uso civile, di sicurezza e ordine pubblico;21/07/2023
2220;1;9999999;132,02;756,58;ENEL ENERGIA SPA;Z5A3AB0AFF;19/07/2023;2790;0;641;1;Spese correnti;3;Acquisto di beni e servizi;2;Acquisto di servizi;5;Utenze e canoni;4;Energia elettrica;21/07/2023
2220;2;9999999;288,27;756,58;ENEL ENERGIA SPA;Z5A3AB0AFF;19/07/2023;2790;0;641;1;Spese correnti;3;Acquisto di beni e servizi;2;Acquisto di servizi;5;Utenze e canoni;4;Energia elettrica;21/07/2023
2220;3;9999999;336,29;756,58;ENEL ENERGIA SPA;Z5A3AB0AFF;19/07/2023;2790;0;641;1;Spese correnti;3;Acquisto di beni e servizi;2;Acquisto di servizi;5;Utenze e canoni;4;Energia elettrica;21/07/2023
2221;1;9999999;106,66;502,47;ENEL ENERGIA SPA;Z5A3AB0AFF;19/07/2023;2973;0;640;1;Spese correnti;3;Acquisto di beni e servizi;2;Acquisto di servizi;5;Utenze e canoni;4;Energia elettrica;21/07/2023
2221;2;9999999;159,36;502,47;ENEL ENERGIA SPA;Z5A3AB0AFF;19/07/2023;2973;0;640;1;Spese correnti;3;Acquisto di beni e servizi;2;Acquisto di servizi;5;Utenze e canoni;4;Energia elettrica;21/07/2023
2221;3;9999999;236,45;502,47;ENEL ENERGIA SPA;Z5A3AB0AFF;19/07/2023;2973;0;640;1;Spese correnti;3;Acquisto di beni e servizi;2;Acquisto di servizi;5;Utenze e canoni;4;Energia elettrica;21/07/2023
2222;1;9999999;88,02;504,39;ENEL ENERGIA SPA;Z5A3AB0AFF;19/07/2023;7552;1;642;1;Spese correnti;3;Acquisto di beni e servizi;2;Acquisto di servizi;5;Utenze e canoni;4;Energia elettrica;21/07/2023
2222;2;9999999;192,18;504,39;ENEL ENERGIA SPA;Z5A3AB0AFF;19/07/2023;7552;1;642;1;Spese correnti;3;Acquisto di beni e servizi;2;Acquisto di servizi;5;Utenze e canoni;4;Energia elettrica;21/07/2023
2222;3;9999999;224,19;504,39;ENEL ENERGIA SPA;Z5A3AB0AFF;19/07/2023;7552;1;642;1;Spese correnti;3;Acquisto di beni e servizi;2;Acquisto di servizi;5;Utenze e canoni;4;Energia elettrica;21/07/2023
2223;1;9999999;491,15;491,15;AUTOFFICINA B.M.T. CARS & TRUCKS SRL;ZE83A04208;19/07/2023;8210;0;285;1;Spese correnti;3;Acquisto di beni e servizi;2;Acquisto di servizi;9;Manutenzione ordinaria e riparazioni;11;Manutenzione ordinaria e riparazioni di altri beni materiali;21/07/2023
2224;1;9999999;540;540;OMESSO NOMINATIVO NEL RISPETTO DELLA NORMATIVA SULLA PROTEZIONE DATI PERSONALI; ;19/07/2023;8361;0;654;1;Spese correnti;4;Trasferimenti correnti;2;Trasferimenti correnti a Famiglie;2;Interventi assistenziali;999;Altri assegni e sussidi assistenziali;21/07/2023
2225;1;9999999;605,62;605,62;OMESSO NOMINATIVO NEL RISPETTO DELLA NORMATIVA SULLA PROTEZIONE DATI PERSONALI; ;19/07/2023;8361;2;673;1;Spese correnti;4;Trasferimenti correnti;4;Trasferimenti correnti a Istituzioni Sociali Private;1;Trasferimenti correnti a Istituzioni Sociali Private;1;Trasferimenti correnti a Istituzioni Sociali Private;21/07/2023
2226;1;9999999;1.206,24;1.206,24;OMESSO NOMINATIVO NEL RISPETTO DELLA NORMATIVA SULLA PROTEZIONE DATI PERSONALI; ;19/07/2023;8361;2;676;1;Spese correnti;4;Trasferimenti correnti;4;Trasferimenti correnti a Istituzioni Sociali Private;1;Trasferimenti correnti a Istituzioni Sociali Private;1;Trasferimenti correnti a Istituzioni Sociali Private;21/07/2023
2227;1;9999999;1.136,09;1.136,09;OMESSO NOMINATIVO NEL RISPETTO DELLA NORMATIVA SULLA PROTEZIONE DATI PERSONALI; ;19/07/2023;8361;2;674;1;Spese correnti;4;Trasferimenti correnti;4;Trasferimenti correnti a Istituzioni Sociali Private;1;Trasferimenti correnti a Istituzioni Sociali Private;1;Trasferimenti correnti a Istituzioni Sociali Private;21/07/2023
2228;1;9999999;713,93;713,93;OMESSO NOMINATIVO NEL RISPETTO DELLA NORMATIVA SULLA PROTEZIONE DATI PERSONALI; ;19/07/2023;8361;2;675;1;Spese correnti;4;Trasferimenti correnti;4;Trasferimenti correnti a Istituzioni Sociali Private;1;Trasferimenti correnti a Istituzioni Sociali Private;1;Trasferimenti correnti a Istituzioni Sociali Private;21/07/2023
2231;1;9999999;11.294,41;11.294,41;AMMINISTRATORI COMUNALI; ;20/07/2023;74;0;141;1;Spese correnti;3;Acquisto di beni e servizi;2;Acquisto di servizi;1;Organi e incarichi istituzionali dell'amministrazione;1;Organi istituzionali dell'amministrazione - Indennità;25/07/2023
2317;1;9999999;150;150;ANCI SA S.R.L.;Z863A929AE;24/07/2023;550;0;340;1;Spese correnti;3;Acquisto di beni e servizi;2;Acquisto di servizi;4;Acquisto di servizi per formazione e addestramento del personale dell'ente;999;Acquisto di servizi per altre spese per formazione e addestramento n.a.c.;26/07/2023
2318;1;9999999;8.183,76;8.183,76;ACCATRE-STP PROFESSIONISTI ENTI PUBBLICI S.r.l.;Z7533D22E6;24/07/2023;670;1;1167;1;Spese correnti;3;Acquisto di beni e servizi;2;Acquisto di servizi;99;Altri servizi;999;Altri servizi diversi n.a.c.;26/07/2023
2319;1;9999999;106,92;106,92;ENEL ENERGIA SPA;9619395FDC;24/07/2023;1346;0;482;1;Spese correnti;3;Acquisto di beni e servizi;2;Acquisto di servizi;5;Utenze e canoni;4;Energia elettrica;26/07/2023
2320;1;9999999;44,74;2.601,71;ENEL ENERGIA SPA;9619395FDC;24/07/2023;1801;0;483;1;Spese correnti;3;Acquisto di beni e servizi;2;Acquisto di servizi;5;Utenze e canoni;4;Energia elettrica;26/07/2023
2320;2;9999999;138,06;2.601,71;ENEL ENERGIA SPA;9619395FDC;24/07/2023;1801;0;483;1;Spese correnti;3;Acquisto di beni e servizi;2;Acquisto di servizi;5;Utenze e canoni;4;Energia elettrica;26/07/2023
2320;3;9999999;269,33;2.601,71;ENEL ENERGIA SPA;9619395FDC;24/07/2023;1801;0;483;1;Spese correnti;3;Acquisto di beni e servizi;2;Acquisto di servizi;5;Utenze e canoni;4;Energia elettrica;26/07/2023
2320;4;9999999;620,74;2.601,71;ENEL ENERGIA SPA;9619395FDC;24/07/2023;1801;0;483;1;Spese correnti;3;Acquisto di beni e servizi;2;Acquisto di servizi;5;Utenze e canoni;4;Energia elettrica;26/07/2023
2320;5;9999999;1.528,84;2.601,71;ENEL ENERGIA SPA;9619395FDC;24/07/2023;1801;0;483;1;Spese correnti;3;Acquisto di beni e servizi;2;Acquisto di servizi;5;Utenze e canoni;4;Energia elettrica;26/07/2023
2321;1;9999999;657,37;657,37;ENEL ENERGIA SPA;9619395FDC;24/07/2023;1801;0;483;1;Spese correnti;3;Acquisto di beni e servizi;2;Acquisto di servizi;5;Utenze e canoni;4;Energia elettrica;26/07/2023
2322;1;9999999;307,07;307,07;VIER  SCARL; ;24/07/2023;2790;0;234;1;Spese correnti;3;Acquisto di beni e servizi;2;Acquisto di servizi;5;Utenze e canoni;4;Energia elettrica;26/07/2023
2323;1;9999999;387,2;387,2;VIER  SCARL; ;24/07/2023;2792;0;235;1;Spese correnti;3;Acquisto di beni e servizi;2;Acquisto di servizi;5;Utenze e canoni;4;Energia elettrica;26/07/2023
2324;1;9999999;408,28;408,28;VIER  SCARL; ;24/07/2023;2792;0;235;1;Spese correnti;3;Acquisto di beni e servizi;2;Acquisto di servizi;5;Utenze e canoni;4;Energia elettrica;26/07/2023
2325;1;9999999;1.938,95;1.938,95;VIER  SCARL; ;24/07/2023;2973;0;131;1;Spese correnti;3;Acquisto di beni e servizi;2;Acquisto di servizi;5;Utenze e canoni;4;Energia elettrica;26/07/2023
2326;1;9999999;1.821,27;1.821,27;VIER  SCARL; ;24/07/2023;2973;0;131;1;Spese correnti;3;Acquisto di beni e servizi;2;Acquisto di servizi;5;Utenze e canoni;4;Energia elettrica;26/07/2023
2327;1;9999999;143,35;329,24;ENEL ENERGIA SPA;9619395FDC;24/07/2023;2973;0;484;1;Spese correnti;3;Acquisto di beni e servizi;2;Acquisto di servizi;5;Utenze e canoni;4;Energia elettrica;26/07/2023
2327;2;9999999;185,89;329,24;ENEL ENERGIA SPA;9619395FDC;24/07/2023;2973;0;484;1;Spese correnti;3;Acquisto di beni e servizi;2;Acquisto di servizi;5;Utenze e canoni;4;Energia elettrica;26/07/2023
2328;1;9999999;1.184,92;1.184,92;VIER  SCARL; ;24/07/2023;4020;0;236;1;Spese correnti;3;Acquisto di beni e servizi;2;Acquisto di servizi;5;Utenze e canoni;4;Energia elettrica;26/07/2023
2329;1;9999999;1.035,12;1.035,12;VIER  SCARL; ;24/07/2023;4020;0;236;1;Spese correnti;3;Acquisto di beni e servizi;2;Acquisto di servizi;5;Utenze e canoni;4;Energia elettrica;26/07/2023
2330;1;9999999;48,36;2.659,81;SERENISSIMA RISTORAZIONE SPA;932853027C;24/07/2023;4260;0;731;1;Spese correnti;3;Acquisto di beni e servizi;2;Acquisto di servizi;15;Contratti di servizio pubblico;6;Contratti di servizio per le mense scolastiche;26/07/2023
2330;2;9999999;53,2;2.659,81;SERENISSIMA RISTORAZIONE SPA;932853027C;24/07/2023;4260;0;731;1;Spese correnti;3;Acquisto di beni e servizi;2;Acquisto di servizi;15;Contratti di servizio pubblico;6;Contratti di servizio per le mense scolastiche;26/07/2023
2330;3;9999999;53,2;2.659,81;SERENISSIMA RISTORAZIONE SPA;932853027C;24/07/2023;4260;0;731;1;Spese correnti;3;Acquisto di beni e servizi;2;Acquisto di servizi;15;Contratti di servizio pubblico;6;Contratti di servizio per le mense scolastiche;26/07/2023
2330;4;9999999;314,34;2.659,81;SERENISSIMA RISTORAZIONE SPA;932853027C;24/07/2023;4260;0;731;1;Spese correnti;3;Acquisto di beni e servizi;2;Acquisto di servizi;15;Contratti di servizio pubblico;6;Contratti di servizio per le mense scolastiche;26/07/2023
2330;5;9999999;643,19;2.659,81;SERENISSIMA RISTORAZIONE SPA;932853027C;24/07/2023;4260;0;731;1;Spese correnti;3;Acquisto di beni e servizi;2;Acquisto di servizi;15;Contratti di servizio pubblico;6;Contratti di servizio per le mense scolastiche;26/07/2023
2330;6;9999999;1.547,52;2.659,81;SERENISSIMA RISTORAZIONE SPA;932853027C;24/07/2023;4260;0;731;1;Spese correnti;3;Acquisto di beni e servizi;2;Acquisto di servizi;15;Contratti di servizio pubblico;6;Contratti di servizio per le mense scolastiche;26/07/2023
2331;1;9999999;129,57;6.306,45;SERENISSIMA RISTORAZIONE SPA;932853027C;24/07/2023;4261;0;732;1;Spese correnti;3;Acquisto di beni e servizi;2;Acquisto di servizi;15;Contratti di servizio pubblico;6;Contratti di servizio per le mense scolastiche;26/07/2023
2331;2;9999999;140,44;6.306,45;SERENISSIMA RISTORAZIONE SPA;932853027C;24/07/2023;4261;0;732;1;Spese correnti;3;Acquisto di beni e servizi;2;Acquisto di servizi;15;Contratti di servizio pubblico;6;Contratti di servizio per le mense scolastiche;26/07/2023
2331;3;9999999;204,81;6.306,45;SERENISSIMA RISTORAZIONE SPA;932853027C;24/07/2023;4261;0;732;1;Spese correnti;3;Acquisto di beni e servizi;2;Acquisto di servizi;15;Contratti di servizio pubblico;6;Contratti di servizio per le mense scolastiche;26/07/2023
2331;4;9999999;877,03;6.306,45;SERENISSIMA RISTORAZIONE SPA;932853027C;24/07/2023;4261;0;732;1;Spese correnti;3;Acquisto di beni e servizi;2;Acquisto di servizi;15;Contratti di servizio pubblico;6;Contratti di servizio per le mense scolastiche;26/07/2023
2331;5;9999999;971,38;6.306,45;SERENISSIMA RISTORAZIONE SPA;932853027C;24/07/2023;4261;0;732;1;Spese correnti;3;Acquisto di beni e servizi;2;Acquisto di servizi;15;Contratti di servizio pubblico;6;Contratti di servizio per le mense scolastiche;26/07/2023
2331;6;9999999;1.750,32;6.306,45;SERENISSIMA RISTORAZIONE SPA;932853027C;24/07/2023;4261;0;732;1;Spese correnti;3;Acquisto di beni e servizi;2;Acquisto di servizi;15;Contratti di servizio pubblico;6;Contratti di servizio per le mense scolastiche;26/07/2023
2331;7;9999999;2.232,90;6.306,45;SERENISSIMA RISTORAZIONE SPA;932853027C;24/07/2023;4261;0;732;1;Spese correnti;3;Acquisto di beni e servizi;2;Acquisto di servizi;15;Contratti di servizio pubblico;6;Contratti di servizio per le mense scolastiche;26/07/2023
2332;1;9999999;1.044,91;1.044,91;ENEL ENERGIA SPA;9619395FDC;24/07/2023;4527;0;485;1;Spese correnti;3;Acquisto di beni e servizi;2;Acquisto di servizi;5;Utenze e canoni;4;Energia elettrica;26/07/2023
2333;1;9999999;55,05;55,05;ENEL ENERGIA SPA;9619395FDC;24/07/2023;4686;1;486;1;Spese correnti;3;Acquisto di beni e servizi;2;Acquisto di servizi;5;Utenze e canoni;4;Energia elettrica;26/07/2023
2334;1;9999999;877,79;877,79;VIER  SCARL; ;24/07/2023;5050;0;132;1;Spese correnti;3;Acquisto di beni e servizi;2;Acquisto di servizi;5;Utenze e canoni;4;Energia elettrica;26/07/2023
2335;1;9999999;1.346,93;1.346,93;VIER  SCARL; ;24/07/2023;5050;0;132;1;Spese correnti;3;Acquisto di beni e servizi;2;Acquisto di servizi;5;Utenze e canoni;4;Energia elettrica;26/07/2023
2336;1;9999999;-20,37;1.996,95;ENEL ENERGIA SPA;9619395FDC;24/07/2023;5930;0;481;1;Spese correnti;3;Acquisto di beni e servizi;2;Acquisto di servizi;5;Utenze e canoni;4;Energia elettrica;26/07/2023
2336;2;9999999;-12,3;1.996,95;ENEL ENERGIA SPA;9619395FDC;24/07/2023;5930;0;481;1;Spese correnti;3;Acquisto di beni e servizi;2;Acquisto di servizi;5;Utenze e canoni;4;Energia elettrica;26/07/2023
2336;3;9999999;2,61;1.996,95;ENEL ENERGIA SPA;9619395FDC;24/07/2023;5930;0;481;1;Spese correnti;3;Acquisto di beni e servizi;2;Acquisto di servizi;5;Utenze e canoni;4;Energia elettrica;26/07/2023
2336;4;9999999;4,09;1.996,95;ENEL ENERGIA SPA;9619395FDC;24/07/2023;5930;0;481;1;Spese correnti;3;Acquisto di beni e servizi;2;Acquisto di servizi;5;Utenze e canoni;4;Energia elettrica;26/07/2023
2336;5;9999999;6,21;1.996,95;ENEL ENERGIA SPA;9619395FDC;24/07/2023;5930;0;481;1;Spese correnti;3;Acquisto di beni e servizi;2;Acquisto di servizi;5;Utenze e canoni;4;Energia elettrica;26/07/2023
2336;6;9999999;6,7;1.996,95;ENEL ENERGIA SPA;9619395FDC;24/07/2023;5930;0;481;1;Spese correnti;3;Acquisto di beni e servizi;2;Acquisto di servizi;5;Utenze e canoni;4;Energia elettrica;26/07/2023
2336;7;9999999;8,69;1.996,95;ENEL ENERGIA SPA;9619395FDC;24/07/2023;5930;0;481;1;Spese correnti;3;Acquisto di beni e servizi;2;Acquisto di servizi;5;Utenze e canoni;4;Energia elettrica;26/07/2023
2336;8;9999999;8,69;1.996,95;ENEL ENERGIA SPA;9619395FDC;24/07/2023;5930;0;481;1;Spese correnti;3;Acquisto di beni e servizi;2;Acquisto di servizi;5;Utenze e canoni;4;Energia elettrica;26/07/2023
2336;9;9999999;12,3;1.996,95;ENEL ENERGIA SPA;9619395FDC;24/07/2023;5930;0;481;1;Spese correnti;3;Acquisto di beni e servizi;2;Acquisto di servizi;5;Utenze e canoni;4;Energia elettrica;26/07/2023
2336;10;9999999;15,18;1.996,95;ENEL ENERGIA SPA;9619395FDC;24/07/2023;5930;0;481;1;Spese correnti;3;Acquisto di beni e servizi;2;Acquisto di servizi;5;Utenze e canoni;4;Energia elettrica;26/07/2023
2336;11;9999999;16,65;1.996,95;ENEL ENERGIA SPA;9619395FDC;24/07/2023;5930;0;481;1;Spese correnti;3;Acquisto di beni e servizi;2;Acquisto di servizi;5;Utenze e canoni;4;Energia elettrica;26/07/2023
2336;12;9999999;18,76;1.996,95;ENEL ENERGIA SPA;9619395FDC;24/07/2023;5930;0;481;1;Spese correnti;3;Acquisto di beni e servizi;2;Acquisto di servizi;5;Utenze e canoni;4;Energia elettrica;26/07/2023
2336;13;9999999;22,11;1.996,95;ENEL ENERGIA SPA;9619395FDC;24/07/2023;5930;0;481;1;Spese correnti;3;Acquisto di beni e servizi;2;Acquisto di servizi;5;Utenze e canoni;4;Energia elettrica;26/07/2023
2336;14;9999999;24,12;1.996,95;ENEL ENERGIA SPA;9619395FDC;24/07/2023;5930;0;481;1;Spese correnti;3;Acquisto di beni e servizi;2;Acquisto di servizi;5;Utenze e canoni;4;Energia elettrica;26/07/2023
2336;15;9999999;25,86;1.996,95;ENEL ENERGIA SPA;9619395FDC;24/07/2023;5930;0;481;1;Spese correnti;3;Acquisto di beni e servizi;2;Acquisto di servizi;5;Utenze e canoni;4;Energia elettrica;26/07/2023
2336;16;9999999;26,74;1.996,95;ENEL ENERGIA SPA;9619395FDC;24/07/2023;5930;0;481;1;Spese correnti;3;Acquisto di beni e servizi;2;Acquisto di servizi;5;Utenze e canoni;4;Energia elettrica;26/07/2023
2336;17;9999999;27,74;1.996,95;ENEL ENERGIA SPA;9619395FDC;24/07/2023;5930;0;481;1;Spese correnti;3;Acquisto di beni e servizi;2;Acquisto di servizi;5;Utenze e canoni;4;Energia elettrica;26/07/2023
2336;18;9999999;27,97;1.996,95;ENEL ENERGIA SPA;9619395FDC;24/07/2023;5930;0;481;1;Spese correnti;3;Acquisto di beni e servizi;2;Acquisto di servizi;5;Utenze e canoni;4;Energia elettrica;26/07/2023
2336;19;9999999;28,95;1.996,95;ENEL ENERGIA SPA;9619395FDC;24/07/2023;5930;0;481;1;Spese correnti;3;Acquisto di beni e servizi;2;Acquisto di servizi;5;Utenze e canoni;4;Energia elettrica;26/07/2023
2336;20;9999999;34,67;1.996,95;ENEL ENERGIA SPA;9619395FDC;24/07/2023;5930;0;481;1;Spese correnti;3;Acquisto di beni e servizi;2;Acquisto di servizi;5;Utenze e canoni;4;Energia elettrica;26/07/2023
2336;21;9999999;34,92;1.996,95;ENEL ENERGIA SPA;9619395FDC;24/07/2023;5930;0;481;1;Spese correnti;3;Acquisto di beni e servizi;2;Acquisto di servizi;5;Utenze e canoni;4;Energia elettrica;26/07/2023
2336;22;9999999;36,26;1.996,95;ENEL ENERGIA SPA;9619395FDC;24/07/2023;5930;0;481;1;Spese correnti;3;Acquisto di beni e servizi;2;Acquisto di servizi;5;Utenze e canoni;4;Energia elettrica;26/07/2023
2336;23;9999999;39,28;1.996,95;ENEL ENERGIA SPA;9619395FDC;24/07/2023;5930;0;481;1;Spese correnti;3;Acquisto di beni e servizi;2;Acquisto di servizi;5;Utenze e canoni;4;Energia elettrica;26/07/2023
2336;24;9999999;39,53;1.996,95;ENEL ENERGIA SPA;9619395FDC;24/07/2023;5930;0;481;1;Spese correnti;3;Acquisto di beni e servizi;2;Acquisto di servizi;5;Utenze e canoni;4;Energia elettrica;26/07/2023
2336;25;9999999;49,09;1.996,95;ENEL ENERGIA SPA;9619395FDC;24/07/2023;5930;0;481;1;Spese correnti;3;Acquisto di beni e servizi;2;Acquisto di servizi;5;Utenze e canoni;4;Energia elettrica;26/07/2023
2336;26;9999999;52,42;1.996,95;ENEL ENERGIA SPA;9619395FDC;24/07/2023;5930;0;481;1;Spese correnti;3;Acquisto di beni e servizi;2;Acquisto di servizi;5;Utenze e canoni;4;Energia elettrica;26/07/2023
2336;27;9999999;58,78;1.996,95;ENEL ENERGIA SPA;9619395FDC;24/07/2023;5930;0;481;1;Spese correnti;3;Acquisto di beni e servizi;2;Acquisto di servizi;5;Utenze e canoni;4;Energia elettrica;26/07/2023
2336;28;9999999;64,49;1.996,95;ENEL ENERGIA SPA;9619395FDC;24/07/2023;5930;0;481;1;Spese correnti;3;Acquisto di beni e servizi;2;Acquisto di servizi;5;Utenze e canoni;4;Energia elettrica;26/07/2023
2336;29;9999999;66,47;1.996,95;ENEL ENERGIA SPA;9619395FDC;24/07/2023;5930;0;481;1;Spese correnti;3;Acquisto di beni e servizi;2;Acquisto di servizi;5;Utenze e canoni;4;Energia elettrica;26/07/2023
2336;30;9999999;71,09;1.996,95;ENEL ENERGIA SPA;9619395FDC;24/07/2023;5930;0;481;1;Spese correnti;3;Acquisto di beni e servizi;2;Acquisto di servizi;5;Utenze e canoni;4;Energia elettrica;26/07/2023
2336;31;9999999;91,11;1.996,95;ENEL ENERGIA SPA;9619395FDC;24/07/2023;5930;0;481;1;Spese correnti;3;Acquisto di beni e servizi;2;Acquisto di servizi;5;Utenze e canoni;4;Energia elettrica;26/07/2023
2336;32;9999999;94,2;1.996,95;ENEL ENERGIA SPA;9619395FDC;24/07/2023;5930;0;481;1;Spese correnti;3;Acquisto di beni e servizi;2;Acquisto di servizi;5;Utenze e canoni;4;Energia elettrica;26/07/2023
2336;33;9999999;101,93;1.996,95;ENEL ENERGIA SPA;9619395FDC;24/07/2023;5930;0;481;1;Spese correnti;3;Acquisto di beni e servizi;2;Acquisto di servizi;5;Utenze e canoni;4;Energia elettrica;26/07/2023
2336;34;9999999;104,16;1.996,95;ENEL ENERGIA SPA;9619395FDC;24/07/2023;5930;0;481;1;Spese correnti;3;Acquisto di beni e servizi;2;Acquisto di servizi;5;Utenze e canoni;4;Energia elettrica;26/07/2023
2336;35;9999999;113,46;1.996,95;ENEL ENERGIA SPA;9619395FDC;24/07/2023;5930;0;481;1;Spese correnti;3;Acquisto di beni e servizi;2;Acquisto di servizi;5;Utenze e canoni;4;Energia elettrica;26/07/2023
2336;36;9999999;116,11;1.996,95;ENEL ENERGIA SPA;9619395FDC;24/07/2023;5930;0;481;1;Spese correnti;3;Acquisto di beni e servizi;2;Acquisto di servizi;5;Utenze e canoni;4;Energia elettrica;26/07/2023
2336;37;9999999;129,37;1.996,95;ENEL ENERGIA SPA;9619395FDC;24/07/2023;5930;0;481;1;Spese correnti;3;Acquisto di beni e servizi;2;Acquisto di servizi;5;Utenze e canoni;4;Energia elettrica;26/07/2023
2336;38;9999999;142,18;1.996,95;ENEL ENERGIA SPA;9619395FDC;24/07/2023;5930;0;481;1;Spese correnti;3;Acquisto di beni e servizi;2;Acquisto di servizi;5;Utenze e canoni;4;Energia elettrica;26/07/2023
2336;39;9999999;150,89;1.996,95;ENEL ENERGIA SPA;9619395FDC;24/07/2023;5930;0;481;1;Spese correnti;3;Acquisto di beni e servizi;2;Acquisto di servizi;5;Utenze e canoni;4;Energia elettrica;26/07/2023
2336;40;9999999;155,84;1.996,95;ENEL ENERGIA SPA;9619395FDC;24/07/2023;5930;0;481;1;Spese correnti;3;Acquisto di beni e servizi;2;Acquisto di servizi;5;Utenze e canoni;4;Energia elettrica;26/07/2023
2337;1;9999999;189,8;4.422,45;ENEL ENERGIA SPA;9619395FDC;24/07/2023;5930;0;481;1;Spese correnti;3;Acquisto di beni e servizi;2;Acquisto di servizi;5;Utenze e canoni;4;Energia elettrica;26/07/2023
2337;2;9999999;211,8;4.422,45;ENEL ENERGIA SPA;9619395FDC;24/07/2023;5930;0;481;1;Spese correnti;3;Acquisto di beni e servizi;2;Acquisto di servizi;5;Utenze e canoni;4;Energia elettrica;26/07/2023
2337;3;9999999;263,86;4.422,45;ENEL ENERGIA SPA;9619395FDC;24/07/2023;5930;0;481;1;Spese correnti;3;Acquisto di beni e servizi;2;Acquisto di servizi;5;Utenze e canoni;4;Energia elettrica;26/07/2023
2337;4;9999999;311,1;4.422,45;ENEL ENERGIA SPA;9619395FDC;24/07/2023;5930;0;481;1;Spese correnti;3;Acquisto di beni e servizi;2;Acquisto di servizi;5;Utenze e canoni;4;Energia elettrica;26/07/2023
2337;5;9999999;331,97;4.422,45;ENEL ENERGIA SPA;9619395FDC;24/07/2023;5930;0;481;1;Spese correnti;3;Acquisto di beni e servizi;2;Acquisto di servizi;5;Utenze e canoni;4;Energia elettrica;26/07/2023
2337;6;9999999;338,57;4.422,45;ENEL ENERGIA SPA;9619395FDC;24/07/2023;5930;0;481;1;Spese correnti;3;Acquisto di beni e servizi;2;Acquisto di servizi;5;Utenze e canoni;4;Energia elettrica;26/07/2023
2337;7;9999999;379,22;4.422,45;ENEL ENERGIA SPA;9619395FDC;24/07/2023;5930;0;481;1;Spese correnti;3;Acquisto di beni e servizi;2;Acquisto di servizi;5;Utenze e canoni;4;Energia elettrica;26/07/2023
2337;8;9999999;400,21;4.422,45;ENEL ENERGIA SPA;9619395FDC;24/07/2023;5930;0;481;1;Spese correnti;3;Acquisto di beni e servizi;2;Acquisto di servizi;5;Utenze e canoni;4;Energia elettrica;26/07/2023
2337;9;9999999;464,14;4.422,45;ENEL ENERGIA SPA;9619395FDC;24/07/2023;5930;0;481;1;Spese correnti;3;Acquisto di beni e servizi;2;Acquisto di servizi;5;Utenze e canoni;4;Energia elettrica;26/07/2023
2337;10;9999999;474,79;4.422,45;ENEL ENERGIA SPA;9619395FDC;24/07/2023;5930;0;481;1;Spese correnti;3;Acquisto di beni e servizi;2;Acquisto di servizi;5;Utenze e canoni;4;Energia elettrica;26/07/2023
2337;11;9999999;514,68;4.422,45;ENEL ENERGIA SPA;9619395FDC;24/07/2023;5930;0;481;1;Spese correnti;3;Acquisto di beni e servizi;2;Acquisto di servizi;5;Utenze e canoni;4;Energia elettrica;26/07/2023
2337;12;9999999;542,31;4.422,45;ENEL ENERGIA SPA;9619395FDC;24/07/2023;5930;0;481;1;Spese correnti;3;Acquisto di beni e servizi;2;Acquisto di servizi;5;Utenze e canoni;4;Energia elettrica;26/07/2023
2338;1;9999999;3,82;2.322,71;ENEL ENERGIA SPA;9619395FDC;24/07/2023;5930;0;481;1;Spese correnti;3;Acquisto di beni e servizi;2;Acquisto di servizi;5;Utenze e canoni;4;Energia elettrica;26/07/2023
2338;2;9999999;4,72;2.322,71;ENEL ENERGIA SPA;9619395FDC;24/07/2023;5930;0;481;1;Spese correnti;3;Acquisto di beni e servizi;2;Acquisto di servizi;5;Utenze e canoni;4;Energia elettrica;26/07/2023
2338;3;9999999;5,2;2.322,71;ENEL ENERGIA SPA;9619395FDC;24/07/2023;5930;0;481;1;Spese correnti;3;Acquisto di beni e servizi;2;Acquisto di servizi;5;Utenze e canoni;4;Energia elettrica;26/07/2023
2338;4;9999999;5,21;2.322,71;ENEL ENERGIA SPA;9619395FDC;24/07/2023;5930;0;481;1;Spese correnti;3;Acquisto di beni e servizi;2;Acquisto di servizi;5;Utenze e canoni;4;Energia elettrica;26/07/2023
2338;5;9999999;14,41;2.322,71;ENEL ENERGIA SPA;9619395FDC;24/07/2023;5930;0;481;1;Spese correnti;3;Acquisto di beni e servizi;2;Acquisto di servizi;5;Utenze e canoni;4;Energia elettrica;26/07/2023
2338;6;9999999;17,51;2.322,71;ENEL ENERGIA SPA;9619395FDC;24/07/2023;5930;0;481;1;Spese correnti;3;Acquisto di beni e servizi;2;Acquisto di servizi;5;Utenze e canoni;4;Energia elettrica;26/07/2023
2338;7;9999999;28,22;2.322,71;ENEL ENERGIA SPA;9619395FDC;24/07/2023;5930;0;481;1;Spese correnti;3;Acquisto di beni e servizi;2;Acquisto di servizi;5;Utenze e canoni;4;Energia elettrica;26/07/2023
2338;8;9999999;31,57;2.322,71;ENEL ENERGIA SPA;9619395FDC;24/07/2023;5930;0;481;1;Spese correnti;3;Acquisto di beni e servizi;2;Acquisto di servizi;5;Utenze e canoni;4;Energia elettrica;26/07/2023
2338;9;9999999;34,43;2.322,71;ENEL ENERGIA SPA;9619395FDC;24/07/2023;5930;0;481;1;Spese correnti;3;Acquisto di beni e servizi;2;Acquisto di servizi;5;Utenze e canoni;4;Energia elettrica;26/07/2023
2338;10;9999999;37,27;2.322,71;ENEL ENERGIA SPA;9619395FDC;24/07/2023;5930;0;481;1;Spese correnti;3;Acquisto di beni e servizi;2;Acquisto di servizi;5;Utenze e canoni;4;Energia elettrica;26/07/2023
2338;11;9999999;56,69;2.322,71;ENEL ENERGIA SPA;9619395FDC;24/07/2023;5930;0;481;1;Spese correnti;3;Acquisto di beni e servizi;2;Acquisto di servizi;5;Utenze e canoni;4;Energia elettrica;26/07/2023
2338;12;9999999;59,32;2.322,71;ENEL ENERGIA SPA;9619395FDC;24/07/2023;5930;0;481;1;Spese correnti;3;Acquisto di beni e servizi;2;Acquisto di servizi;5;Utenze e canoni;4;Energia elettrica;26/07/2023
2338;13;9999999;61,63;2.322,71;ENEL ENERGIA SPA;9619395FDC;24/07/2023;5930;0;481;1;Spese correnti;3;Acquisto di beni e servizi;2;Acquisto di servizi;5;Utenze e canoni;4;Energia elettrica;26/07/2023
2338;14;9999999;66;2.322,71;ENEL ENERGIA SPA;9619395FDC;24/07/2023;5930;0;481;1;Spese correnti;3;Acquisto di beni e servizi;2;Acquisto di servizi;5;Utenze e canoni;4;Energia elettrica;26/07/2023
2338;15;9999999;66,98;2.322,71;ENEL ENERGIA SPA;9619395FDC;24/07/2023;5930;0;481;1;Spese correnti;3;Acquisto di beni e servizi;2;Acquisto di servizi;5;Utenze e canoni;4;Energia elettrica;26/07/2023
2338;16;9999999;70,69;2.322,71;ENEL ENERGIA SPA;9619395FDC;24/07/2023;5930;0;481;1;Spese correnti;3;Acquisto di beni e servizi;2;Acquisto di servizi;5;Utenze e canoni;4;Energia elettrica;26/07/2023
2338;17;9999999;109,62;2.322,71;ENEL ENERGIA SPA;9619395FDC;24/07/2023;5930;0;481;1;Spese correnti;3;Acquisto di beni e servizi;2;Acquisto di servizi;5;Utenze e canoni;4;Energia elettrica;26/07/2023
2338;18;9999999;111,24;2.322,71;ENEL ENERGIA SPA;9619395FDC;24/07/2023;5930;0;481;1;Spese correnti;3;Acquisto di beni e servizi;2;Acquisto di servizi;5;Utenze e canoni;4;Energia elettrica;26/07/2023
2338;19;9999999;131,98;2.322,71;ENEL ENERGIA SPA;9619395FDC;24/07/2023;5930;0;481;1;Spese correnti;3;Acquisto di beni e servizi;2;Acquisto di servizi;5;Utenze e canoni;4;Energia elettrica;26/07/2023
2338;20;9999999;139,7;2.322,71;ENEL ENERGIA SPA;9619395FDC;24/07/2023;5930;0;481;1;Spese correnti;3;Acquisto di beni e servizi;2;Acquisto di servizi;5;Utenze e canoni;4;Energia elettrica;26/07/2023
2338;21;9999999;150,89;2.322,71;ENEL ENERGIA SPA;9619395FDC;24/07/2023;5930;0;481;1;Spese correnti;3;Acquisto di beni e servizi;2;Acquisto di servizi;5;Utenze e canoni;4;Energia elettrica;26/07/2023
2338;22;9999999;320,77;2.322,71;ENEL ENERGIA SPA;9619395FDC;24/07/2023;5930;0;481;1;Spese correnti;3;Acquisto di beni e servizi;2;Acquisto di servizi;5;Utenze e canoni;4;Energia elettrica;26/07/2023
2338;23;9999999;386,92;2.322,71;ENEL ENERGIA SPA;9619395FDC;24/07/2023;5930;0;481;1;Spese correnti;3;Acquisto di beni e servizi;2;Acquisto di servizi;5;Utenze e canoni;4;Energia elettrica;26/07/2023
2338;24;9999999;407,92;2.322,71;ENEL ENERGIA SPA;9619395FDC;24/07/2023;5930;0;481;1;Spese correnti;3;Acquisto di beni e servizi;2;Acquisto di servizi;5;Utenze e canoni;4;Energia elettrica;26/07/2023
2339;1;9999999;-0,81;527,43;ENEL ENERGIA SPA;9619395FDC;24/07/2023;5931;0;488;1;Spese correnti;3;Acquisto di beni e servizi;2;Acquisto di servizi;5;Utenze e canoni;4;Energia elettrica;26/07/2023
2339;2;9999999;-0,29;527,43;ENEL ENERGIA SPA;9619395FDC;24/07/2023;5931;0;488;1;Spese correnti;3;Acquisto di beni e servizi;2;Acquisto di servizi;5;Utenze e canoni;4;Energia elettrica;26/07/2023
2339;3;9999999;1,09;527,43;ENEL ENERGIA SPA;9619395FDC;24/07/2023;5931;0;488;1;Spese correnti;3;Acquisto di beni e servizi;2;Acquisto di servizi;5;Utenze e canoni;4;Energia elettrica;26/07/2023
2339;4;9999999;11,64;527,43;ENEL ENERGIA SPA;9619395FDC;24/07/2023;5931;0;488;1;Spese correnti;3;Acquisto di beni e servizi;2;Acquisto di servizi;5;Utenze e canoni;4;Energia elettrica;26/07/2023
2339;5;9999999;81,78;527,43;ENEL ENERGIA SPA;9619395FDC;24/07/2023;5931;0;488;1;Spese correnti;3;Acquisto di beni e servizi;2;Acquisto di servizi;5;Utenze e canoni;4;Energia elettrica;26/07/2023
2339;6;9999999;90,8;527,43;ENEL ENERGIA SPA;9619395FDC;24/07/2023;5931;0;488;1;Spese correnti;3;Acquisto di beni e servizi;2;Acquisto di servizi;5;Utenze e canoni;4;Energia elettrica;26/07/2023
2339;7;9999999;100,21;527,43;ENEL ENERGIA SPA;9619395FDC;24/07/2023;5931;0;488;1;Spese correnti;3;Acquisto di beni e servizi;2;Acquisto di servizi;5;Utenze e canoni;4;Energia elettrica;26/07/2023
2339;8;9999999;116,96;527,43;ENEL ENERGIA SPA;9619395FDC;24/07/2023;5931;0;488;1;Spese correnti;3;Acquisto di beni e servizi;2;Acquisto di servizi;5;Utenze e canoni;4;Energia elettrica;26/07/2023
2339;9;9999999;126,05;527,43;ENEL ENERGIA SPA;9619395FDC;24/07/2023;5931;0;488;1;Spese correnti;3;Acquisto di beni e servizi;2;Acquisto di servizi;5;Utenze e canoni;4;Energia elettrica;26/07/2023
2340;1;9999999;17,93;139,38;ENEL ENERGIA SPA;9619395FDC;24/07/2023;5931;0;488;1;Spese correnti;3;Acquisto di beni e servizi;2;Acquisto di servizi;5;Utenze e canoni;4;Energia elettrica;26/07/2023
2340;2;9999999;50,31;139,38;ENEL ENERGIA SPA;9619395FDC;24/07/2023;5931;0;488;1;Spese correnti;3;Acquisto di beni e servizi;2;Acquisto di servizi;5;Utenze e canoni;4;Energia elettrica;26/07/2023
2340;3;9999999;71,14;139,38;ENEL ENERGIA SPA;9619395FDC;24/07/2023;5931;0;488;1;Spese correnti;3;Acquisto di beni e servizi;2;Acquisto di servizi;5;Utenze e canoni;4;Energia elettrica;26/07/2023
2341;1;9999999;58,1;118,94;ENEL ENERGIA SPA;9619395FDC;24/07/2023;6461;0;487;1;Spese correnti;3;Acquisto di beni e servizi;2;Acquisto di servizi;5;Utenze e canoni;4;Energia elettrica;26/07/2023
2341;2;9999999;60,84;118,94;ENEL ENERGIA SPA;9619395FDC;24/07/2023;6461;0;487;1;Spese correnti;3;Acquisto di beni e servizi;2;Acquisto di servizi;5;Utenze e canoni;4;Energia elettrica;26/07/2023
2342;1;9999999;10.581,87;10.581,87;VERITAS  S.P.A.;Z0D3855C00;24/07/2023;7435;2;634;1;Spese correnti;3;Acquisto di beni e servizi;2;Acquisto di servizi;9;Manutenzione ordinaria e riparazioni;4;Manutenzione ordinaria e riparazioni di impianti e macchinari;26/07/2023
2343;1;9999999;462,85;462,85;VIER  SCARL; ;24/07/2023;7552;1;237;1;Spese correnti;3;Acquisto di beni e servizi;2;Acquisto di servizi;5;Utenze e canoni;4;Energia elettrica;26/07/2023
2344;1;9999999;272,18;272,18;VIER  SCARL; ;24/07/2023;7552;1;237;1;Spese correnti;3;Acquisto di beni e servizi;2;Acquisto di servizi;5;Utenze e canoni;4;Energia elettrica;26/07/2023
2345;1;9999999;47,74;2.302,97;SERENISSIMA RISTORAZIONE SPA;932853027C;24/07/2023;7553;1;733;1;Spese correnti;3;Acquisto di beni e servizi;2;Acquisto di servizi;15;Contratti di servizio pubblico;6;Contratti di servizio per le mense scolastiche;26/07/2023
2345;2;9999999;276,01;2.302,97;SERENISSIMA RISTORAZIONE SPA;932853027C;24/07/2023;7553;1;733;1;Spese correnti;3;Acquisto di beni e servizi;2;Acquisto di servizi;15;Contratti di servizio pubblico;6;Contratti di servizio per le mense scolastiche;26/07/2023
2345;3;9999999;868,43;2.302,97;SERENISSIMA RISTORAZIONE SPA;932853027C;24/07/2023;7553;1;733;1;Spese correnti;3;Acquisto di beni e servizi;2;Acquisto di servizi;15;Contratti di servizio pubblico;6;Contratti di servizio per le mense scolastiche;26/07/2023
2345;4;9999999;1.110,79;2.302,97;SERENISSIMA RISTORAZIONE SPA;932853027C;24/07/2023;7553;1;733;1;Spese correnti;3;Acquisto di beni e servizi;2;Acquisto di servizi;15;Contratti di servizio pubblico;6;Contratti di servizio per le mense scolastiche;26/07/2023
2346;1;9999999;12.099,77;12.099,77;CODESS SOCIALE-COOP. ONLUS;8855832FBD;24/07/2023;7560;1;771;1;Spese correnti;3;Acquisto di beni e servizi;2;Acquisto di servizi;15;Contratti di servizio pubblico;10;Contratti di servizio di asilo nido;26/07/2023
2347;1;9999999;8.972,50;8.972,50;CODESS SOCIALE-COOP. ONLUS;8855832FBD;24/07/2023;7560;1;771;1;Spese correnti;3;Acquisto di beni e servizi;2;Acquisto di servizi;15;Contratti di servizio pubblico;10;Contratti di servizio di asilo nido;26/07/2023
2348;1;9999999;108;108;PUBLIKA S.R.L.;Z813BBF66F;24/07/2023;560;0;573;1;Spese correnti;3;Acquisto di beni e servizi;2;Acquisto di servizi;4;Acquisto di servizi per formazione e addestramento del personale dell'ente;999;Acquisto di servizi per altre spese per formazione e addestramento n.a.c.;26/07/2023
2349;1;9999999;12.540,00;12.540,00;ITALSERVICE SRL;Z273B3A326;24/07/2023;11302;8;477;2;Spese in conto capitale;2;Investimenti fissi lordi e acquisto di terreni;1;Beni materiali;9;Beni immobili;19;Fabbricati ad uso strumentale;26/07/2023
2350;1;9999999;284,51;284,51;KUWAIT PETROLEUM ITALIA SPA;Z9C36EAB07;26/07/2023;1307;0;270;1;Spese correnti;3;Acquisto di beni e servizi;1;Acquisto di beni;2;Altri beni di consumo;2;Carburanti, combustibili e lubrificanti;28/07/2023
2351;1;9999999;268,7;268,7;KUWAIT PETROLEUM ITALIA SPA;Z9C36EAB07;26/07/2023;2197;0;271;1;Spese correnti;3;Acquisto di beni e servizi;1;Acquisto di beni;2;Altri beni di consumo;2;Carburanti, combustibili e lubrificanti;28/07/2023
2352;1;9999999;49,34;49,34;KUWAIT PETROLEUM ITALIA SPA;Z9C36EAB07;26/07/2023;8132;1;273;1;Spese correnti;3;Acquisto di beni e servizi;1;Acquisto di beni;2;Altri beni di consumo;2;Carburanti, combustibili e lubrificanti;28/07/2023
2353;1;9999999;21.709,90;21.709,90;VILLANOVA COSTRUZIONI SRL;Z0A3BD6D41;26/07/2023;13211;0;998;2;Spese in conto capitale;2;Investimenti fissi lordi e acquisto di terreni;1;Beni materiali;9;Beni immobili;3;Fabbricati ad uso scolastico;28/07/2023
2354;1;9999999;302,32;302,32;ALTERNATIVA AMBIENTE COOPERATIVA SOCIALE; ;26/07/2023;74;0;662;1;Spese correnti;3;Acquisto di beni e servizi;2;Acquisto di servizi;1;Organi e incarichi istituzionali dell'amministrazione;1;Organi istituzionali dell'amministrazione - Indennità;28/07/2023
2355;1;9999999;232,74;232,74;ALTERNATIVA AMBIENTE COOPERATIVA SOCIALE; ;26/07/2023;74;0;662;1;Spese correnti;3;Acquisto di beni e servizi;2;Acquisto di servizi;1;Organi e incarichi istituzionali dell'amministrazione;1;Organi istituzionali dell'amministrazione - Indennità;28/07/2023
2356;1;9999999;1.800,00;1.800,00;ALTERNATIVA AMBIENTE COOPERATIVA SOCIALE; ;26/07/2023;74;0;149;1;Spese correnti;3;Acquisto di beni e servizi;2;Acquisto di servizi;1;Organi e incarichi istituzionali dell'amministrazione;1;Organi istituzionali dell'amministrazione - Indennità;28/07/2023
2357;1;9999999;1.800,00;1.800,00;ALTERNATIVA AMBIENTE COOPERATIVA SOCIALE; ;26/07/2023;74;0;152;1;Spese correnti;3;Acquisto di beni e servizi;2;Acquisto di servizi;1;Organi e incarichi istituzionali dell'amministrazione;1;Organi istituzionali dell'amministrazione - Indennità;28/07/2023
2360;1;9999999;15,57;468,54;VERITAS  S.P.A.; ;27/07/2023;1801;0;203;1;Spese correnti;3;Acquisto di beni e servizi;2;Acquisto di servizi;5;Utenze e canoni;5;Acqua;01/08/2023
2360;2;9999999;71,01;468,54;VERITAS  S.P.A.; ;27/07/2023;1801;0;203;1;Spese correnti;3;Acquisto di beni e servizi;2;Acquisto di servizi;5;Utenze e canoni;5;Acqua;01/08/2023
2360;3;9999999;93,17;468,54;VERITAS  S.P.A.; ;27/07/2023;1801;0;203;1;Spese correnti;3;Acquisto di beni e servizi;2;Acquisto di servizi;5;Utenze e canoni;5;Acqua;01/08/2023
2360;4;9999999;288,79;468,54;VERITAS  S.P.A.; ;27/07/2023;1801;0;203;1;Spese correnti;3;Acquisto di beni e servizi;2;Acquisto di servizi;5;Utenze e canoni;5;Acqua;01/08/2023
2361;1;9999999;158,55;158,55;VERITAS  S.P.A.; ;27/07/2023;2790;0;222;1;Spese correnti;3;Acquisto di beni e servizi;2;Acquisto di servizi;5;Utenze e canoni;5;Acqua;01/08/2023
2362;1;9999999;111,37;111,37;VERITAS  S.P.A.; ;27/07/2023;2792;0;223;1;Spese correnti;3;Acquisto di beni e servizi;2;Acquisto di servizi;5;Utenze e canoni;5;Acqua;01/08/2023
2363;1;9999999;32,55;1.193,38;VERITAS  S.P.A.; ;27/07/2023;2973;0;224;1;Spese correnti;3;Acquisto di beni e servizi;2;Acquisto di servizi;5;Utenze e canoni;5;Acqua;01/08/2023
2363;2;9999999;52,21;1.193,38;VERITAS  S.P.A.; ;27/07/2023;2973;0;224;1;Spese correnti;3;Acquisto di beni e servizi;2;Acquisto di servizi;5;Utenze e canoni;5;Acqua;01/08/2023
2363;3;9999999;52,21;1.193,38;VERITAS  S.P.A.; ;27/07/2023;2973;0;224;1;Spese correnti;3;Acquisto di beni e servizi;2;Acquisto di servizi;5;Utenze e canoni;5;Acqua;01/08/2023
2363;4;9999999;52,21;1.193,38;VERITAS  S.P.A.; ;27/07/2023;2973;0;224;1;Spese correnti;3;Acquisto di beni e servizi;2;Acquisto di servizi;5;Utenze e canoni;5;Acqua;01/08/2023
2363;5;9999999;52,21;1.193,38;VERITAS  S.P.A.; ;27/07/2023;2973;0;224;1;Spese correnti;3;Acquisto di beni e servizi;2;Acquisto di servizi;5;Utenze e canoni;5;Acqua;01/08/2023
2363;6;9999999;52,21;1.193,38;VERITAS  S.P.A.; ;27/07/2023;2973;0;224;1;Spese correnti;3;Acquisto di beni e servizi;2;Acquisto di servizi;5;Utenze e canoni;5;Acqua;01/08/2023
2363;7;9999999;54,2;1.193,38;VERITAS  S.P.A.; ;27/07/2023;2973;0;224;1;Spese correnti;3;Acquisto di beni e servizi;2;Acquisto di servizi;5;Utenze e canoni;5;Acqua;01/08/2023
2363;8;9999999;74,76;1.193,38;VERITAS  S.P.A.; ;27/07/2023;2973;0;224;1;Spese correnti;3;Acquisto di beni e servizi;2;Acquisto di servizi;5;Utenze e canoni;5;Acqua;01/08/2023
2363;9;9999999;112,98;1.193,38;VERITAS  S.P.A.; ;27/07/2023;2973;0;224;1;Spese correnti;3;Acquisto di beni e servizi;2;Acquisto di servizi;5;Utenze e canoni;5;Acqua;01/08/2023
2363;10;9999999;212,35;1.193,38;VERITAS  S.P.A.; ;27/07/2023;2973;0;224;1;Spese correnti;3;Acquisto di beni e servizi;2;Acquisto di servizi;5;Utenze e canoni;5;Acqua;01/08/2023
2363;11;9999999;445,49;1.193,38;VERITAS  S.P.A.; ;27/07/2023;2973;0;224;1;Spese correnti;3;Acquisto di beni e servizi;2;Acquisto di servizi;5;Utenze e canoni;5;Acqua;01/08/2023
2364;1;9999999;52,21;4.293,54;VERITAS  S.P.A.; ;27/07/2023;4020;0;204;1;Spese correnti;3;Acquisto di beni e servizi;2;Acquisto di servizi;5;Utenze e canoni;5;Acqua;01/08/2023
2364;2;9999999;58,64;4.293,54;VERITAS  S.P.A.; ;27/07/2023;4020;0;204;1;Spese correnti;3;Acquisto di beni e servizi;2;Acquisto di servizi;5;Utenze e canoni;5;Acqua;01/08/2023
2364;3;9999999;4.182,69;4.293,54;VERITAS  S.P.A.; ;27/07/2023;4020;0;204;1;Spese correnti;3;Acquisto di beni e servizi;2;Acquisto di servizi;5;Utenze e canoni;5;Acqua;01/08/2023
2365;1;9999999;330;330;EURO TOURS SRL;Z013AE49FA;27/07/2023;4261;2;452;1;Spese correnti;3;Acquisto di beni e servizi;2;Acquisto di servizi;99;Altri servizi;8;Servizi di mobilita` a terzi (bus navetta, ...);01/08/2023
2366;1;9999999;27.417,87;27.417,87;EURO TOURS SRL;88188476C3;27/07/2023;4261;4;729;1;Spese correnti;3;Acquisto di beni e servizi;2;Acquisto di servizi;15;Contratti di servizio pubblico;2;Contratti di servizio di trasporto scolastico;01/08/2023
2367;1;9999999;123,81;123,81;VERITAS  S.P.A.; ;27/07/2023;4527;0;225;1;Spese correnti;3;Acquisto di beni e servizi;2;Acquisto di servizi;5;Utenze e canoni;5;Acqua;01/08/2023
2368;1;9999999;39,96;346,24;VERITAS  S.P.A.; ;27/07/2023;5051;0;205;1;Spese correnti;3;Acquisto di beni e servizi;2;Acquisto di servizi;5;Utenze e canoni;5;Acqua;01/08/2023
2368;2;9999999;86,25;346,24;VERITAS  S.P.A.; ;27/07/2023;5051;0;205;1;Spese correnti;3;Acquisto di beni e servizi;2;Acquisto di servizi;5;Utenze e canoni;5;Acqua;01/08/2023
2368;3;9999999;220,03;346,24;VERITAS  S.P.A.; ;27/07/2023;5051;0;205;1;Spese correnti;3;Acquisto di beni e servizi;2;Acquisto di servizi;5;Utenze e canoni;5;Acqua;01/08/2023
2369;1;9999999;12,51;105,12;VERITAS  S.P.A.; ;27/07/2023;6461;0;226;1;Spese correnti;3;Acquisto di beni e servizi;2;Acquisto di servizi;5;Utenze e canoni;5;Acqua;01/08/2023
2369;2;9999999;15,57;105,12;VERITAS  S.P.A.; ;27/07/2023;6461;0;226;1;Spese correnti;3;Acquisto di beni e servizi;2;Acquisto di servizi;5;Utenze e canoni;5;Acqua;01/08/2023
2369;3;9999999;19,43;105,12;VERITAS  S.P.A.; ;27/07/2023;6461;0;226;1;Spese correnti;3;Acquisto di beni e servizi;2;Acquisto di servizi;5;Utenze e canoni;5;Acqua;01/08/2023
2369;4;9999999;57,61;105,12;VERITAS  S.P.A.; ;27/07/2023;6461;0;226;1;Spese correnti;3;Acquisto di beni e servizi;2;Acquisto di servizi;5;Utenze e canoni;5;Acqua;01/08/2023
2370;1;9999999;12,51;249,73;VERITAS  S.P.A.; ;27/07/2023;6905;0;206;1;Spese correnti;3;Acquisto di beni e servizi;2;Acquisto di servizi;5;Utenze e canoni;5;Acqua;01/08/2023
2370;2;9999999;12,51;249,73;VERITAS  S.P.A.; ;27/07/2023;6905;0;206;1;Spese correnti;3;Acquisto di beni e servizi;2;Acquisto di servizi;5;Utenze e canoni;5;Acqua;01/08/2023
2370;3;9999999;13,34;249,73;VERITAS  S.P.A.; ;27/07/2023;6905;0;206;1;Spese correnti;3;Acquisto di beni e servizi;2;Acquisto di servizi;5;Utenze e canoni;5;Acqua;01/08/2023
2370;4;9999999;14,12;249,73;VERITAS  S.P.A.; ;27/07/2023;6905;0;206;1;Spese correnti;3;Acquisto di beni e servizi;2;Acquisto di servizi;5;Utenze e canoni;5;Acqua;01/08/2023
2370;5;9999999;14,12;249,73;VERITAS  S.P.A.; ;27/07/2023;6905;0;206;1;Spese correnti;3;Acquisto di beni e servizi;2;Acquisto di servizi;5;Utenze e canoni;5;Acqua;01/08/2023
2370;6;9999999;17,46;249,73;VERITAS  S.P.A.; ;27/07/2023;6905;0;206;1;Spese correnti;3;Acquisto di beni e servizi;2;Acquisto di servizi;5;Utenze e canoni;5;Acqua;01/08/2023
2370;7;9999999;17,46;249,73;VERITAS  S.P.A.; ;27/07/2023;6905;0;206;1;Spese correnti;3;Acquisto di beni e servizi;2;Acquisto di servizi;5;Utenze e canoni;5;Acqua;01/08/2023
2370;8;9999999;17,46;249,73;VERITAS  S.P.A.; ;27/07/2023;6905;0;206;1;Spese correnti;3;Acquisto di beni e servizi;2;Acquisto di servizi;5;Utenze e canoni;5;Acqua;01/08/2023
2370;9;9999999;21,29;249,73;VERITAS  S.P.A.; ;27/07/2023;6905;0;206;1;Spese correnti;3;Acquisto di beni e servizi;2;Acquisto di servizi;5;Utenze e canoni;5;Acqua;01/08/2023
2370;10;9999999;24,54;249,73;VERITAS  S.P.A.; ;27/07/2023;6905;0;206;1;Spese correnti;3;Acquisto di beni e servizi;2;Acquisto di servizi;5;Utenze e canoni;5;Acqua;01/08/2023
2370;11;9999999;84,92;249,73;VERITAS  S.P.A.; ;27/07/2023;6905;0;206;1;Spese correnti;3;Acquisto di beni e servizi;2;Acquisto di servizi;5;Utenze e canoni;5;Acqua;01/08/2023
2371;1;9999999;30.000,00;60.000,00;CONTARINA S.P.A.; ;27/07/2023;7430;0;868;1;Spese correnti;3;Acquisto di beni e servizi;2;Acquisto di servizi;9;Manutenzione ordinaria e riparazioni;8;Manutenzione ordinaria e riparazioni di beni immobili;01/08/2023
2371;2;9999999;30.000,00;60.000,00;CONTARINA S.P.A.; ;27/07/2023;7430;0;868;1;Spese correnti;3;Acquisto di beni e servizi;2;Acquisto di servizi;9;Manutenzione ordinaria e riparazioni;8;Manutenzione ordinaria e riparazioni di beni immobili;01/08/2023
2372;1;9999999;14,12;125,72;VERITAS  S.P.A.; ;27/07/2023;7431;0;207;1;Spese correnti;3;Acquisto di beni e servizi;2;Acquisto di servizi;5;Utenze e canoni;5;Acqua;01/08/2023
2372;2;9999999;19,43;125,72;VERITAS  S.P.A.; ;27/07/2023;7431;0;207;1;Spese correnti;3;Acquisto di beni e servizi;2;Acquisto di servizi;5;Utenze e canoni;5;Acqua;01/08/2023
2372;3;9999999;23,25;125,72;VERITAS  S.P.A.; ;27/07/2023;7431;0;207;1;Spese correnti;3;Acquisto di beni e servizi;2;Acquisto di servizi;5;Utenze e canoni;5;Acqua;01/08/2023
2372;4;9999999;25,14;125,72;VERITAS  S.P.A.; ;27/07/2023;7431;0;207;1;Spese correnti;3;Acquisto di beni e servizi;2;Acquisto di servizi;5;Utenze e canoni;5;Acqua;01/08/2023
2372;5;9999999;43,78;125,72;VERITAS  S.P.A.; ;27/07/2023;7431;0;207;1;Spese correnti;3;Acquisto di beni e servizi;2;Acquisto di servizi;5;Utenze e canoni;5;Acqua;01/08/2023
2373;1;9999999;74,25;179,95;VERITAS  S.P.A.; ;27/07/2023;7552;1;227;1;Spese correnti;3;Acquisto di beni e servizi;2;Acquisto di servizi;5;Utenze e canoni;5;Acqua;01/08/2023
2373;2;9999999;105,7;179,95;VERITAS  S.P.A.; ;27/07/2023;7552;1;227;1;Spese correnti;3;Acquisto di beni e servizi;2;Acquisto di servizi;5;Utenze e canoni;5;Acqua;01/08/2023
2374;1;9999999;340;340;BARUSSO FORM. E CONS. E.L. DI QUEREL A.M. & C. S.A.S.;Z6A3BDAA6D;27/07/2023;550;0;643;1;Spese correnti;3;Acquisto di beni e servizi;2;Acquisto di servizi;4;Acquisto di servizi per formazione e addestramento del personale dell'ente;4;Acquisto di servizi per formazione obbligatoria;01/08/2023
2375;1;9999999;13,21;13,21;FASTWEB SPA;Z742CA65BF;27/07/2023;1346;1;321;1;Spese correnti;3;Acquisto di beni e servizi;2;Acquisto di servizi;5;Utenze e canoni;1;Telefonia fissa;01/08/2023
2376;1;9999999;283,15;283,15;FASTWEB SPA;Z742CA65BF;27/07/2023;1801;1;322;1;Spese correnti;3;Acquisto di beni e servizi;2;Acquisto di servizi;5;Utenze e canoni;1;Telefonia fissa;01/08/2023
2377;1;9999999;15,1;15,1;FASTWEB SPA;Z742CA65BF;27/07/2023;2790;1;323;1;Spese correnti;3;Acquisto di beni e servizi;2;Acquisto di servizi;5;Utenze e canoni;1;Telefonia fissa;01/08/2023
2378;1;9999999;14,13;14,13;FASTWEB SPA;Z742CA65BF;27/07/2023;2792;1;324;1;Spese correnti;3;Acquisto di beni e servizi;2;Acquisto di servizi;5;Utenze e canoni;1;Telefonia fissa;01/08/2023
2379;1;9999999;101,92;101,92;FASTWEB SPA;Z742CA65BF;27/07/2023;2973;1;325;1;Spese correnti;3;Acquisto di beni e servizi;2;Acquisto di servizi;5;Utenze e canoni;1;Telefonia fissa;01/08/2023
2380;1;9999999;111,65;111,65;FASTWEB SPA;Z742CA65BF;27/07/2023;4020;1;326;1;Spese correnti;3;Acquisto di beni e servizi;2;Acquisto di servizi;5;Utenze e canoni;1;Telefonia fissa;01/08/2023
2381;1;9999999;13,18;13,18;FASTWEB SPA;Z742CA65BF;27/07/2023;4527;1;327;1;Spese correnti;3;Acquisto di beni e servizi;2;Acquisto di servizi;5;Utenze e canoni;1;Telefonia fissa;01/08/2023
2382;1;9999999;13,21;13,21;FASTWEB SPA;Z742CA65BF;27/07/2023;6642;0;328;1;Spese correnti;3;Acquisto di beni e servizi;2;Acquisto di servizi;5;Utenze e canoni;1;Telefonia fissa;01/08/2023
2383;1;9999999;79,17;430,77;E.MEDI.CAL SRL;Z473A8B998;31/07/2023;679;0;433;1;Spese correnti;3;Acquisto di beni e servizi;2;Acquisto di servizi;18;Servizi sanitari;1;Spese per accertamenti sanitari resi necessari dall'attività lavorativa;02/08/2023
2383;2;9999999;81,75;430,77;E.MEDI.CAL SRL;Z473A8B998;31/07/2023;679;0;433;1;Spese correnti;3;Acquisto di beni e servizi;2;Acquisto di servizi;18;Servizi sanitari;1;Spese per accertamenti sanitari resi necessari dall'attività lavorativa;02/08/2023
2383;3;9999999;269,85;430,77;E.MEDI.CAL SRL;Z473A8B998;31/07/2023;679;0;433;1;Spese correnti;3;Acquisto di beni e servizi;2;Acquisto di servizi;18;Servizi sanitari;1;Spese per accertamenti sanitari resi necessari dall'attività lavorativa;02/08/2023
2384;1;9999999;528,87;528,87;POSTE ITALIANE SPA;ZCE3502180;31/07/2023;1793;0;288;1;Spese correnti;3;Acquisto di beni e servizi;2;Acquisto di servizi;16;Servizi amministrativi;2;Spese postali;02/08/2023
2385;1;9999999;409,8;409,8;OMESSO NOMINATIVO NEL RISPETTO DELLA NORMATIVA SULLA PROTEZIONE DATI PERSONALI; ;31/07/2023;8361;0;670;1;Spese correnti;4;Trasferimenti correnti;2;Trasferimenti correnti a Famiglie;2;Interventi assistenziali;999;Altri assegni e sussidi assistenziali;02/08/2023
2386;1;9999999;1.590,00;1.590,00;OMESSO NOMINATIVO NEL RISPETTO DELLA NORMATIVA SULLA PROTEZIONE DATI PERSONALI; ;31/07/2023;8361;0;668;1;Spese correnti;4;Trasferimenti correnti;2;Trasferimenti correnti a Famiglie;2;Interventi assistenziali;999;Altri assegni e sussidi assistenziali;02/08/2023
2387;1;9999999;753,04;753,04;OMESSO NOMINATIVO NEL RISPETTO DELLA NORMATIVA SULLA PROTEZIONE DATI PERSONALI; ;31/07/2023;8361;0;669;1;Spese correnti;4;Trasferimenti correnti;2;Trasferimenti correnti a Famiglie;2;Interventi assistenziali;999;Altri assegni e sussidi assistenziali;02/08/2023
2388;1;9999999;3.424,00;3.424,00;COMUNE DI TREVISO; ;31/07/2023;691;0;671;1;Spese correnti;4;Trasferimenti correnti;1;Trasferimenti correnti a Amministrazioni Pubbliche;2;Trasferimenti correnti a Amministrazioni Locali;3;Trasferimenti correnti a Comuni;02/08/2023
2389;1;9999999;1.128,30;1.128,30;CASA DELL'AUTO  SRL;Z103B48E25;31/07/2023;2346;0;529;1;Spese correnti;3;Acquisto di beni e servizi;2;Acquisto di servizi;99;Altri servizi;7;Custodia giudiziaria;02/08/2023
2390;1;9999999;2.882,65;2.882,65;CONTARINA S.P.A.; ;31/07/2023;2347;1;268;1;Spese correnti;3;Acquisto di beni e servizi;2;Acquisto di servizi;9;Manutenzione ordinaria e riparazioni;11;Manutenzione ordinaria e riparazioni di altri beni materiali;02/08/2023
2391;1;9999999;158,95;158,95;MINISTERO INFRASTR./TRASPORTI-MOTORIZZ.CIVILE; ;31/07/2023;2344;0;1167;1;Spese correnti;3;Acquisto di beni e servizi;2;Acquisto di servizi;5;Utenze e canoni;3;Accesso a banche dati e a pubblicazioni on line;02/08/2023
2393;1;9999999;561,2;561,2;CESCON SERVIZI S.R.L.;Z173BA0147;31/07/2023;1185;1;560;1;Spese correnti;3;Acquisto di beni e servizi;2;Acquisto di servizi;9;Manutenzione ordinaria e riparazioni;8;Manutenzione ordinaria e riparazioni di beni immobili;02/08/2023
2394;1;9999999;2.684,00;2.684,00;CESCON SERVIZI S.R.L.;Z83358D38A;31/07/2023;1185;1;330;1;Spese correnti;3;Acquisto di beni e servizi;2;Acquisto di servizi;9;Manutenzione ordinaria e riparazioni;11;Manutenzione ordinaria e riparazioni di altri beni materiali;02/08/2023
2395;1;9999999;559,92;559,92;CERVINO SRL;Z8A3B69070;31/07/2023;1340;1;563;1;Spese correnti;3;Acquisto di beni e servizi;2;Acquisto di servizi;9;Manutenzione ordinaria e riparazioni;1;Manutenzione ordinaria e riparazioni di mezzi di trasporto ad uso civile, di sicurezza e ordine pubblico;02/08/2023
2396;1;9999999;156;156;COSMO GIURIDICO VENETO S.A.S. DI MARANGON IVONNE;Z1D39E62C6;31/07/2023;1791;0;262;1;Spese correnti;3;Acquisto di beni e servizi;2;Acquisto di servizi;5;Utenze e canoni;3;Accesso a banche dati e a pubblicazioni on line;02/08/2023
2397;1;9999999;283,36;283,36;PULITORI ED AFFINI SPA;87752258BF;31/07/2023;1794;0;656;1;Spese correnti;3;Acquisto di beni e servizi;2;Acquisto di servizi;13;Servizi ausiliari per il funzionamento dell'ente;2;Servizi di pulizia e lavanderia;02/08/2023
2398;1;9999999;453,84;453,84;SOGEST ITALIA SRL;Z08372EAAD;31/07/2023;1805;0;714;1;Spese correnti;3;Acquisto di beni e servizi;2;Acquisto di servizi;13;Servizi ausiliari per il funzionamento dell'ente;1;Servizi di sorveglianza, custodia e accoglienza;02/08/2023
2399;1;9999999;538,61;538,61;KYOCERA DOCUMENT SOLUTIONS ITALIA SPA;8227602FF1;31/07/2023;1813;0;291;1;Spese correnti;3;Acquisto di beni e servizi;2;Acquisto di servizi;7;Utilizzo di beni di terzi;4;Noleggi di hardware;02/08/2023
2400;1;9999999;1.342,00;1.342,00;CESCON SERVIZI S.R.L.;Z83358D38A;31/07/2023;4540;0;331;1;Spese correnti;3;Acquisto di beni e servizi;2;Acquisto di servizi;9;Manutenzione ordinaria e riparazioni;11;Manutenzione ordinaria e riparazioni di altri beni materiali;02/08/2023
2401;1;9999999;38.500,00;38.500,00;COSTRUZIONI MANUTENZIONI CECCHIN S.R.L.;Z393B3ABEC;31/07/2023;11302;8;477;2;Spese in conto capitale;2;Investimenti fissi lordi e acquisto di terreni;1;Beni materiali;9;Beni immobili;19;Fabbricati ad uso strumentale;02/08/2023
2403;1;9999999;709,52;709,52;COMUNE DI MOGLIANO VENETO; ;09/08/2023;2452;1;307;1;Spese correnti;4;Trasferimenti correnti;1;Trasferimenti correnti a Amministrazioni Pubbliche;2;Trasferimenti correnti a Amministrazioni Locali;3;Trasferimenti correnti a Comuni;16/08/2023
2404;1;9999999;2.765,98;2.765,98;MICHIELAN PRIMO;ZD10FA8EB6;09/08/2023;500;0;364;1;Spese correnti;3;Acquisto di beni e servizi;2;Acquisto di servizi;11;Prestazioni professionali e specialistiche;6;Patrocinio legale;16/08/2023
2405;1;9999999;304;304;CENTRO STUDI ALTA PADOVANA DI BRUGNOLI DIVA;Z4F3B1A357;09/08/2023;560;0;498;1;Spese correnti;3;Acquisto di beni e servizi;2;Acquisto di servizi;4;Acquisto di servizi per formazione e addestramento del personale dell'ente;999;Acquisto di servizi per altre spese per formazione e addestramento n.a.c.;16/08/2023
2406;1;9999999;1.586,00;1.586,00;IMAR ASCENSORI S.A.S. DI POMIATO ROMEO & C.;Z7B3BD618D;09/08/2023;1185;1;645;1;Spese correnti;3;Acquisto di beni e servizi;2;Acquisto di servizi;9;Manutenzione ordinaria e riparazioni;12;Manutenzione ordinaria e riparazioni di terreni e beni materiali non prodotti;16/08/2023
2407;1;9999999;3.999,99;3.999,99;PULITORI ED AFFINI SPA;87752258BF;09/08/2023;1794;0;656;1;Spese correnti;3;Acquisto di beni e servizi;2;Acquisto di servizi;13;Servizi ausiliari per il funzionamento dell'ente;2;Servizi di pulizia e lavanderia;16/08/2023
2408;1;9999999;180.857,60;180.857,60;COSTRUZIONI MANUTENZIONI CECCHIN S.R.L.;91356977A7;09/08/2023;11302;3;1380;2;Spese in conto capitale;2;Investimenti fissi lordi e acquisto di terreni;1;Beni materiali;9;Beni immobili;19;Fabbricati ad uso strumentale;16/08/2023
2409;1;9999999;525;525;PERAZZOLO FABIO STUDIO TECNICO PROFESSIONALE;Z6E381C5F4;09/08/2023;13451;0;944;2;Spese in conto capitale;2;Investimenti fissi lordi e acquisto di terreni;1;Beni materiali;9;Beni immobili;3;Fabbricati ad uso scolastico;16/08/2023
2410;1;9999999;158.358,57;158.358,57;AZIENDA ULSS N.2 - MARCA TREVIGIANA; ;09/08/2023;8360;0;183;1;Spese correnti;4;Trasferimenti correnti;1;Trasferimenti correnti a Amministrazioni Pubbliche;2;Trasferimenti correnti a Amministrazioni Locali;20;Trasferimenti correnti a Aziende sanitarie locali  a titolo di finanziamento del servizio sanitario nazionale;16/08/2023
2411;1;9999999;793;793;SOC. IMM. MURETTO S.N.C. DI CRESCENTE V. & C.; ;09/08/2023;1812;0;327;1;Spese correnti;3;Acquisto di beni e servizi;2;Acquisto di servizi;7;Utilizzo di beni di terzi;1;Locazione di beni immobili;16/08/2023
2412;1;9999999;2,09;2,09;BANCA MONTE DEI PASCHI DI SIENA S.P.A.; ;09/08/2023;820;0;0;1;Spese correnti;3;Acquisto di beni e servizi;2;Acquisto di servizi;17;Servizi finanziari;2;Oneri per servizio di tesoreria;14/08/2023
2414;1;9999999;432,18;432,18;OMESSO NOMINATIVO NEL RISPETTO DELLA NORMATIVA SULLA PROTEZIONE DATI PERSONALI; ;09/08/2023;8361;0;1316;1;Spese correnti;4;Trasferimenti correnti;2;Trasferimenti correnti a Famiglie;2;Interventi assistenziali;999;Altri assegni e sussidi assistenziali;16/08/2023
2415;1;9999999;663,24;663,24;OMESSO NOMINATIVO NEL RISPETTO DELLA NORMATIVA SULLA PROTEZIONE DATI PERSONALI; ;09/08/2023;8361;0;471;1;Spese correnti;4;Trasferimenti correnti;2;Trasferimenti correnti a Famiglie;2;Interventi assistenziali;999;Altri assegni e sussidi assistenziali;16/08/2023
2417;1;9999999;288,91;288,91;AGENZIA DELLE ENTRATE DI TREVISO; ;10/08/2023;1904;0;683;1;Spese correnti;10;Altre spese correnti;3;Versamenti IVA a debito;1;Versamenti IVA a debito per le gestioni commerciali;1;Versamenti IVA a debito per le gestioni commerciali;18/08/2023
2418;1;9999999;208,73;208,73;VIER  SCARL; ;10/08/2023;7552;1;237;1;Spese correnti;3;Acquisto di beni e servizi;2;Acquisto di servizi;5;Utenze e canoni;4;Energia elettrica;18/08/2023
2419;1;9999999;618,54;618,54;VIER  SCARL; ;10/08/2023;4020;0;236;1;Spese correnti;3;Acquisto di beni e servizi;2;Acquisto di servizi;5;Utenze e canoni;4;Energia elettrica;18/08/2023
2420;1;9999999;313,1;313,1;VIER  SCARL; ;10/08/2023;2792;0;235;1;Spese correnti;3;Acquisto di beni e servizi;2;Acquisto di servizi;5;Utenze e canoni;4;Energia elettrica;16/08/2023
2421;1;9999999;1.232,81;1.232,81;VIER  SCARL; ;10/08/2023;5050;0;132;1;Spese correnti;3;Acquisto di beni e servizi;2;Acquisto di servizi;5;Utenze e canoni;4;Energia elettrica;16/08/2023
2422;1;9999999;1.394,35;1.394,35;VIER  SCARL; ;10/08/2023;2973;0;131;1;Spese correnti;3;Acquisto di beni e servizi;2;Acquisto di servizi;5;Utenze e canoni;4;Energia elettrica;18/08/2023
2423;1;9999999;13.837,88;13.837,88;CODESS SOCIALE-COOP. ONLUS;9120417633;10/08/2023;8250;0;578;1;Spese correnti;3;Acquisto di beni e servizi;2;Acquisto di servizi;15;Contratti di servizio pubblico;9;Contratti di servizio di assistenza sociale domiciliare;16/08/2023
2424;1;9999999;8.694,00;8.694,00;KIRIKU Societa' cooperativa sociale onlus;Z6C35B265E;10/08/2023;8204;4;450;1;Spese correnti;3;Acquisto di beni e servizi;2;Acquisto di servizi;99;Altri servizi;999;Altri servizi diversi n.a.c.;16/08/2023
2425;1;9999999;123;123;CASA DI SOGGIORNO E RIPOSO MONS. LORENZO CRICO; ;10/08/2023;8204;2;667;1;Spese correnti;3;Acquisto di beni e servizi;2;Acquisto di servizi;15;Contratti di servizio pubblico;8;Contratti di servizio di assistenza sociale residenziale e semiresidenziale;16/08/2023
2426;1;9999999;4.200,00;4.200,00;CASA DI SOGGIORNO E RIPOSO MONS. LORENZO CRICO; ;10/08/2023;8204;2;1189;1;Spese correnti;3;Acquisto di beni e servizi;2;Acquisto di servizi;15;Contratti di servizio pubblico;8;Contratti di servizio di assistenza sociale residenziale e semiresidenziale;16/08/2023
2427;1;9999999;1.603,25;1.603,25;LEGGERE S.R.L.;Z673A59373;10/08/2023;4506;0;478;1;Spese correnti;3;Acquisto di beni e servizi;1;Acquisto di beni;1;Giornali, riviste e pubblicazioni;2;Pubblicazioni;16/08/2023
2428;1;9999999;1.220,00;1.220,00;VEMARK SRLS UNIPERSONALE;Z7F3BC105E;10/08/2023;610;1;574;1;Spese correnti;3;Acquisto di beni e servizi;2;Acquisto di servizi;2;Organizzazione eventi, pubblicita` e servizi per trasferta;999;Altre spese per relazioni pubbliche, convegni e mostre, pubblicita` n.a.c;16/08/2023
2429;1;9999999;75;75;IDEAPA SRL;Z473A10AC6;10/08/2023;557;0;279;1;Spese correnti;3;Acquisto di beni e servizi;2;Acquisto di servizi;4;Acquisto di servizi per formazione e addestramento del personale dell'ente;999;Acquisto di servizi per altre spese per formazione e addestramento n.a.c.;16/08/2023
2430;1;9999999;34,44;34,44;DOLOMITI ENERGIA SPA;964666689C;10/08/2023;4527;0;502;1;Spese correnti;3;Acquisto di beni e servizi;2;Acquisto di servizi;5;Utenze e canoni;6;Gas;16/08/2023
2431;1;9999999;6,62;499,01;DOLOMITI ENERGIA SPA;964666689C;10/08/2023;5050;0;501;1;Spese correnti;3;Acquisto di beni e servizi;2;Acquisto di servizi;5;Utenze e canoni;6;Gas;16/08/2023
2431;2;9999999;10,74;499,01;DOLOMITI ENERGIA SPA;964666689C;10/08/2023;5050;0;501;1;Spese correnti;3;Acquisto di beni e servizi;2;Acquisto di servizi;5;Utenze e canoni;6;Gas;16/08/2023
2431;3;9999999;31,4;499,01;DOLOMITI ENERGIA SPA;964666689C;10/08/2023;5050;0;501;1;Spese correnti;3;Acquisto di beni e servizi;2;Acquisto di servizi;5;Utenze e canoni;6;Gas;16/08/2023
2431;4;9999999;450,25;499,01;DOLOMITI ENERGIA SPA;964666689C;10/08/2023;5050;0;501;1;Spese correnti;3;Acquisto di beni e servizi;2;Acquisto di servizi;5;Utenze e canoni;6;Gas;16/08/2023
2432;1;9999999;56,17;167,79;DOLOMITI ENERGIA SPA;964666689C;10/08/2023;7552;1;500;1;Spese correnti;3;Acquisto di beni e servizi;2;Acquisto di servizi;5;Utenze e canoni;6;Gas;16/08/2023
2432;2;9999999;111,62;167,79;DOLOMITI ENERGIA SPA;964666689C;10/08/2023;7552;1;500;1;Spese correnti;3;Acquisto di beni e servizi;2;Acquisto di servizi;5;Utenze e canoni;6;Gas;16/08/2023
2433;1;9999999;3,75;3,75;DOLOMITI ENERGIA SPA;964666689C;10/08/2023;1346;0;499;1;Spese correnti;3;Acquisto di beni e servizi;2;Acquisto di servizi;5;Utenze e canoni;6;Gas;18/08/2023
2434;1;9999999;2,92;2,92;DOLOMITI ENERGIA SPA;964666689C;10/08/2023;6647;0;497;1;Spese correnti;3;Acquisto di beni e servizi;2;Acquisto di servizi;5;Utenze e canoni;6;Gas;16/08/2023
2435;1;9999999;84,87;84,87;DOLOMITI ENERGIA SPA;964666689C;10/08/2023;6461;0;496;1;Spese correnti;3;Acquisto di beni e servizi;2;Acquisto di servizi;5;Utenze e canoni;6;Gas;16/08/2023
2436;1;9999999;2,92;2,92;DOLOMITI ENERGIA SPA;964666689C;10/08/2023;5051;0;495;1;Spese correnti;3;Acquisto di beni e servizi;2;Acquisto di servizi;5;Utenze e canoni;6;Gas;16/08/2023
2437;1;9999999;10,77;10,77;DOLOMITI ENERGIA SPA;964666689C;10/08/2023;4686;0;494;1;Spese correnti;3;Acquisto di beni e servizi;2;Acquisto di servizi;5;Utenze e canoni;6;Gas;16/08/2023
2438;1;9999999;107,85;107,85;DOLOMITI ENERGIA SPA;964666689C;10/08/2023;4020;0;493;1;Spese correnti;3;Acquisto di beni e servizi;2;Acquisto di servizi;5;Utenze e canoni;6;Gas;16/08/2023
2439;1;9999999;28,99;371,92;DOLOMITI ENERGIA SPA;964666689C;10/08/2023;2973;0;492;1;Spese correnti;3;Acquisto di beni e servizi;2;Acquisto di servizi;5;Utenze e canoni;6;Gas;18/08/2023
2439;2;9999999;99,69;371,92;DOLOMITI ENERGIA SPA;964666689C;10/08/2023;2973;0;492;1;Spese correnti;3;Acquisto di beni e servizi;2;Acquisto di servizi;5;Utenze e canoni;6;Gas;18/08/2023
2439;3;9999999;106,2;371,92;DOLOMITI ENERGIA SPA;964666689C;10/08/2023;2973;0;492;1;Spese correnti;3;Acquisto di beni e servizi;2;Acquisto di servizi;5;Utenze e canoni;6;Gas;18/08/2023
2439;4;9999999;137,04;371,92;DOLOMITI ENERGIA SPA;964666689C;10/08/2023;2973;0;492;1;Spese correnti;3;Acquisto di beni e servizi;2;Acquisto di servizi;5;Utenze e canoni;6;Gas;18/08/2023
2440;1;9999999;84,26;84,26;DOLOMITI ENERGIA SPA;964666689C;10/08/2023;2792;0;491;1;Spese correnti;3;Acquisto di beni e servizi;2;Acquisto di servizi;5;Utenze e canoni;6;Gas;18/08/2023
2441;1;9999999;167,42;167,42;DOLOMITI ENERGIA SPA;964666689C;10/08/2023;2790;0;490;1;Spese correnti;3;Acquisto di beni e servizi;2;Acquisto di servizi;5;Utenze e canoni;6;Gas;16/08/2023
2442;1;9999999;2,92;132,52;DOLOMITI ENERGIA SPA;964666689C;10/08/2023;1801;0;489;1;Spese correnti;3;Acquisto di beni e servizi;2;Acquisto di servizi;5;Utenze e canoni;6;Gas;16/08/2023
2442;2;9999999;2,92;132,52;DOLOMITI ENERGIA SPA;964666689C;10/08/2023;1801;0;489;1;Spese correnti;3;Acquisto di beni e servizi;2;Acquisto di servizi;5;Utenze e canoni;6;Gas;16/08/2023
2442;3;9999999;3,76;132,52;DOLOMITI ENERGIA SPA;964666689C;10/08/2023;1801;0;489;1;Spese correnti;3;Acquisto di beni e servizi;2;Acquisto di servizi;5;Utenze e canoni;6;Gas;16/08/2023
2442;4;9999999;25,05;132,52;DOLOMITI ENERGIA SPA;964666689C;10/08/2023;1801;0;489;1;Spese correnti;3;Acquisto di beni e servizi;2;Acquisto di servizi;5;Utenze e canoni;6;Gas;16/08/2023
2442;5;9999999;34,44;132,52;DOLOMITI ENERGIA SPA;964666689C;10/08/2023;1801;0;489;1;Spese correnti;3;Acquisto di beni e servizi;2;Acquisto di servizi;5;Utenze e canoni;6;Gas;16/08/2023
2442;6;9999999;63,43;132,52;DOLOMITI ENERGIA SPA;964666689C;10/08/2023;1801;0;489;1;Spese correnti;3;Acquisto di beni e servizi;2;Acquisto di servizi;5;Utenze e canoni;6;Gas;16/08/2023
2443;1;9999999;43;43;AZIENDA ULSS N.2 - MARCA TREVIGIANA; ;10/08/2023;2442;0;306;1;Spese correnti;3;Acquisto di beni e servizi;2;Acquisto di servizi;99;Altri servizi;999;Altri servizi diversi n.a.c.;16/08/2023
2445;1;9999999;34.683,46;34.683,46;VILLANOVA COSTRUZIONI SRL;9487674444;21/08/2023;13215;0;1344;2;Spese in conto capitale;2;Investimenti fissi lordi e acquisto di terreni;1;Beni materiali;9;Beni immobili;3;Fabbricati ad uso scolastico;23/08/2023
2446;1;9999999;21.089,35;21.089,35;VILLANOVA COSTRUZIONI SRL;9487674444;21/08/2023;13216;0;1345;2;Spese in conto capitale;2;Investimenti fissi lordi e acquisto di terreni;1;Beni materiali;9;Beni immobili;3;Fabbricati ad uso scolastico;23/08/2023
2447;1;9999999;370.285,58;370.285,58;VILLANOVA COSTRUZIONI SRL;9487674444;21/08/2023;13216;0;1350;2;Spese in conto capitale;2;Investimenti fissi lordi e acquisto di terreni;1;Beni materiali;9;Beni immobili;3;Fabbricati ad uso scolastico;23/08/2023
2448;1;9999999;22.717,90;22.717,90;VILLANOVA COSTRUZIONI SRL;9487674444;21/08/2023;13217;0;520;2;Spese in conto capitale;2;Investimenti fissi lordi e acquisto di terreni;1;Beni materiali;9;Beni immobili;3;Fabbricati ad uso scolastico;23/08/2023
2449;1;9999999;93.079,63;93.079,63;VILLANOVA COSTRUZIONI SRL;9487674444;21/08/2023;13217;0;996;2;Spese in conto capitale;2;Investimenti fissi lordi e acquisto di terreni;1;Beni materiali;9;Beni immobili;3;Fabbricati ad uso scolastico;23/08/2023
2450;1;9999999;25.638,56;25.638,56;VILLANOVA COSTRUZIONI SRL;9487674444;21/08/2023;13217;0;1346;2;Spese in conto capitale;2;Investimenti fissi lordi e acquisto di terreni;1;Beni materiali;9;Beni immobili;3;Fabbricati ad uso scolastico;23/08/2023
2451;1;9999999;63.412,51;63.412,51;VILLANOVA COSTRUZIONI SRL;9487674444;21/08/2023;13218;0;999;2;Spese in conto capitale;2;Investimenti fissi lordi e acquisto di terreni;1;Beni materiali;9;Beni immobili;3;Fabbricati ad uso scolastico;23/08/2023
2453;1;9999999;11.294,41;11.294,41;AMMINISTRATORI COMUNALI; ;21/08/2023;74;0;141;1;Spese correnti;3;Acquisto di beni e servizi;2;Acquisto di servizi;1;Organi e incarichi istituzionali dell'amministrazione;1;Organi istituzionali dell'amministrazione - Indennità;24/08/2023
2516;1;9999999;15;15;DIPENDENTI DIVERSI (MISSIONI E RIMBORSO SPESE); ;21/08/2023;1786;0;211;1;Spese correnti;3;Acquisto di beni e servizi;2;Acquisto di servizi;2;Organizzazione eventi, pubblicita` e servizi per trasferta;1;Rimborso per viaggio e trasloco;24/08/2023
2566;1;9999999;1.825,07;1.825,07;ABACO S.P.A.;9,44E+58;29/08/2023;1010;0;1259;1;Spese correnti;3;Acquisto di beni e servizi;2;Acquisto di servizi;3;Aggi di riscossione;999;Altri aggi di riscossione n.a.c.;01/09/2023
2567;1;9999999;439,96;439,96;ABACO S.P.A.;9,44E+58;29/08/2023;1010;0;1259;1;Spese correnti;3;Acquisto di beni e servizi;2;Acquisto di servizi;3;Aggi di riscossione;999;Altri aggi di riscossione n.a.c.;01/09/2023
2568;1;9999999;250;250;EDILVERDE S.R.L.;Z82398837C;29/08/2023;1147;1;149;1;Spese correnti;3;Acquisto di beni e servizi;1;Acquisto di beni;2;Altri beni di consumo;999;Altri beni e materiali di consumo n.a.c.;01/09/2023
2569;1;9999999;900;900;SOGEST ITALIA SRL;Z08372EAAD;29/08/2023;1185;1;715;1;Spese correnti;3;Acquisto di beni e servizi;2;Acquisto di servizi;9;Manutenzione ordinaria e riparazioni;4;Manutenzione ordinaria e riparazioni di impianti e macchinari;01/09/2023
2570;1;9999999;250;250;EDILVERDE S.R.L.;Z82398837C;29/08/2023;1300;0;150;1;Spese correnti;3;Acquisto di beni e servizi;1;Acquisto di beni;2;Altri beni di consumo;999;Altri beni e materiali di consumo n.a.c.;01/09/2023
2571;1;9999999;40,48;40,48;PULITORI ED AFFINI SPA;87752258BF;29/08/2023;1794;0;656;1;Spese correnti;3;Acquisto di beni e servizi;2;Acquisto di servizi;13;Servizi ausiliari per il funzionamento dell'ente;2;Servizi di pulizia e lavanderia;01/09/2023
2572;1;9999999;453,84;453,84;SOGEST ITALIA SRL;Z08372EAAD;29/08/2023;1805;0;714;1;Spese correnti;3;Acquisto di beni e servizi;2;Acquisto di servizi;13;Servizi ausiliari per il funzionamento dell'ente;1;Servizi di sorveglianza, custodia e accoglienza;01/09/2023
2573;1;9999999;1.683,52;1.683,52;SOGEST ITALIA SRL;Z08372EAAD;29/08/2023;1805;0;714;1;Spese correnti;3;Acquisto di beni e servizi;2;Acquisto di servizi;13;Servizi ausiliari per il funzionamento dell'ente;1;Servizi di sorveglianza, custodia e accoglienza;01/09/2023
2574;1;9999999;1.100,00;1.100,00;"ASSOCIAZIONE ""NUSICA.ORG"" DI TREVISO";Z353BE2277;29/08/2023;4710;0;646;1;Spese correnti;3;Acquisto di beni e servizi;2;Acquisto di servizi;99;Altri servizi;999;Altri servizi diversi n.a.c.;01/09/2023
2575;1;9999999;275,09;275,09;EDILVERDE S.R.L.;Z82398837C;29/08/2023;5620;2;148;1;Spese correnti;3;Acquisto di beni e servizi;1;Acquisto di beni;2;Altri beni di consumo;999;Altri beni e materiali di consumo n.a.c.;01/09/2023
2576;1;9999999;250;250;EDILVERDE S.R.L.;Z82398837C;29/08/2023;5640;0;151;1;Spese correnti;3;Acquisto di beni e servizi;1;Acquisto di beni;2;Altri beni di consumo;999;Altri beni e materiali di consumo n.a.c.;01/09/2023
2577;1;9999999;268,4;268,4;TAILORSAN SPA;ZEF3BCA91D;29/08/2023;5750;0;663;1;Spese correnti;3;Acquisto di beni e servizi;2;Acquisto di servizi;7;Utilizzo di beni di terzi;999;Altre spese sostenute per utilizzo di beni di terzi n.a.c.;01/09/2023
2578;1;9999999;3.712,75;3.712,75;REKEEP SPA;Z9834FDE00;29/08/2023;7485;0;230;1;Spese correnti;3;Acquisto di beni e servizi;2;Acquisto di servizi;11;Prestazioni professionali e specialistiche;999;Altre prestazioni professionali e specialistiche n.a.c.;01/09/2023
2579;1;9999999;-1.715,99;2.024,08;SERENISSIMA RISTORAZIONE SPA;932853027C;29/08/2023;7553;1;733;1;Spese correnti;3;Acquisto di beni e servizi;2;Acquisto di servizi;15;Contratti di servizio pubblico;6;Contratti di servizio per le mense scolastiche;01/09/2023
2579;2;9999999;-1.181,99;2.024,08;SERENISSIMA RISTORAZIONE SPA;932853027C;29/08/2023;7553;1;733;1;Spese correnti;3;Acquisto di beni e servizi;2;Acquisto di servizi;15;Contratti di servizio pubblico;6;Contratti di servizio per le mense scolastiche;01/09/2023
2579;3;9999999;250,49;2.024,08;SERENISSIMA RISTORAZIONE SPA;932853027C;29/08/2023;7553;1;733;1;Spese correnti;3;Acquisto di beni e servizi;2;Acquisto di servizi;15;Contratti di servizio pubblico;6;Contratti di servizio per le mense scolastiche;01/09/2023
2579;4;9999999;1.905,38;2.024,08;SERENISSIMA RISTORAZIONE SPA;932853027C;29/08/2023;7553;1;733;1;Spese correnti;3;Acquisto di beni e servizi;2;Acquisto di servizi;15;Contratti di servizio pubblico;6;Contratti di servizio per le mense scolastiche;01/09/2023
2579;5;9999999;2.766,19;2.024,08;SERENISSIMA RISTORAZIONE SPA;932853027C;29/08/2023;7553;1;733;1;Spese correnti;3;Acquisto di beni e servizi;2;Acquisto di servizi;15;Contratti di servizio pubblico;6;Contratti di servizio per le mense scolastiche;01/09/2023
2580;1;9999999;17.463,49;17.463,49;GB IMPIANTI DI BETTIOL GIANFRANCO;Z8939F54A5;29/08/2023;13451;0;944;2;Spese in conto capitale;2;Investimenti fissi lordi e acquisto di terreni;1;Beni materiali;9;Beni immobili;3;Fabbricati ad uso scolastico;01/09/2023
2581;1;9999999;11.880,00;11.880,00;FUTURA IMPIANTI di PAVANETTO CRISTIAN;Z903BE838C;29/08/2023;13451;0;944;2;Spese in conto capitale;2;Investimenti fissi lordi e acquisto di terreni;1;Beni materiali;9;Beni immobili;3;Fabbricati ad uso scolastico;01/09/2023
2582;1;9999999;808,5;808,5;GB IMPIANTI DI BETTIOL GIANFRANCO;Z8939F54A5;29/08/2023;13451;0;944;2;Spese in conto capitale;2;Investimenti fissi lordi e acquisto di terreni;1;Beni materiali;9;Beni immobili;3;Fabbricati ad uso scolastico;01/09/2023
2583;1;9999999;3.000,00;3.000,00;MINISTERO DELL'AMBIENTE E DELLA TUTELA DEL TERRITORIO E DEL MARE; ;29/08/2023;7459;0;684;1;Spese correnti;4;Trasferimenti correnti;1;Trasferimenti correnti a Amministrazioni Pubbliche;1;Trasferimenti correnti a Amministrazioni Centrali;1;Trasferimenti correnti a Ministeri;01/09/2023
2584;1;9999999;1.291,00;1.291,00;CENTRO STUDI AMM.VI M.T.; ;29/08/2023;1030;0;686;1;Spese correnti;3;Acquisto di beni e servizi;2;Acquisto di servizi;99;Altri servizi;3;Quote di associazioni;01/09/2023
2586;1;9999999;33.200,00;33.200,00;ISTITUTO COMPRENSIVO STATALE DI PREGANZIOL; ;29/08/2023;4442;0;693;1;Spese correnti;4;Trasferimenti correnti;1;Trasferimenti correnti a Amministrazioni Pubbliche;2;Trasferimenti correnti a Amministrazioni Locali;999;Trasferimenti correnti a altre Amministrazioni Locali n.a.c.;01/09/2023
2587;1;9999999;336,43;336,43;OMESSO NOMINATIVO NEL RISPETTO DELLA NORMATIVA SULLA PROTEZIONE DATI PERSONALI; ;29/08/2023;8361;2;714;1;Spese correnti;4;Trasferimenti correnti;4;Trasferimenti correnti a Istituzioni Sociali Private;1;Trasferimenti correnti a Istituzioni Sociali Private;1;Trasferimenti correnti a Istituzioni Sociali Private;01/09/2023
2588;1;9999999;224,62;224,62;OMESSO NOMINATIVO NEL RISPETTO DELLA NORMATIVA SULLA PROTEZIONE DATI PERSONALI; ;29/08/2023;8361;2;713;1;Spese correnti;4;Trasferimenti correnti;4;Trasferimenti correnti a Istituzioni Sociali Private;1;Trasferimenti correnti a Istituzioni Sociali Private;1;Trasferimenti correnti a Istituzioni Sociali Private;01/09/2023
2589;1;9999999;1.502,15;1.502,15;OMESSO NOMINATIVO NEL RISPETTO DELLA NORMATIVA SULLA PROTEZIONE DATI PERSONALI; ;29/08/2023;8394;1;715;1;Spese correnti;4;Trasferimenti correnti;2;Trasferimenti correnti a Famiglie;2;Interventi assistenziali;999;Altri assegni e sussidi assistenziali;01/09/2023
2590;1;9999999;9,18;9,18;COMUNE DI PADOVA; ;29/08/2023;675;0;716;1;Spese correnti;3;Acquisto di beni e servizi;2;Acquisto di servizi;16;Servizi amministrativi;2;Spese postali;01/09/2023
2591;1;9999999;5,88;5,88;COMUNE DI MILANO - SERVIZIO MESSI; ;29/08/2023;675;0;716;1;Spese correnti;3;Acquisto di beni e servizi;2;Acquisto di servizi;16;Servizi amministrativi;2;Spese postali;01/09/2023
2592;1;9999999;23,52;23,52;COMUNE DI CARBONERA; ;29/08/2023;675;0;716;1;Spese correnti;3;Acquisto di beni e servizi;2;Acquisto di servizi;16;Servizi amministrativi;2;Spese postali;01/09/2023
2593;1;9999999;10,55;10,55;COMUNE DI MIRANO; ;29/08/2023;675;0;716;1;Spese correnti;3;Acquisto di beni e servizi;2;Acquisto di servizi;16;Servizi amministrativi;2;Spese postali;01/09/2023
2594;1;9999999;9,88;9,88;COMUNE DI VENEZIA; ;29/08/2023;675;0;716;1;Spese correnti;3;Acquisto di beni e servizi;2;Acquisto di servizi;16;Servizi amministrativi;2;Spese postali;01/09/2023
2595;1;9999999;270;270;OMESSO NOMINATIVO NEL RISPETTO DELLA NORMATIVA SULLA PROTEZIONE DATI PERSONALI; ;29/08/2023;8361;0;692;1;Spese correnti;4;Trasferimenti correnti;2;Trasferimenti correnti a Famiglie;2;Interventi assistenziali;999;Altri assegni e sussidi assistenziali;01/09/2023
2596;1;9999999;300;300;OMESSO NOMINATIVO NEL RISPETTO DELLA NORMATIVA SULLA PROTEZIONE DATI PERSONALI; ;29/08/2023;7462;0;685;1;Spese correnti;4;Trasferimenti correnti;2;Trasferimenti correnti a Famiglie;5;Altri trasferimenti a famiglie;999;Altri trasferimenti a famiglie n.a.c.;01/09/2023
2597;1;9999999;300;300;OMESSO NOMINATIVO NEL RISPETTO DELLA NORMATIVA SULLA PROTEZIONE DATI PERSONALI; ;29/08/2023;7462;0;685;1;Spese correnti;4;Trasferimenti correnti;2;Trasferimenti correnti a Famiglie;5;Altri trasferimenti a famiglie;999;Altri trasferimenti a famiglie n.a.c.;01/09/2023
2598;1;9999999;300;300;OMESSO NOMINATIVO NEL RISPETTO DELLA NORMATIVA SULLA PROTEZIONE DATI PERSONALI; ;29/08/2023;7462;0;685;1;Spese correnti;4;Trasferimenti correnti;2;Trasferimenti correnti a Famiglie;5;Altri trasferimenti a famiglie;999;Altri trasferimenti a famiglie n.a.c.;01/09/2023
2599;1;9999999;2.304,79;2.304,79;TELECOM ITALIA S.P.A.;9,29E+10;29/08/2023;1801;1;610;1;Spese correnti;3;Acquisto di beni e servizi;2;Acquisto di servizi;5;Utenze e canoni;999;Utenze e canoni per altri servizi n.a.c.;01/09/2023
2600;1;9999999;488,32;488,32;TELECOM ITALIA S.P.A.;Z523435997;29/08/2023;1801;1;430;1;Spese correnti;3;Acquisto di beni e servizi;2;Acquisto di servizi;5;Utenze e canoni;2;Telefonia mobile;01/09/2023
2601;1;9999999;442,88;442,88;TELECOM ITALIA S.P.A.;9,29E+10;29/08/2023;2790;1;613;1;Spese correnti;3;Acquisto di beni e servizi;2;Acquisto di servizi;5;Utenze e canoni;999;Utenze e canoni per altri servizi n.a.c.;01/09/2023
2602;1;9999999;132,88;132,88;TELECOM ITALIA S.P.A.;9,29E+10;29/08/2023;2792;1;611;1;Spese correnti;3;Acquisto di beni e servizi;2;Acquisto di servizi;5;Utenze e canoni;999;Utenze e canoni per altri servizi n.a.c.;01/09/2023
2603;1;9999999;1.841,43;1.841,43;TELECOM ITALIA S.P.A.;9,29E+10;29/08/2023;2973;1;612;1;Spese correnti;3;Acquisto di beni e servizi;2;Acquisto di servizi;5;Utenze e canoni;999;Utenze e canoni per altri servizi n.a.c.;01/09/2023
2604;1;9999999;151,04;151,04;TELECOM ITALIA S.P.A.;9,29E+10;29/08/2023;6642;0;838;1;Spese correnti;3;Acquisto di beni e servizi;2;Acquisto di servizi;5;Utenze e canoni;1;Telefonia fissa;01/09/2023
2605;1;9999999;16.139,78;16.139,78;CERVI ALESSANDRO;9187110302;29/08/2023;11302;3;1380;2;Spese in conto capitale;2;Investimenti fissi lordi e acquisto di terreni;1;Beni materiali;9;Beni immobili;19;Fabbricati ad uso strumentale;01/09/2023
2606;1;9999999;1.440,00;1.440,00;OMESSO NOMINATIVO NEL RISPETTO DELLA NORMATIVA SULLA PROTEZIONE DATI PERSONALI; ;29/08/2023;9445;0;1074;1;Spese correnti;4;Trasferimenti correnti;3;Trasferimenti correnti a Imprese;99;Trasferimenti correnti a altre imprese;999;Trasferimenti correnti a altre imprese;01/09/2023
2607;1;9999999;5.526,40;5.526,40;OMESSO NOMINATIVO NEL RISPETTO DELLA NORMATIVA SULLA PROTEZIONE DATI PERSONALI; ;29/08/2023;9445;0;1074;1;Spese correnti;4;Trasferimenti correnti;3;Trasferimenti correnti a Imprese;99;Trasferimenti correnti a altre imprese;999;Trasferimenti correnti a altre imprese;01/09/2023
2608;1;9999999;1.408,03;1.408,03;GETEC ITALIA SPA;Z9834FDE00;29/08/2023;7485;0;232;1;Spese correnti;3;Acquisto di beni e servizi;2;Acquisto di servizi;11;Prestazioni professionali e specialistiche;999;Altre prestazioni professionali e specialistiche n.a.c.;01/09/2023
2609;1;9999999;65.565,87;65.565,87;IFAF SPA - IMPRESA FACCHETTI ADOLFO E FIGLI;97606539A8;29/08/2023;15905;3;1211;2;Spese in conto capitale;2;Investimenti fissi lordi e acquisto di terreni;1;Beni materiali;9;Beni immobili;12;Infrastrutture stradali;01/09/2023
2610;1;9999999;20.730,55;20.730,55;IFAF SPA - IMPRESA FACCHETTI ADOLFO E FIGLI;97606539A8;29/08/2023;15905;17;1214;2;Spese in conto capitale;2;Investimenti fissi lordi e acquisto di terreni;1;Beni materiali;9;Beni immobili;12;Infrastrutture stradali;01/09/2023
2611;1;9999999;1.258,40;1.258,40;COMUNE DI MOGLIANO VENETO; ;29/08/2023;2452;1;307;1;Spese correnti;4;Trasferimenti correnti;1;Trasferimenti correnti a Amministrazioni Pubbliche;2;Trasferimenti correnti a Amministrazioni Locali;3;Trasferimenti correnti a Comuni;01/09/2023
2612;1;9999999;9.274,92;9.274,92;AZIENDA ULSS N.2 - MARCA TREVIGIANA; ;30/08/2023;8360;0;719;1;Spese correnti;4;Trasferimenti correnti;1;Trasferimenti correnti a Amministrazioni Pubbliche;2;Trasferimenti correnti a Amministrazioni Locali;20;Trasferimenti correnti a Aziende sanitarie locali  a titolo di finanziamento del servizio sanitario nazionale;01/09/2023
2613;1;9999999;335,45;335,45;CREMONESE IVANO - CARTOLERIA SERVICE POINT;Z6E3BDD4AF;30/08/2023;4147;0;659;1;Spese correnti;3;Acquisto di beni e servizi;1;Acquisto di beni;2;Altri beni di consumo;999;Altri beni e materiali di consumo n.a.c.;01/09/2023
2614;1;9999999;12.064,77;12.064,77;CODESS SOCIALE-COOP. ONLUS;8855832FBD;30/08/2023;7560;1;771;1;Spese correnti;3;Acquisto di beni e servizi;2;Acquisto di servizi;15;Contratti di servizio pubblico;10;Contratti di servizio di asilo nido;01/09/2023
2615;1;9999999;8.802,80;8.802,80;CODESS SOCIALE-COOP. ONLUS;8855832FBD;30/08/2023;7560;1;771;1;Spese correnti;3;Acquisto di beni e servizi;2;Acquisto di servizi;15;Contratti di servizio pubblico;10;Contratti di servizio di asilo nido;01/09/2023
2616;1;9999999;8.954,05;8.954,05;ASSOCIAZIONE COMUNI MARCA TREVIGIANA; ;30/08/2023;4261;2;1019;1;Spese correnti;3;Acquisto di beni e servizi;2;Acquisto di servizi;99;Altri servizi;999;Altri servizi diversi n.a.c.;01/09/2023
2617;1;9999999;267,67;267,67;OMESSO NOMINATIVO NEL RISPETTO DELLA NORMATIVA SULLA PROTEZIONE DATI PERSONALI; ;30/08/2023;74;0;695;1;Spese correnti;3;Acquisto di beni e servizi;2;Acquisto di servizi;1;Organi e incarichi istituzionali dell'amministrazione;1;Organi istituzionali dell'amministrazione - Indennità;01/09/2023
2618;1;9999999;370,62;370,62;OMESSO NOMINATIVO NEL RISPETTO DELLA NORMATIVA SULLA PROTEZIONE DATI PERSONALI; ;30/08/2023;74;0;696;1;Spese correnti;3;Acquisto di beni e servizi;2;Acquisto di servizi;1;Organi e incarichi istituzionali dell'amministrazione;1;Organi istituzionali dell'amministrazione - Indennità;01/09/2023
2619;1;9999999;247,08;247,08;OMESSO NOMINATIVO NEL RISPETTO DELLA NORMATIVA SULLA PROTEZIONE DATI PERSONALI; ;30/08/2023;74;0;697;1;Spese correnti;3;Acquisto di beni e servizi;2;Acquisto di servizi;1;Organi e incarichi istituzionali dell'amministrazione;1;Organi istituzionali dell'amministrazione - Indennità;01/09/2023
2620;1;9999999;205,9;205,9;OMESSO NOMINATIVO NEL RISPETTO DELLA NORMATIVA SULLA PROTEZIONE DATI PERSONALI; ;30/08/2023;74;0;698;1;Spese correnti;3;Acquisto di beni e servizi;2;Acquisto di servizi;1;Organi e incarichi istituzionali dell'amministrazione;1;Organi istituzionali dell'amministrazione - Indennità;01/09/2023
2621;1;9999999;247,08;247,08;OMESSO NOMINATIVO NEL RISPETTO DELLA NORMATIVA SULLA PROTEZIONE DATI PERSONALI; ;30/08/2023;74;0;699;1;Spese correnti;3;Acquisto di beni e servizi;2;Acquisto di servizi;1;Organi e incarichi istituzionali dell'amministrazione;1;Organi istituzionali dell'amministrazione - Indennità;01/09/2023
2622;1;9999999;350,03;350,03;OMESSO NOMINATIVO NEL RISPETTO DELLA NORMATIVA SULLA PROTEZIONE DATI PERSONALI; ;30/08/2023;74;0;700;1;Spese correnti;3;Acquisto di beni e servizi;2;Acquisto di servizi;1;Organi e incarichi istituzionali dell'amministrazione;1;Organi istituzionali dell'amministrazione - Indennità;01/09/2023
2623;1;9999999;205,9;205,9;OMESSO NOMINATIVO NEL RISPETTO DELLA NORMATIVA SULLA PROTEZIONE DATI PERSONALI; ;30/08/2023;74;0;701;1;Spese correnti;3;Acquisto di beni e servizi;2;Acquisto di servizi;1;Organi e incarichi istituzionali dell'amministrazione;1;Organi istituzionali dell'amministrazione - Indennità;01/09/2023
2624;1;9999999;267,67;267,67;OMESSO NOMINATIVO NEL RISPETTO DELLA NORMATIVA SULLA PROTEZIONE DATI PERSONALI; ;30/08/2023;74;0;702;1;Spese correnti;3;Acquisto di beni e servizi;2;Acquisto di servizi;1;Organi e incarichi istituzionali dell'amministrazione;1;Organi istituzionali dell'amministrazione - Indennità;01/09/2023
2625;1;9999999;144,13;144,13;OMESSO NOMINATIVO NEL RISPETTO DELLA NORMATIVA SULLA PROTEZIONE DATI PERSONALI; ;30/08/2023;74;0;703;1;Spese correnti;3;Acquisto di beni e servizi;2;Acquisto di servizi;1;Organi e incarichi istituzionali dell'amministrazione;1;Organi istituzionali dell'amministrazione - Indennità;01/09/2023
2626;1;9999999;267,67;267,67;OMESSO NOMINATIVO NEL RISPETTO DELLA NORMATIVA SULLA PROTEZIONE DATI PERSONALI; ;30/08/2023;74;0;704;1;Spese correnti;3;Acquisto di beni e servizi;2;Acquisto di servizi;1;Organi e incarichi istituzionali dell'amministrazione;1;Organi istituzionali dell'amministrazione - Indennità;01/09/2023
2627;1;9999999;308,85;308,85;OMESSO NOMINATIVO NEL RISPETTO DELLA NORMATIVA SULLA PROTEZIONE DATI PERSONALI; ;30/08/2023;74;0;705;1;Spese correnti;3;Acquisto di beni e servizi;2;Acquisto di servizi;1;Organi e incarichi istituzionali dell'amministrazione;1;Organi istituzionali dell'amministrazione - Indennità;01/09/2023
2628;1;9999999;61,77;61,77;OMESSO NOMINATIVO NEL RISPETTO DELLA NORMATIVA SULLA PROTEZIONE DATI PERSONALI; ;30/08/2023;74;0;706;1;Spese correnti;3;Acquisto di beni e servizi;2;Acquisto di servizi;1;Organi e incarichi istituzionali dell'amministrazione;1;Organi istituzionali dell'amministrazione - Indennità;01/09/2023
2629;1;9999999;226,49;226,49;OMESSO NOMINATIVO NEL RISPETTO DELLA NORMATIVA SULLA PROTEZIONE DATI PERSONALI; ;30/08/2023;74;0;707;1;Spese correnti;3;Acquisto di beni e servizi;2;Acquisto di servizi;1;Organi e incarichi istituzionali dell'amministrazione;1;Organi istituzionali dell'amministrazione - Indennità;01/09/2023
2630;1;9999999;267,67;267,67;OMESSO NOMINATIVO NEL RISPETTO DELLA NORMATIVA SULLA PROTEZIONE DATI PERSONALI; ;30/08/2023;74;0;708;1;Spese correnti;3;Acquisto di beni e servizi;2;Acquisto di servizi;1;Organi e incarichi istituzionali dell'amministrazione;1;Organi istituzionali dell'amministrazione - Indennità;01/09/2023
2631;1;9999999;267,67;267,67;OMESSO NOMINATIVO NEL RISPETTO DELLA NORMATIVA SULLA PROTEZIONE DATI PERSONALI; ;30/08/2023;74;0;709;1;Spese correnti;3;Acquisto di beni e servizi;2;Acquisto di servizi;1;Organi e incarichi istituzionali dell'amministrazione;1;Organi istituzionali dell'amministrazione - Indennità;01/09/2023
2632;1;9999999;267,67;267,67;OMESSO NOMINATIVO NEL RISPETTO DELLA NORMATIVA SULLA PROTEZIONE DATI PERSONALI; ;30/08/2023;74;0;710;1;Spese correnti;3;Acquisto di beni e servizi;2;Acquisto di servizi;1;Organi e incarichi istituzionali dell'amministrazione;1;Organi istituzionali dell'amministrazione - Indennità;01/09/2023
2633;1;9999999;2.564,20;2.564,20;CONTARINA S.P.A.; ;30/08/2023;2347;1;268;1;Spese correnti;3;Acquisto di beni e servizi;2;Acquisto di servizi;9;Manutenzione ordinaria e riparazioni;11;Manutenzione ordinaria e riparazioni di altri beni materiali;01/09/2023
2634;1;9999999;497,04;497,04;AMICI DEL CANE RANCH DI ZAMPARIOLO GABRIELLA;756846708D;30/08/2023;2450;0;313;1;Spese correnti;4;Trasferimenti correnti;4;Trasferimenti correnti a Istituzioni Sociali Private;1;Trasferimenti correnti a Istituzioni Sociali Private;1;Trasferimenti correnti a Istituzioni Sociali Private;01/09/2023
2636;1;9999999;211,46;211,46;CONSORZIO DI BONIFICA ACQUE RISORGIVE; ;31/08/2023;5800;0;926;1;Spese correnti;3;Acquisto di beni e servizi;2;Acquisto di servizi;7;Utilizzo di beni di terzi;999;Altre spese sostenute per utilizzo di beni di terzi n.a.c.;04/09/2023
2637;1;9999999;3,69;3,69;CONSORZIO DI BONIFICA ACQUE RISORGIVE; ;31/08/2023;5800;0;722;1;Spese correnti;3;Acquisto di beni e servizi;2;Acquisto di servizi;7;Utilizzo di beni di terzi;999;Altre spese sostenute per utilizzo di beni di terzi n.a.c.;04/09/2023
2638;1;9999999;211,46;211,46;CONSORZIO DI BONIFICA ACQUE RISORGIVE; ;31/08/2023;5800;0;927;1;Spese correnti;3;Acquisto di beni e servizi;2;Acquisto di servizi;7;Utilizzo di beni di terzi;999;Altre spese sostenute per utilizzo di beni di terzi n.a.c.;04/09/2023
2639;1;9999999;3,69;3,69;CONSORZIO DI BONIFICA ACQUE RISORGIVE; ;31/08/2023;5800;0;723;1;Spese correnti;3;Acquisto di beni e servizi;2;Acquisto di servizi;7;Utilizzo di beni di terzi;999;Altre spese sostenute per utilizzo di beni di terzi n.a.c.;04/09/2023
2640;1;9999999;211,46;211,46;CONSORZIO DI BONIFICA ACQUE RISORGIVE; ;31/08/2023;5800;0;928;1;Spese correnti;3;Acquisto di beni e servizi;2;Acquisto di servizi;7;Utilizzo di beni di terzi;999;Altre spese sostenute per utilizzo di beni di terzi n.a.c.;04/09/2023
2641;1;9999999;3,69;3,69;CONSORZIO DI BONIFICA ACQUE RISORGIVE; ;31/08/2023;5800;0;724;1;Spese correnti;3;Acquisto di beni e servizi;2;Acquisto di servizi;7;Utilizzo di beni di terzi;999;Altre spese sostenute per utilizzo di beni di terzi n.a.c.;04/09/2023
2642;1;9999999;211,46;211,46;CONSORZIO DI BONIFICA ACQUE RISORGIVE; ;31/08/2023;5800;0;929;1;Spese correnti;3;Acquisto di beni e servizi;2;Acquisto di servizi;7;Utilizzo di beni di terzi;999;Altre spese sostenute per utilizzo di beni di terzi n.a.c.;04/09/2023
2643;1;9999999;3,69;3,69;CONSORZIO DI BONIFICA ACQUE RISORGIVE; ;31/08/2023;5800;0;725;1;Spese correnti;3;Acquisto di beni e servizi;2;Acquisto di servizi;7;Utilizzo di beni di terzi;999;Altre spese sostenute per utilizzo di beni di terzi n.a.c.;04/09/2023
2644;1;9999999;211,46;211,46;CONSORZIO DI BONIFICA ACQUE RISORGIVE; ;31/08/2023;5800;0;930;1;Spese correnti;3;Acquisto di beni e servizi;2;Acquisto di servizi;7;Utilizzo di beni di terzi;999;Altre spese sostenute per utilizzo di beni di terzi n.a.c.;04/09/2023
2645;1;9999999;3,69;3,69;CONSORZIO DI BONIFICA ACQUE RISORGIVE; ;31/08/2023;5800;0;726;1;Spese correnti;3;Acquisto di beni e servizi;2;Acquisto di servizi;7;Utilizzo di beni di terzi;999;Altre spese sostenute per utilizzo di beni di terzi n.a.c.;04/09/2023
2646;1;9999999;211,46;211,46;CONSORZIO DI BONIFICA ACQUE RISORGIVE; ;31/08/2023;5800;0;931;1;Spese correnti;3;Acquisto di beni e servizi;2;Acquisto di servizi;7;Utilizzo di beni di terzi;999;Altre spese sostenute per utilizzo di beni di terzi n.a.c.;04/09/2023
2647;1;9999999;211,46;211,46;CONSORZIO DI BONIFICA ACQUE RISORGIVE; ;31/08/2023;5800;0;932;1;Spese correnti;3;Acquisto di beni e servizi;2;Acquisto di servizi;7;Utilizzo di beni di terzi;999;Altre spese sostenute per utilizzo di beni di terzi n.a.c.;04/09/2023
2648;1;9999999;3,69;3,69;CONSORZIO DI BONIFICA ACQUE RISORGIVE; ;31/08/2023;5800;0;727;1;Spese correnti;3;Acquisto di beni e servizi;2;Acquisto di servizi;7;Utilizzo di beni di terzi;999;Altre spese sostenute per utilizzo di beni di terzi n.a.c.;04/09/2023
2649;1;9999999;3,69;3,69;CONSORZIO DI BONIFICA ACQUE RISORGIVE; ;31/08/2023;5800;0;728;1;Spese correnti;3;Acquisto di beni e servizi;2;Acquisto di servizi;7;Utilizzo di beni di terzi;999;Altre spese sostenute per utilizzo di beni di terzi n.a.c.;04/09/2023
2650;1;9999999;105,73;105,73;CONSORZIO DI BONIFICA ACQUE RISORGIVE; ;31/08/2023;5800;0;933;1;Spese correnti;3;Acquisto di beni e servizi;2;Acquisto di servizi;7;Utilizzo di beni di terzi;999;Altre spese sostenute per utilizzo di beni di terzi n.a.c.;04/09/2023
2651;1;9999999;1,85;1,85;CONSORZIO DI BONIFICA ACQUE RISORGIVE; ;31/08/2023;5800;0;729;1;Spese correnti;3;Acquisto di beni e servizi;2;Acquisto di servizi;7;Utilizzo di beni di terzi;999;Altre spese sostenute per utilizzo di beni di terzi n.a.c.;04/09/2023
2652;1;9999999;211,46;211,46;CONSORZIO DI BONIFICA ACQUE RISORGIVE; ;31/08/2023;5800;0;934;1;Spese correnti;3;Acquisto di beni e servizi;2;Acquisto di servizi;7;Utilizzo di beni di terzi;999;Altre spese sostenute per utilizzo di beni di terzi n.a.c.;04/09/2023
2653;1;9999999;3,69;3,69;CONSORZIO DI BONIFICA ACQUE RISORGIVE; ;31/08/2023;5800;0;730;1;Spese correnti;3;Acquisto di beni e servizi;2;Acquisto di servizi;7;Utilizzo di beni di terzi;999;Altre spese sostenute per utilizzo di beni di terzi n.a.c.;04/09/2023
2654;1;9999999;211,46;211,46;CONSORZIO DI BONIFICA ACQUE RISORGIVE; ;31/08/2023;5800;0;935;1;Spese correnti;3;Acquisto di beni e servizi;2;Acquisto di servizi;7;Utilizzo di beni di terzi;999;Altre spese sostenute per utilizzo di beni di terzi n.a.c.;04/09/2023
2655;1;9999999;3,69;3,69;CONSORZIO DI BONIFICA ACQUE RISORGIVE; ;31/08/2023;5800;0;731;1;Spese correnti;3;Acquisto di beni e servizi;2;Acquisto di servizi;7;Utilizzo di beni di terzi;999;Altre spese sostenute per utilizzo di beni di terzi n.a.c.;04/09/2023
2656;1;9999999;211,46;211,46;CONSORZIO DI BONIFICA ACQUE RISORGIVE; ;31/08/2023;5800;0;936;1;Spese correnti;3;Acquisto di beni e servizi;2;Acquisto di servizi;7;Utilizzo di beni di terzi;999;Altre spese sostenute per utilizzo di beni di terzi n.a.c.;04/09/2023
2657;1;9999999;3,69;3,69;CONSORZIO DI BONIFICA ACQUE RISORGIVE; ;31/08/2023;5800;0;732;1;Spese correnti;3;Acquisto di beni e servizi;2;Acquisto di servizi;7;Utilizzo di beni di terzi;999;Altre spese sostenute per utilizzo di beni di terzi n.a.c.;04/09/2023
2658;1;9999999;105,72;105,72;CONSORZIO DI BONIFICA ACQUE RISORGIVE; ;31/08/2023;5800;0;937;1;Spese correnti;3;Acquisto di beni e servizi;2;Acquisto di servizi;7;Utilizzo di beni di terzi;999;Altre spese sostenute per utilizzo di beni di terzi n.a.c.;04/09/2023
2659;1;9999999;1,84;1,84;CONSORZIO DI BONIFICA ACQUE RISORGIVE; ;31/08/2023;5800;0;733;1;Spese correnti;3;Acquisto di beni e servizi;2;Acquisto di servizi;7;Utilizzo di beni di terzi;999;Altre spese sostenute per utilizzo di beni di terzi n.a.c.;04/09/2023
2660;1;9999999;4.980,00;4.980,00;OMESSO NOMINATIVO NEL RISPETTO DELLA NORMATIVA SULLA PROTEZIONE DATI PERSONALI;Z293B85C9B;31/08/2023;4710;0;542;1;Spese correnti;3;Acquisto di beni e servizi;2;Acquisto di servizi;99;Altri servizi;999;Altri servizi diversi n.a.c.;04/09/2023
2662;1;9999999;1.998,38;1.998,38;ABACO S.P.A.;9,44E+58;31/08/2023;1010;0;1259;1;Spese correnti;3;Acquisto di beni e servizi;2;Acquisto di servizi;3;Aggi di riscossione;999;Altri aggi di riscossione n.a.c.;04/09/2023
2663;1;9999999;330,55;330,55;ASS. AUSER 'PRATO GANZOLO'; ;04/09/2023;695;0;741;1;Spese correnti;4;Trasferimenti correnti;4;Trasferimenti correnti a Istituzioni Sociali Private;1;Trasferimenti correnti a Istituzioni Sociali Private;1;Trasferimenti correnti a Istituzioni Sociali Private;06/09/2023
2668;1;9999999;939,4;939,4;Velocar S.r.l.;ZC33B14325;04/09/2023;2344;1;518;1;Spese correnti;3;Acquisto di beni e servizi;2;Acquisto di servizi;9;Manutenzione ordinaria e riparazioni;5;Manutenzione ordinaria e riparazioni di attrezzature;06/09/2023
2669;1;9999999;114,69;114,69;ENEL ENERGIA SPA;9619395FDC;06/09/2023;1346;0;482;1;Spese correnti;3;Acquisto di beni e servizi;2;Acquisto di servizi;5;Utenze e canoni;4;Energia elettrica;11/09/2023
2670;1;9999999;44,7;6.959,75;ENEL ENERGIA SPA;9619395FDC;06/09/2023;1801;0;483;1;Spese correnti;3;Acquisto di beni e servizi;2;Acquisto di servizi;5;Utenze e canoni;4;Energia elettrica;08/09/2023
2670;2;9999999;158,67;6.959,75;ENEL ENERGIA SPA;9619395FDC;06/09/2023;1801;0;483;1;Spese correnti;3;Acquisto di beni e servizi;2;Acquisto di servizi;5;Utenze e canoni;4;Energia elettrica;08/09/2023
2670;3;9999999;338,25;6.959,75;ENEL ENERGIA SPA;9619395FDC;06/09/2023;1801;0;483;1;Spese correnti;3;Acquisto di beni e servizi;2;Acquisto di servizi;5;Utenze e canoni;4;Energia elettrica;08/09/2023
2670;4;9999999;703,04;6.959,75;ENEL ENERGIA SPA;9619395FDC;06/09/2023;1801;0;483;1;Spese correnti;3;Acquisto di beni e servizi;2;Acquisto di servizi;5;Utenze e canoni;4;Energia elettrica;08/09/2023
2670;5;9999999;811,43;6.959,75;ENEL ENERGIA SPA;9619395FDC;06/09/2023;1801;0;483;1;Spese correnti;3;Acquisto di beni e servizi;2;Acquisto di servizi;5;Utenze e canoni;4;Energia elettrica;08/09/2023
2670;6;9999999;4.903,66;6.959,75;ENEL ENERGIA SPA;9619395FDC;06/09/2023;1801;0;483;1;Spese correnti;3;Acquisto di beni e servizi;2;Acquisto di servizi;5;Utenze e canoni;4;Energia elettrica;08/09/2023
2671;1;9999999;174,73;174,73;ENEL ENERGIA SPA;Z5A3AB0AFF;06/09/2023;2790;0;641;1;Spese correnti;3;Acquisto di beni e servizi;2;Acquisto di servizi;5;Utenze e canoni;4;Energia elettrica;08/09/2023
2672;1;9999999;119,84;256,94;ENEL ENERGIA SPA;9619395FDC;06/09/2023;2973;0;484;1;Spese correnti;3;Acquisto di beni e servizi;2;Acquisto di servizi;5;Utenze e canoni;4;Energia elettrica;08/09/2023
2672;2;9999999;137,1;256,94;ENEL ENERGIA SPA;9619395FDC;06/09/2023;2973;0;484;1;Spese correnti;3;Acquisto di beni e servizi;2;Acquisto di servizi;5;Utenze e canoni;4;Energia elettrica;08/09/2023
2673;1;9999999;121,02;121,02;ENEL ENERGIA SPA;Z5A3AB0AFF;06/09/2023;2973;0;640;1;Spese correnti;3;Acquisto di beni e servizi;2;Acquisto di servizi;5;Utenze e canoni;4;Energia elettrica;08/09/2023
2674;1;9999999;1.162,90;1.162,90;ENEL ENERGIA SPA;9619395FDC;06/09/2023;4527;0;485;1;Spese correnti;3;Acquisto di beni e servizi;2;Acquisto di servizi;5;Utenze e canoni;4;Energia elettrica;11/09/2023
2675;1;9999999;59,99;59,99;ENEL ENERGIA SPA;9619395FDC;06/09/2023;4686;1;486;1;Spese correnti;3;Acquisto di beni e servizi;2;Acquisto di servizi;5;Utenze e canoni;4;Energia elettrica;08/09/2023
2676;1;9999999;0,51;1.246,04;ENEL ENERGIA SPA;9619395FDC;06/09/2023;5930;0;481;1;Spese correnti;3;Acquisto di beni e servizi;2;Acquisto di servizi;5;Utenze e canoni;4;Energia elettrica;08/09/2023
2676;2;9999999;3,23;1.246,04;ENEL ENERGIA SPA;9619395FDC;06/09/2023;5930;0;481;1;Spese correnti;3;Acquisto di beni e servizi;2;Acquisto di servizi;5;Utenze e canoni;4;Energia elettrica;08/09/2023
2676;3;9999999;4,27;1.246,04;ENEL ENERGIA SPA;9619395FDC;06/09/2023;5930;0;481;1;Spese correnti;3;Acquisto di beni e servizi;2;Acquisto di servizi;5;Utenze e canoni;4;Energia elettrica;08/09/2023
2676;4;9999999;5,17;1.246,04;ENEL ENERGIA SPA;9619395FDC;06/09/2023;5930;0;481;1;Spese correnti;3;Acquisto di beni e servizi;2;Acquisto di servizi;5;Utenze e canoni;4;Energia elettrica;08/09/2023
2676;5;9999999;5,97;1.246,04;ENEL ENERGIA SPA;9619395FDC;06/09/2023;5930;0;481;1;Spese correnti;3;Acquisto di beni e servizi;2;Acquisto di servizi;5;Utenze e canoni;4;Energia elettrica;08/09/2023
2676;6;9999999;6,97;1.246,04;ENEL ENERGIA SPA;9619395FDC;06/09/2023;5930;0;481;1;Spese correnti;3;Acquisto di beni e servizi;2;Acquisto di servizi;5;Utenze e canoni;4;Energia elettrica;08/09/2023
2676;7;9999999;7,92;1.246,04;ENEL ENERGIA SPA;9619395FDC;06/09/2023;5930;0;481;1;Spese correnti;3;Acquisto di beni e servizi;2;Acquisto di servizi;5;Utenze e canoni;4;Energia elettrica;08/09/2023
2676;8;9999999;8,83;1.246,04;ENEL ENERGIA SPA;9619395FDC;06/09/2023;5930;0;481;1;Spese correnti;3;Acquisto di beni e servizi;2;Acquisto di servizi;5;Utenze e canoni;4;Energia elettrica;08/09/2023
2676;9;9999999;9,37;1.246,04;ENEL ENERGIA SPA;9619395FDC;06/09/2023;5930;0;481;1;Spese correnti;3;Acquisto di beni e servizi;2;Acquisto di servizi;5;Utenze e canoni;4;Energia elettrica;08/09/2023
2676;10;9999999;13,63;1.246,04;ENEL ENERGIA SPA;9619395FDC;06/09/2023;5930;0;481;1;Spese correnti;3;Acquisto di beni e servizi;2;Acquisto di servizi;5;Utenze e canoni;4;Energia elettrica;08/09/2023
2676;11;9999999;16,59;1.246,04;ENEL ENERGIA SPA;9619395FDC;06/09/2023;5930;0;481;1;Spese correnti;3;Acquisto di beni e servizi;2;Acquisto di servizi;5;Utenze e canoni;4;Energia elettrica;08/09/2023
2676;12;9999999;16,59;1.246,04;ENEL ENERGIA SPA;9619395FDC;06/09/2023;5930;0;481;1;Spese correnti;3;Acquisto di beni e servizi;2;Acquisto di servizi;5;Utenze e canoni;4;Energia elettrica;08/09/2023
2676;13;9999999;18,53;1.246,04;ENEL ENERGIA SPA;9619395FDC;06/09/2023;5930;0;481;1;Spese correnti;3;Acquisto di beni e servizi;2;Acquisto di servizi;5;Utenze e canoni;4;Energia elettrica;08/09/2023
2676;14;9999999;19,58;1.246,04;ENEL ENERGIA SPA;9619395FDC;06/09/2023;5930;0;481;1;Spese correnti;3;Acquisto di beni e servizi;2;Acquisto di servizi;5;Utenze e canoni;4;Energia elettrica;08/09/2023
2676;15;9999999;21,24;1.246,04;ENEL ENERGIA SPA;9619395FDC;06/09/2023;5930;0;481;1;Spese correnti;3;Acquisto di beni e servizi;2;Acquisto di servizi;5;Utenze e canoni;4;Energia elettrica;08/09/2023
2676;16;9999999;24,64;1.246,04;ENEL ENERGIA SPA;9619395FDC;06/09/2023;5930;0;481;1;Spese correnti;3;Acquisto di beni e servizi;2;Acquisto di servizi;5;Utenze e canoni;4;Energia elettrica;08/09/2023
2676;17;9999999;26,21;1.246,04;ENEL ENERGIA SPA;9619395FDC;06/09/2023;5930;0;481;1;Spese correnti;3;Acquisto di beni e servizi;2;Acquisto di servizi;5;Utenze e canoni;4;Energia elettrica;08/09/2023
2676;18;9999999;26,72;1.246,04;ENEL ENERGIA SPA;9619395FDC;06/09/2023;5930;0;481;1;Spese correnti;3;Acquisto di beni e servizi;2;Acquisto di servizi;5;Utenze e canoni;4;Energia elettrica;08/09/2023
2676;19;9999999;27,91;1.246,04;ENEL ENERGIA SPA;9619395FDC;06/09/2023;5930;0;481;1;Spese correnti;3;Acquisto di beni e servizi;2;Acquisto di servizi;5;Utenze e canoni;4;Energia elettrica;08/09/2023
2676;20;9999999;28,93;1.246,04;ENEL ENERGIA SPA;9619395FDC;06/09/2023;5930;0;481;1;Spese correnti;3;Acquisto di beni e servizi;2;Acquisto di servizi;5;Utenze e canoni;4;Energia elettrica;08/09/2023
2676;21;9999999;29,18;1.246,04;ENEL ENERGIA SPA;9619395FDC;06/09/2023;5930;0;481;1;Spese correnti;3;Acquisto di beni e servizi;2;Acquisto di servizi;5;Utenze e canoni;4;Energia elettrica;08/09/2023
2676;22;9999999;29,69;1.246,04;ENEL ENERGIA SPA;9619395FDC;06/09/2023;5930;0;481;1;Spese correnti;3;Acquisto di beni e servizi;2;Acquisto di servizi;5;Utenze e canoni;4;Energia elettrica;08/09/2023
2676;23;9999999;30,23;1.246,04;ENEL ENERGIA SPA;9619395FDC;06/09/2023;5930;0;481;1;Spese correnti;3;Acquisto di beni e servizi;2;Acquisto di servizi;5;Utenze e canoni;4;Energia elettrica;08/09/2023
2676;24;9999999;31,37;1.246,04;ENEL ENERGIA SPA;9619395FDC;06/09/2023;5930;0;481;1;Spese correnti;3;Acquisto di beni e servizi;2;Acquisto di servizi;5;Utenze e canoni;4;Energia elettrica;08/09/2023
2676;25;9999999;35,39;1.246,04;ENEL ENERGIA SPA;9619395FDC;06/09/2023;5930;0;481;1;Spese correnti;3;Acquisto di beni e servizi;2;Acquisto di servizi;5;Utenze e canoni;4;Energia elettrica;08/09/2023
2676;26;9999999;37;1.246,04;ENEL ENERGIA SPA;9619395FDC;06/09/2023;5930;0;481;1;Spese correnti;3;Acquisto di beni e servizi;2;Acquisto di servizi;5;Utenze e canoni;4;Energia elettrica;08/09/2023
2676;27;9999999;37,59;1.246,04;ENEL ENERGIA SPA;9619395FDC;06/09/2023;5930;0;481;1;Spese correnti;3;Acquisto di beni e servizi;2;Acquisto di servizi;5;Utenze e canoni;4;Energia elettrica;08/09/2023
2676;28;9999999;37,84;1.246,04;ENEL ENERGIA SPA;9619395FDC;06/09/2023;5930;0;481;1;Spese correnti;3;Acquisto di beni e servizi;2;Acquisto di servizi;5;Utenze e canoni;4;Energia elettrica;08/09/2023
2676;29;9999999;40,59;1.246,04;ENEL ENERGIA SPA;9619395FDC;06/09/2023;5930;0;481;1;Spese correnti;3;Acquisto di beni e servizi;2;Acquisto di servizi;5;Utenze e canoni;4;Energia elettrica;08/09/2023
2676;30;9999999;42,79;1.246,04;ENEL ENERGIA SPA;9619395FDC;06/09/2023;5930;0;481;1;Spese correnti;3;Acquisto di beni e servizi;2;Acquisto di servizi;5;Utenze e canoni;4;Energia elettrica;08/09/2023
2676;31;9999999;49,28;1.246,04;ENEL ENERGIA SPA;9619395FDC;06/09/2023;5930;0;481;1;Spese correnti;3;Acquisto di beni e servizi;2;Acquisto di servizi;5;Utenze e canoni;4;Energia elettrica;08/09/2023
2676;32;9999999;51,72;1.246,04;ENEL ENERGIA SPA;9619395FDC;06/09/2023;5930;0;481;1;Spese correnti;3;Acquisto di beni e servizi;2;Acquisto di servizi;5;Utenze e canoni;4;Energia elettrica;08/09/2023
2676;33;9999999;53,52;1.246,04;ENEL ENERGIA SPA;9619395FDC;06/09/2023;5930;0;481;1;Spese correnti;3;Acquisto di beni e servizi;2;Acquisto di servizi;5;Utenze e canoni;4;Energia elettrica;08/09/2023
2676;34;9999999;53,52;1.246,04;ENEL ENERGIA SPA;9619395FDC;06/09/2023;5930;0;481;1;Spese correnti;3;Acquisto di beni e servizi;2;Acquisto di servizi;5;Utenze e canoni;4;Energia elettrica;08/09/2023
2676;35;9999999;56,94;1.246,04;ENEL ENERGIA SPA;9619395FDC;06/09/2023;5930;0;481;1;Spese correnti;3;Acquisto di beni e servizi;2;Acquisto di servizi;5;Utenze e canoni;4;Energia elettrica;08/09/2023
2676;36;9999999;61,09;1.246,04;ENEL ENERGIA SPA;9619395FDC;06/09/2023;5930;0;481;1;Spese correnti;3;Acquisto di beni e servizi;2;Acquisto di servizi;5;Utenze e canoni;4;Energia elettrica;08/09/2023
2676;37;9999999;63,38;1.246,04;ENEL ENERGIA SPA;9619395FDC;06/09/2023;5930;0;481;1;Spese correnti;3;Acquisto di beni e servizi;2;Acquisto di servizi;5;Utenze e canoni;4;Energia elettrica;08/09/2023
2676;38;9999999;63,38;1.246,04;ENEL ENERGIA SPA;9619395FDC;06/09/2023;5930;0;481;1;Spese correnti;3;Acquisto di beni e servizi;2;Acquisto di servizi;5;Utenze e canoni;4;Energia elettrica;08/09/2023
2676;39;9999999;72,99;1.246,04;ENEL ENERGIA SPA;9619395FDC;06/09/2023;5930;0;481;1;Spese correnti;3;Acquisto di beni e servizi;2;Acquisto di servizi;5;Utenze e canoni;4;Energia elettrica;08/09/2023
2676;40;9999999;75,74;1.246,04;ENEL ENERGIA SPA;9619395FDC;06/09/2023;5930;0;481;1;Spese correnti;3;Acquisto di beni e servizi;2;Acquisto di servizi;5;Utenze e canoni;4;Energia elettrica;08/09/2023
2677;1;9999999;75,74;8.807,44;ENEL ENERGIA SPA;9619395FDC;06/09/2023;5930;0;481;1;Spese correnti;3;Acquisto di beni e servizi;2;Acquisto di servizi;5;Utenze e canoni;4;Energia elettrica;08/09/2023
2677;2;9999999;78,47;8.807,44;ENEL ENERGIA SPA;9619395FDC;06/09/2023;5930;0;481;1;Spese correnti;3;Acquisto di beni e servizi;2;Acquisto di servizi;5;Utenze e canoni;4;Energia elettrica;08/09/2023
2677;3;9999999;82,2;8.807,44;ENEL ENERGIA SPA;9619395FDC;06/09/2023;5930;0;481;1;Spese correnti;3;Acquisto di beni e servizi;2;Acquisto di servizi;5;Utenze e canoni;4;Energia elettrica;08/09/2023
2677;4;9999999;82,56;8.807,44;ENEL ENERGIA SPA;9619395FDC;06/09/2023;5930;0;481;1;Spese correnti;3;Acquisto di beni e servizi;2;Acquisto di servizi;5;Utenze e canoni;4;Energia elettrica;08/09/2023
2677;5;9999999;92,57;8.807,44;ENEL ENERGIA SPA;9619395FDC;06/09/2023;5930;0;481;1;Spese correnti;3;Acquisto di beni e servizi;2;Acquisto di servizi;5;Utenze e canoni;4;Energia elettrica;08/09/2023
2677;6;9999999;99,33;8.807,44;ENEL ENERGIA SPA;9619395FDC;06/09/2023;5930;0;481;1;Spese correnti;3;Acquisto di beni e servizi;2;Acquisto di servizi;5;Utenze e canoni;4;Energia elettrica;08/09/2023
2677;7;9999999;103,21;8.807,44;ENEL ENERGIA SPA;9619395FDC;06/09/2023;5930;0;481;1;Spese correnti;3;Acquisto di beni e servizi;2;Acquisto di servizi;5;Utenze e canoni;4;Energia elettrica;08/09/2023
2677;8;9999999;114,89;8.807,44;ENEL ENERGIA SPA;9619395FDC;06/09/2023;5930;0;481;1;Spese correnti;3;Acquisto di beni e servizi;2;Acquisto di servizi;5;Utenze e canoni;4;Energia elettrica;08/09/2023
2677;9;9999999;122,54;8.807,44;ENEL ENERGIA SPA;9619395FDC;06/09/2023;5930;0;481;1;Spese correnti;3;Acquisto di beni e servizi;2;Acquisto di servizi;5;Utenze e canoni;4;Energia elettrica;08/09/2023
2677;10;9999999;127,21;8.807,44;ENEL ENERGIA SPA;9619395FDC;06/09/2023;5930;0;481;1;Spese correnti;3;Acquisto di beni e servizi;2;Acquisto di servizi;5;Utenze e canoni;4;Energia elettrica;08/09/2023
2677;11;9999999;128,49;8.807,44;ENEL ENERGIA SPA;9619395FDC;06/09/2023;5930;0;481;1;Spese correnti;3;Acquisto di beni e servizi;2;Acquisto di servizi;5;Utenze e canoni;4;Energia elettrica;08/09/2023
2677;12;9999999;129,02;8.807,44;ENEL ENERGIA SPA;9619395FDC;06/09/2023;5930;0;481;1;Spese correnti;3;Acquisto di beni e servizi;2;Acquisto di servizi;5;Utenze e canoni;4;Energia elettrica;08/09/2023
2677;13;9999999;131,91;8.807,44;ENEL ENERGIA SPA;9619395FDC;06/09/2023;5930;0;481;1;Spese correnti;3;Acquisto di beni e servizi;2;Acquisto di servizi;5;Utenze e canoni;4;Energia elettrica;08/09/2023
2677;14;9999999;149,5;8.807,44;ENEL ENERGIA SPA;9619395FDC;06/09/2023;5930;0;481;1;Spese correnti;3;Acquisto di beni e servizi;2;Acquisto di servizi;5;Utenze e canoni;4;Energia elettrica;08/09/2023
2677;15;9999999;149,99;8.807,44;ENEL ENERGIA SPA;9619395FDC;06/09/2023;5930;0;481;1;Spese correnti;3;Acquisto di beni e servizi;2;Acquisto di servizi;5;Utenze e canoni;4;Energia elettrica;08/09/2023
2677;16;9999999;149,99;8.807,44;ENEL ENERGIA SPA;9619395FDC;06/09/2023;5930;0;481;1;Spese correnti;3;Acquisto di beni e servizi;2;Acquisto di servizi;5;Utenze e canoni;4;Energia elettrica;08/09/2023
2677;17;9999999;152,85;8.807,44;ENEL ENERGIA SPA;9619395FDC;06/09/2023;5930;0;481;1;Spese correnti;3;Acquisto di beni e servizi;2;Acquisto di servizi;5;Utenze e canoni;4;Energia elettrica;08/09/2023
2677;18;9999999;154,18;8.807,44;ENEL ENERGIA SPA;9619395FDC;06/09/2023;5930;0;481;1;Spese correnti;3;Acquisto di beni e servizi;2;Acquisto di servizi;5;Utenze e canoni;4;Energia elettrica;08/09/2023
2677;19;9999999;159,1;8.807,44;ENEL ENERGIA SPA;9619395FDC;06/09/2023;5930;0;481;1;Spese correnti;3;Acquisto di beni e servizi;2;Acquisto di servizi;5;Utenze e canoni;4;Energia elettrica;08/09/2023
2677;20;9999999;243,63;8.807,44;ENEL ENERGIA SPA;9619395FDC;06/09/2023;5930;0;481;1;Spese correnti;3;Acquisto di beni e servizi;2;Acquisto di servizi;5;Utenze e canoni;4;Energia elettrica;08/09/2023
2677;21;9999999;285,65;8.807,44;ENEL ENERGIA SPA;9619395FDC;06/09/2023;5930;0;481;1;Spese correnti;3;Acquisto di beni e servizi;2;Acquisto di servizi;5;Utenze e canoni;4;Energia elettrica;08/09/2023
2677;22;9999999;352,96;8.807,44;ENEL ENERGIA SPA;9619395FDC;06/09/2023;5930;0;481;1;Spese correnti;3;Acquisto di beni e servizi;2;Acquisto di servizi;5;Utenze e canoni;4;Energia elettrica;08/09/2023
2677;23;9999999;361,23;8.807,44;ENEL ENERGIA SPA;9619395FDC;06/09/2023;5930;0;481;1;Spese correnti;3;Acquisto di beni e servizi;2;Acquisto di servizi;5;Utenze e canoni;4;Energia elettrica;08/09/2023
2677;24;9999999;380,93;8.807,44;ENEL ENERGIA SPA;9619395FDC;06/09/2023;5930;0;481;1;Spese correnti;3;Acquisto di beni e servizi;2;Acquisto di servizi;5;Utenze e canoni;4;Energia elettrica;08/09/2023
2677;25;9999999;394,96;8.807,44;ENEL ENERGIA SPA;9619395FDC;06/09/2023;5930;0;481;1;Spese correnti;3;Acquisto di beni e servizi;2;Acquisto di servizi;5;Utenze e canoni;4;Energia elettrica;08/09/2023
2677;26;9999999;396,76;8.807,44;ENEL ENERGIA SPA;9619395FDC;06/09/2023;5930;0;481;1;Spese correnti;3;Acquisto di beni e servizi;2;Acquisto di servizi;5;Utenze e canoni;4;Energia elettrica;08/09/2023
2677;27;9999999;421,25;8.807,44;ENEL ENERGIA SPA;9619395FDC;06/09/2023;5930;0;481;1;Spese correnti;3;Acquisto di beni e servizi;2;Acquisto di servizi;5;Utenze e canoni;4;Energia elettrica;08/09/2023
2677;28;9999999;433,44;8.807,44;ENEL ENERGIA SPA;9619395FDC;06/09/2023;5930;0;481;1;Spese correnti;3;Acquisto di beni e servizi;2;Acquisto di servizi;5;Utenze e canoni;4;Energia elettrica;08/09/2023
2677;29;9999999;510,34;8.807,44;ENEL ENERGIA SPA;9619395FDC;06/09/2023;5930;0;481;1;Spese correnti;3;Acquisto di beni e servizi;2;Acquisto di servizi;5;Utenze e canoni;4;Energia elettrica;08/09/2023
2677;30;9999999;553;8.807,44;ENEL ENERGIA SPA;9619395FDC;06/09/2023;5930;0;481;1;Spese correnti;3;Acquisto di beni e servizi;2;Acquisto di servizi;5;Utenze e canoni;4;Energia elettrica;08/09/2023
2677;31;9999999;581,38;8.807,44;ENEL ENERGIA SPA;9619395FDC;06/09/2023;5930;0;481;1;Spese correnti;3;Acquisto di beni e servizi;2;Acquisto di servizi;5;Utenze e canoni;4;Energia elettrica;08/09/2023
2677;32;9999999;588,54;8.807,44;ENEL ENERGIA SPA;9619395FDC;06/09/2023;5930;0;481;1;Spese correnti;3;Acquisto di beni e servizi;2;Acquisto di servizi;5;Utenze e canoni;4;Energia elettrica;08/09/2023
2677;33;9999999;1.019,62;8.807,44;ENEL ENERGIA SPA;9619395FDC;06/09/2023;5930;0;481;1;Spese correnti;3;Acquisto di beni e servizi;2;Acquisto di servizi;5;Utenze e canoni;4;Energia elettrica;08/09/2023
2678;1;9999999;11,32;698,86;ENEL ENERGIA SPA;9619395FDC;06/09/2023;5931;0;488;1;Spese correnti;3;Acquisto di beni e servizi;2;Acquisto di servizi;5;Utenze e canoni;4;Energia elettrica;08/09/2023
2678;2;9999999;17,74;698,86;ENEL ENERGIA SPA;9619395FDC;06/09/2023;5931;0;488;1;Spese correnti;3;Acquisto di beni e servizi;2;Acquisto di servizi;5;Utenze e canoni;4;Energia elettrica;08/09/2023
2678;3;9999999;47,74;698,86;ENEL ENERGIA SPA;9619395FDC;06/09/2023;5931;0;488;1;Spese correnti;3;Acquisto di beni e servizi;2;Acquisto di servizi;5;Utenze e canoni;4;Energia elettrica;08/09/2023
2678;4;9999999;79,58;698,86;ENEL ENERGIA SPA;9619395FDC;06/09/2023;5931;0;488;1;Spese correnti;3;Acquisto di beni e servizi;2;Acquisto di servizi;5;Utenze e canoni;4;Energia elettrica;08/09/2023
2678;5;9999999;84,63;698,86;ENEL ENERGIA SPA;9619395FDC;06/09/2023;5931;0;488;1;Spese correnti;3;Acquisto di beni e servizi;2;Acquisto di servizi;5;Utenze e canoni;4;Energia elettrica;08/09/2023
2678;6;9999999;88,61;698,86;ENEL ENERGIA SPA;9619395FDC;06/09/2023;5931;0;488;1;Spese correnti;3;Acquisto di beni e servizi;2;Acquisto di servizi;5;Utenze e canoni;4;Energia elettrica;08/09/2023
2678;7;9999999;109,86;698,86;ENEL ENERGIA SPA;9619395FDC;06/09/2023;5931;0;488;1;Spese correnti;3;Acquisto di beni e servizi;2;Acquisto di servizi;5;Utenze e canoni;4;Energia elettrica;08/09/2023
2678;8;9999999;122,85;698,86;ENEL ENERGIA SPA;9619395FDC;06/09/2023;5931;0;488;1;Spese correnti;3;Acquisto di beni e servizi;2;Acquisto di servizi;5;Utenze e canoni;4;Energia elettrica;08/09/2023
2678;9;9999999;136,53;698,86;ENEL ENERGIA SPA;9619395FDC;06/09/2023;5931;0;488;1;Spese correnti;3;Acquisto di beni e servizi;2;Acquisto di servizi;5;Utenze e canoni;4;Energia elettrica;08/09/2023
2679;1;9999999;64,36;128,8;ENEL ENERGIA SPA;9619395FDC;06/09/2023;6461;0;487;1;Spese correnti;3;Acquisto di beni e servizi;2;Acquisto di servizi;5;Utenze e canoni;4;Energia elettrica;11/09/2023
2679;2;9999999;64,44;128,8;ENEL ENERGIA SPA;9619395FDC;06/09/2023;6461;0;487;1;Spese correnti;3;Acquisto di beni e servizi;2;Acquisto di servizi;5;Utenze e canoni;4;Energia elettrica;11/09/2023
2680;1;9999999;2.289,90;2.289,90;APLEONA HSG SPA;Z9834FDE00;;;;;;;;;;;;;;;
;06/09/2023;7485;0;231;1;Spese correnti;Acquisto di beni e servizi;2;Acquisto di servizi;11;Prestazioni professionali e specialistiche;999;Altre prestazioni professionali e specialistiche n.a.c.;08/09/2023;;;;;;;
2681;1;9999999;116,48;116,48;ENEL ENERGIA SPA;Z5A3AB0AFF;06/09/2023;7552;1;642;1;Spese correnti;3;Acquisto di beni e servizi;2;Acquisto di servizi;5;Utenze e canoni;4;Energia elettrica;11/09/2023
2682;1;9999999;432,18;432,18;OMESSO NOMINATIVO NEL RISPETTO DELLA NORMATIVA SULLA PROTEZIONE DATI PERSONALI; ;06/09/2023;8361;0;1316;1;Spese correnti;4;Trasferimenti correnti;2;Trasferimenti correnti a Famiglie;2;Interventi assistenziali;999;Altri assegni e sussidi assistenziali;08/09/2023
2683;1;9999999;663,24;663,24;OMESSO NOMINATIVO NEL RISPETTO DELLA NORMATIVA SULLA PROTEZIONE DATI PERSONALI; ;06/09/2023;8361;0;471;1;Spese correnti;4;Trasferimenti correnti;2;Trasferimenti correnti a Famiglie;2;Interventi assistenziali;999;Altri assegni e sussidi assistenziali;08/09/2023
2684;1;9999999;10.802,30;10.802,30;AGENZIA DELLE ENTRATE DI TREVISO; ;06/09/2023;15925;3;1374;2;Spese in conto capitale;2;Investimenti fissi lordi e acquisto di terreni;1;Beni materiali;9;Beni immobili;12;Infrastrutture stradali;07/09/2023
2685;1;9999999;2.167,94;2.167,94;JOLLY BOX SRL;9610119912;06/09/2023;13217;0;996;2;Spese in conto capitale;2;Investimenti fissi lordi e acquisto di terreni;1;Beni materiali;9;Beni immobili;3;Fabbricati ad uso scolastico;08/09/2023
2686;1;9999999;266,6;266,6;REGIONE DEL VENETO; ;06/09/2023;7022;0;744;1;Spese correnti;3;Acquisto di beni e servizi;2;Acquisto di servizi;7;Utilizzo di beni di terzi;999;Altre spese sostenute per utilizzo di beni di terzi n.a.c.;07/09/2023
2687;1;9999999;2.408,88;2.408,88;AGENZIA DELLE ENTRATE DI TREVISO; ;07/09/2023;1904;0;743;1;Spese correnti;10;Altre spese correnti;3;Versamenti IVA a debito;1;Versamenti IVA a debito per le gestioni commerciali;1;Versamenti IVA a debito per le gestioni commerciali;18/09/2023
2689;1;9999999;3,72;3,72;DOLOMITI ENERGIA SPA;964666689C;07/09/2023;1346;0;499;1;Spese correnti;3;Acquisto di beni e servizi;2;Acquisto di servizi;5;Utenze e canoni;6;Gas;11/09/2023
2690;1;9999999;-22,5;68,6;DOLOMITI ENERGIA SPA;964666689C;07/09/2023;1801;0;489;1;Spese correnti;3;Acquisto di beni e servizi;2;Acquisto di servizi;5;Utenze e canoni;6;Gas;11/09/2023
2690;2;9999999;-0,57;68,6;DOLOMITI ENERGIA SPA;964666689C;07/09/2023;1801;0;489;1;Spese correnti;3;Acquisto di beni e servizi;2;Acquisto di servizi;5;Utenze e canoni;6;Gas;11/09/2023
2690;3;9999999;2,92;68,6;DOLOMITI ENERGIA SPA;964666689C;07/09/2023;1801;0;489;1;Spese correnti;3;Acquisto di beni e servizi;2;Acquisto di servizi;5;Utenze e canoni;6;Gas;11/09/2023
2690;4;9999999;3,73;68,6;DOLOMITI ENERGIA SPA;964666689C;07/09/2023;1801;0;489;1;Spese correnti;3;Acquisto di beni e servizi;2;Acquisto di servizi;5;Utenze e canoni;6;Gas;11/09/2023
2690;5;9999999;12,42;68,6;DOLOMITI ENERGIA SPA;964666689C;07/09/2023;1801;0;489;1;Spese correnti;3;Acquisto di beni e servizi;2;Acquisto di servizi;5;Utenze e canoni;6;Gas;11/09/2023
2690;6;9999999;34,44;68,6;DOLOMITI ENERGIA SPA;964666689C;07/09/2023;1801;0;489;1;Spese correnti;3;Acquisto di beni e servizi;2;Acquisto di servizi;5;Utenze e canoni;6;Gas;11/09/2023
2690;7;9999999;38,16;68,6;DOLOMITI ENERGIA SPA;964666689C;07/09/2023;1801;0;489;1;Spese correnti;3;Acquisto di beni e servizi;2;Acquisto di servizi;5;Utenze e canoni;6;Gas;11/09/2023
2691;1;9999999;115,53;115,53;DOLOMITI ENERGIA SPA;964666689C;07/09/2023;2790;0;490;1;Spese correnti;3;Acquisto di beni e servizi;2;Acquisto di servizi;5;Utenze e canoni;6;Gas;11/09/2023
2692;1;9999999;60,38;60,38;DOLOMITI ENERGIA SPA;964666689C;07/09/2023;2792;0;491;1;Spese correnti;3;Acquisto di beni e servizi;2;Acquisto di servizi;5;Utenze e canoni;6;Gas;11/09/2023
2693;1;9999999;19,99;239,28;DOLOMITI ENERGIA SPA;964666689C;07/09/2023;2973;0;492;1;Spese correnti;3;Acquisto di beni e servizi;2;Acquisto di servizi;5;Utenze e canoni;6;Gas;11/09/2023
2693;2;9999999;31,94;239,28;DOLOMITI ENERGIA SPA;964666689C;07/09/2023;2973;0;492;1;Spese correnti;3;Acquisto di beni e servizi;2;Acquisto di servizi;5;Utenze e canoni;6;Gas;11/09/2023
2693;3;9999999;91,3;239,28;DOLOMITI ENERGIA SPA;964666689C;07/09/2023;2973;0;492;1;Spese correnti;3;Acquisto di beni e servizi;2;Acquisto di servizi;5;Utenze e canoni;6;Gas;11/09/2023
2693;4;9999999;96,05;239,28;DOLOMITI ENERGIA SPA;964666689C;07/09/2023;2973;0;492;1;Spese correnti;3;Acquisto di beni e servizi;2;Acquisto di servizi;5;Utenze e canoni;6;Gas;11/09/2023
2694;1;9999999;108,36;108,36;DOLOMITI ENERGIA SPA;964666689C;07/09/2023;4020;0;493;1;Spese correnti;3;Acquisto di beni e servizi;2;Acquisto di servizi;5;Utenze e canoni;6;Gas;11/09/2023
2695;1;9999999;34,44;34,44;DOLOMITI ENERGIA SPA;964666689C;07/09/2023;4527;0;502;1;Spese correnti;3;Acquisto di beni e servizi;2;Acquisto di servizi;5;Utenze e canoni;6;Gas;11/09/2023
2696;1;9999999;2,5;236,6;DOLOMITI ENERGIA SPA;964666689C;07/09/2023;5050;0;501;1;Spese correnti;3;Acquisto di beni e servizi;2;Acquisto di servizi;5;Utenze e canoni;6;Gas;11/09/2023
2696;2;9999999;6,65;236,6;DOLOMITI ENERGIA SPA;964666689C;07/09/2023;5050;0;501;1;Spese correnti;3;Acquisto di beni e servizi;2;Acquisto di servizi;5;Utenze e canoni;6;Gas;11/09/2023
2696;3;9999999;21,65;236,6;DOLOMITI ENERGIA SPA;964666689C;07/09/2023;5050;0;501;1;Spese correnti;3;Acquisto di beni e servizi;2;Acquisto di servizi;5;Utenze e canoni;6;Gas;11/09/2023
2696;4;9999999;205,8;236,6;DOLOMITI ENERGIA SPA;964666689C;07/09/2023;5050;0;501;1;Spese correnti;3;Acquisto di beni e servizi;2;Acquisto di servizi;5;Utenze e canoni;6;Gas;11/09/2023
2697;1;9999999;2,92;2,92;DOLOMITI ENERGIA SPA;964666689C;07/09/2023;5051;0;495;1;Spese correnti;3;Acquisto di beni e servizi;2;Acquisto di servizi;5;Utenze e canoni;6;Gas;11/09/2023
2698;1;9999999;80,45;80,45;DOLOMITI ENERGIA SPA;964666689C;07/09/2023;6461;0;496;1;Spese correnti;3;Acquisto di beni e servizi;2;Acquisto di servizi;5;Utenze e canoni;6;Gas;11/09/2023
2699;1;9999999;2,92;2,92;DOLOMITI ENERGIA SPA;964666689C;07/09/2023;6647;0;497;1;Spese correnti;3;Acquisto di beni e servizi;2;Acquisto di servizi;5;Utenze e canoni;6;Gas;11/09/2023
2700;1;9999999;40,25;117,27;DOLOMITI ENERGIA SPA;964666689C;07/09/2023;7552;1;500;1;Spese correnti;3;Acquisto di beni e servizi;2;Acquisto di servizi;5;Utenze e canoni;6;Gas;11/09/2023
2700;2;9999999;77,02;117,27;DOLOMITI ENERGIA SPA;964666689C;07/09/2023;7552;1;500;1;Spese correnti;3;Acquisto di beni e servizi;2;Acquisto di servizi;5;Utenze e canoni;6;Gas;11/09/2023
2701;1;9999999;300;300;OMESSO NOMINATIVO NEL RISPETTO DELLA NORMATIVA SULLA PROTEZIONE DATI PERSONALI; ;07/09/2023;7462;0;747;1;Spese correnti;4;Trasferimenti correnti;2;Trasferimenti correnti a Famiglie;5;Altri trasferimenti a famiglie;999;Altri trasferimenti a famiglie n.a.c.;11/09/2023
2702;1;9999999;300;300;OMESSO NOMINATIVO NEL RISPETTO DELLA NORMATIVA SULLA PROTEZIONE DATI PERSONALI; ;07/09/2023;7462;0;747;1;Spese correnti;4;Trasferimenti correnti;2;Trasferimenti correnti a Famiglie;5;Altri trasferimenti a famiglie;999;Altri trasferimenti a famiglie n.a.c.;11/09/2023
2703;1;9999999;300;300;OMESSO NOMINATIVO NEL RISPETTO DELLA NORMATIVA SULLA PROTEZIONE DATI PERSONALI; ;07/09/2023;7462;0;747;1;Spese correnti;4;Trasferimenti correnti;2;Trasferimenti correnti a Famiglie;5;Altri trasferimenti a famiglie;999;Altri trasferimenti a famiglie n.a.c.;11/09/2023
2704;1;9999999;300;300;OMESSO NOMINATIVO NEL RISPETTO DELLA NORMATIVA SULLA PROTEZIONE DATI PERSONALI; ;07/09/2023;7462;0;747;1;Spese correnti;4;Trasferimenti correnti;2;Trasferimenti correnti a Famiglie;5;Altri trasferimenti a famiglie;999;Altri trasferimenti a famiglie n.a.c.;11/09/2023
2705;1;9999999;300;300;OMESSO NOMINATIVO NEL RISPETTO DELLA NORMATIVA SULLA PROTEZIONE DATI PERSONALI; ;07/09/2023;7462;0;747;1;Spese correnti;4;Trasferimenti correnti;2;Trasferimenti correnti a Famiglie;5;Altri trasferimenti a famiglie;999;Altri trasferimenti a famiglie n.a.c.;11/09/2023
2706;1;9999999;793;793;SOC. IMM. MURETTO S.N.C. DI CRESCENTE V. & C.; ;13/09/2023;1812;0;327;1;Spese correnti;3;Acquisto di beni e servizi;2;Acquisto di servizi;7;Utilizzo di beni di terzi;1;Locazione di beni immobili;15/09/2023
2707;1;9999999;668,56;668,56;IMAR ASCENSORI S.A.S. DI POMIATO ROMEO & C.;ZF734CBF08;13/09/2023;1185;1;179;1;Spese correnti;3;Acquisto di beni e servizi;2;Acquisto di servizi;9;Manutenzione ordinaria e riparazioni;4;Manutenzione ordinaria e riparazioni di impianti e macchinari;15/09/2023
2708;1;9999999;840;840;SOGEST ITALIA SRL;Z08372EAAD;13/09/2023;1185;1;715;1;Spese correnti;3;Acquisto di beni e servizi;2;Acquisto di servizi;9;Manutenzione ordinaria e riparazioni;4;Manutenzione ordinaria e riparazioni di impianti e macchinari;15/09/2023
2709;1;9999999;2.000,00;2.000,00;BP SRL;Z163742B24;13/09/2023;1185;1;755;1;Spese correnti;3;Acquisto di beni e servizi;2;Acquisto di servizi;9;Manutenzione ordinaria e riparazioni;4;Manutenzione ordinaria e riparazioni di impianti e macchinari;15/09/2023
2710;1;9999999;43,52;43,52;SOGEST ITALIA SRL;Z08372EAAD;13/09/2023;1185;2;716;1;Spese correnti;3;Acquisto di beni e servizi;2;Acquisto di servizi;9;Manutenzione ordinaria e riparazioni;4;Manutenzione ordinaria e riparazioni di impianti e macchinari;15/09/2023
2711;1;9999999;89,46;89,46;BP SRL;Z163742B24;13/09/2023;1185;2;756;1;Spese correnti;3;Acquisto di beni e servizi;2;Acquisto di servizi;9;Manutenzione ordinaria e riparazioni;4;Manutenzione ordinaria e riparazioni di impianti e macchinari;15/09/2023
2712;1;9999999;115,9;115,9;AUTOFFICINA B.M.T. CARS & TRUCKS SRL;ZE83A04208;13/09/2023;1340;1;284;1;Spese correnti;3;Acquisto di beni e servizi;2;Acquisto di servizi;9;Manutenzione ordinaria e riparazioni;1;Manutenzione ordinaria e riparazioni di mezzi di trasporto ad uso civile, di sicurezza e ordine pubblico;15/09/2023
2713;1;9999999;276,94;276,94;MORESSA S.R.L.;Z0B3C17EC8;13/09/2023;1340;1;681;1;Spese correnti;3;Acquisto di beni e servizi;2;Acquisto di servizi;9;Manutenzione ordinaria e riparazioni;1;Manutenzione ordinaria e riparazioni di mezzi di trasporto ad uso civile, di sicurezza e ordine pubblico;15/09/2023
2714;1;9999999;3.999,99;3.999,99;PULITORI ED AFFINI SPA;87752258BF;13/09/2023;1794;0;656;1;Spese correnti;3;Acquisto di beni e servizi;2;Acquisto di servizi;13;Servizi ausiliari per il funzionamento dell'ente;2;Servizi di pulizia e lavanderia;15/09/2023
2715;1;9999999;1.700,00;1.700,00;SOGEST ITALIA SRL;Z08372EAAD;13/09/2023;1805;0;714;1;Spese correnti;3;Acquisto di beni e servizi;2;Acquisto di servizi;13;Servizi ausiliari per il funzionamento dell'ente;1;Servizi di sorveglianza, custodia e accoglienza;15/09/2023
2716;1;9999999;61;61;AUTOFFICINA B.M.T. CARS & TRUCKS SRL;ZE83A04208;13/09/2023;2422;1;283;1;Spese correnti;3;Acquisto di beni e servizi;2;Acquisto di servizi;9;Manutenzione ordinaria e riparazioni;1;Manutenzione ordinaria e riparazioni di mezzi di trasporto ad uso civile, di sicurezza e ordine pubblico;15/09/2023
2717;1;9999999;210;210;BP SRL;Z163742B24;13/09/2023;2760;0;757;1;Spese correnti;3;Acquisto di beni e servizi;2;Acquisto di servizi;9;Manutenzione ordinaria e riparazioni;4;Manutenzione ordinaria e riparazioni di impianti e macchinari;15/09/2023
2718;1;9999999;668,56;668,56;IMAR ASCENSORI S.A.S. DI POMIATO ROMEO & C.;ZF734CBF08;13/09/2023;2980;1;176;1;Spese correnti;3;Acquisto di beni e servizi;2;Acquisto di servizi;9;Manutenzione ordinaria e riparazioni;4;Manutenzione ordinaria e riparazioni di impianti e macchinari;15/09/2023
2719;1;9999999;2.200,00;2.200,00;BP SRL;Z163742B24;13/09/2023;2980;1;759;1;Spese correnti;3;Acquisto di beni e servizi;2;Acquisto di servizi;9;Manutenzione ordinaria e riparazioni;4;Manutenzione ordinaria e riparazioni di impianti e macchinari;15/09/2023
2720;1;9999999;1.337,12;1.337,12;IMAR ASCENSORI S.A.S. DI POMIATO ROMEO & C.;ZF734CBF08;13/09/2023;4030;0;177;1;Spese correnti;3;Acquisto di beni e servizi;2;Acquisto di servizi;9;Manutenzione ordinaria e riparazioni;4;Manutenzione ordinaria e riparazioni di impianti e macchinari;15/09/2023
2721;1;9999999;200;200;BP SRL;Z163742B24;13/09/2023;4030;0;760;1;Spese correnti;3;Acquisto di beni e servizi;2;Acquisto di servizi;9;Manutenzione ordinaria e riparazioni;4;Manutenzione ordinaria e riparazioni di impianti e macchinari;15/09/2023
2722;1;9999999;668,56;668,56;IMAR ASCENSORI S.A.S. DI POMIATO ROMEO & C.;ZF734CBF08;13/09/2023;4540;0;178;1;Spese correnti;3;Acquisto di beni e servizi;2;Acquisto di servizi;9;Manutenzione ordinaria e riparazioni;4;Manutenzione ordinaria e riparazioni di impianti e macchinari;15/09/2023
2723;1;9999999;60;60;BP SRL;Z163742B24;13/09/2023;4540;0;761;1;Spese correnti;3;Acquisto di beni e servizi;2;Acquisto di servizi;9;Manutenzione ordinaria e riparazioni;4;Manutenzione ordinaria e riparazioni di impianti e macchinari;15/09/2023
2724;1;9999999;2;2;BP SRL;Z163742B24;13/09/2023;4660;0;762;1;Spese correnti;3;Acquisto di beni e servizi;2;Acquisto di servizi;9;Manutenzione ordinaria e riparazioni;4;Manutenzione ordinaria e riparazioni di impianti e macchinari;15/09/2023
2725;1;9999999;70;70;BP SRL;Z163742B24;13/09/2023;4720;0;763;1;Spese correnti;3;Acquisto di beni e servizi;2;Acquisto di servizi;9;Manutenzione ordinaria e riparazioni;4;Manutenzione ordinaria e riparazioni di impianti e macchinari;15/09/2023
2726;1;9999999;300;300;BP SRL;Z163742B24;13/09/2023;5080;0;764;1;Spese correnti;3;Acquisto di beni e servizi;2;Acquisto di servizi;9;Manutenzione ordinaria e riparazioni;4;Manutenzione ordinaria e riparazioni di impianti e macchinari;15/09/2023
2727;1;9999999;50;50;BP SRL;Z163742B24;13/09/2023;6590;1;765;1;Spese correnti;3;Acquisto di beni e servizi;2;Acquisto di servizi;9;Manutenzione ordinaria e riparazioni;4;Manutenzione ordinaria e riparazioni di impianti e macchinari;15/09/2023
2728;1;9999999;30.000,00;30.000,00;CONTARINA S.P.A.; ;13/09/2023;7430;0;868;1;Spese correnti;3;Acquisto di beni e servizi;2;Acquisto di servizi;9;Manutenzione ordinaria e riparazioni;8;Manutenzione ordinaria e riparazioni di beni immobili;15/09/2023
2729;1;9999999;2.350,00;2.350,00;BP SRL;Z163742B24;13/09/2023;7550;0;766;1;Spese correnti;3;Acquisto di beni e servizi;2;Acquisto di servizi;9;Manutenzione ordinaria e riparazioni;4;Manutenzione ordinaria e riparazioni di impianti e macchinari;15/09/2023
2730;1;9999999;1.206,27;239.481,74;COSTRUZIONI MANUTENZIONI CECCHIN S.R.L.;91356977A7;13/09/2023;11302;3;679;2;Spese in conto capitale;2;Investimenti fissi lordi e acquisto di terreni;1;Beni materiali;9;Beni immobili;19;Fabbricati ad uso strumentale;15/09/2023
2730;2;9999999;37.829,23;239.481,74;COSTRUZIONI MANUTENZIONI CECCHIN S.R.L.;91356977A7;13/09/2023;11302;3;679;2;Spese in conto capitale;2;Investimenti fissi lordi e acquisto di terreni;1;Beni materiali;9;Beni immobili;19;Fabbricati ad uso strumentale;15/09/2023
2730;3;9999999;44.141,31;239.481,74;COSTRUZIONI MANUTENZIONI CECCHIN S.R.L.;91356977A7;13/09/2023;11302;3;679;2;Spese in conto capitale;2;Investimenti fissi lordi e acquisto di terreni;1;Beni materiali;9;Beni immobili;19;Fabbricati ad uso strumentale;15/09/2023
2730;4;9999999;48.414,36;239.481,74;COSTRUZIONI MANUTENZIONI CECCHIN S.R.L.;91356977A7;13/09/2023;11302;3;679;2;Spese in conto capitale;2;Investimenti fissi lordi e acquisto di terreni;1;Beni materiali;9;Beni immobili;19;Fabbricati ad uso strumentale;15/09/2023
2730;5;9999999;48.895,74;239.481,74;COSTRUZIONI MANUTENZIONI CECCHIN S.R.L.;91356977A7;13/09/2023;11302;3;679;2;Spese in conto capitale;2;Investimenti fissi lordi e acquisto di terreni;1;Beni materiali;9;Beni immobili;19;Fabbricati ad uso strumentale;15/09/2023
2730;6;9999999;58.994,83;239.481,74;COSTRUZIONI MANUTENZIONI CECCHIN S.R.L.;91356977A7;13/09/2023;11302;3;679;2;Spese in conto capitale;2;Investimenti fissi lordi e acquisto di terreni;1;Beni materiali;9;Beni immobili;19;Fabbricati ad uso strumentale;15/09/2023
2731;1;9999999;0,02;7.020,88;COSTRUZIONI MANUTENZIONI CECCHIN S.R.L.;91356977A7;13/09/2023;11302;3;1380;2;Spese in conto capitale;2;Investimenti fissi lordi e acquisto di terreni;1;Beni materiali;9;Beni immobili;19;Fabbricati ad uso strumentale;15/09/2023
2731;2;9999999;7.020,86;7.020,88;COSTRUZIONI MANUTENZIONI CECCHIN S.R.L.;91356977A7;13/09/2023;11302;3;1380;2;Spese in conto capitale;2;Investimenti fissi lordi e acquisto di terreni;1;Beni materiali;9;Beni immobili;19;Fabbricati ad uso strumentale;15/09/2023
2732;1;9999999;294,96;294,96;INIZIATIVE UNINDUSTRIA SRL; ;13/09/2023;8204;4;121;1;Spese correnti;3;Acquisto di beni e servizi;2;Acquisto di servizi;99;Altri servizi;999;Altri servizi diversi n.a.c.;15/09/2023
2733;1;9999999;854;854;INIZIATIVE UNINDUSTRIA SRL; ;13/09/2023;8204;4;569;1;Spese correnti;3;Acquisto di beni e servizi;2;Acquisto di servizi;99;Altri servizi;999;Altri servizi diversi n.a.c.;15/09/2023
2734;1;9999999;58,84;58,84;INIZIATIVE UNINDUSTRIA SRL; ;13/09/2023;8204;4;569;1;Spese correnti;3;Acquisto di beni e servizi;2;Acquisto di servizi;99;Altri servizi;999;Altri servizi diversi n.a.c.;15/09/2023
2735;1;9999999;4.247,00;4.247,00;GRUPPO SPORTIVO SAMBUGHE' SSD a RL; ;13/09/2023;8361;3;751;1;Spese correnti;4;Trasferimenti correnti;4;Trasferimenti correnti a Istituzioni Sociali Private;1;Trasferimenti correnti a Istituzioni Sociali Private;1;Trasferimenti correnti a Istituzioni Sociali Private;15/09/2023
2736;1;9999999;318;318;POLISPORTIVA PREGANZIOL; ;13/09/2023;8361;3;752;1;Spese correnti;4;Trasferimenti correnti;4;Trasferimenti correnti a Istituzioni Sociali Private;1;Trasferimenti correnti a Istituzioni Sociali Private;1;Trasferimenti correnti a Istituzioni Sociali Private;15/09/2023
2737;1;9999999;1.035,00;1.035,00;A.S. ZERMAN A.S.D.; ;13/09/2023;8361;3;756;1;Spese correnti;4;Trasferimenti correnti;4;Trasferimenti correnti a Istituzioni Sociali Private;1;Trasferimenti correnti a Istituzioni Sociali Private;1;Trasferimenti correnti a Istituzioni Sociali Private;15/09/2023
2738;1;9999999;7.183,00;7.183,00;STILELIBERO SSD SRL; ;13/09/2023;8361;3;753;1;Spese correnti;4;Trasferimenti correnti;4;Trasferimenti correnti a Istituzioni Sociali Private;1;Trasferimenti correnti a Istituzioni Sociali Private;1;Trasferimenti correnti a Istituzioni Sociali Private;15/09/2023
2739;1;9999999;641;641;REN BU KAN MOGLIANO E PREGANZIOL ASD; ;13/09/2023;8361;3;755;1;Spese correnti;4;Trasferimenti correnti;4;Trasferimenti correnti a Istituzioni Sociali Private;1;Trasferimenti correnti a Istituzioni Sociali Private;1;Trasferimenti correnti a Istituzioni Sociali Private;15/09/2023
2740;1;9999999;781;781;F.C. UNION PRO 1928 S.S.D.R.L.; ;13/09/2023;8361;3;754;1;Spese correnti;4;Trasferimenti correnti;4;Trasferimenti correnti a Istituzioni Sociali Private;1;Trasferimenti correnti a Istituzioni Sociali Private;1;Trasferimenti correnti a Istituzioni Sociali Private;15/09/2023
2741;1;9999999;356,6;356,6;OMESSO NOMINATIVO NEL RISPETTO DELLA NORMATIVA SULLA PROTEZIONE DATI PERSONALI; ;13/09/2023;8361;0;757;1;Spese correnti;4;Trasferimenti correnti;2;Trasferimenti correnti a Famiglie;2;Interventi assistenziali;999;Altri assegni e sussidi assistenziali;15/09/2023
2742;1;9999999;75,96;75,96;EDILVERDE S.R.L.;Z82398837C;14/09/2023;1147;1;149;1;Spese correnti;3;Acquisto di beni e servizi;1;Acquisto di beni;2;Altri beni di consumo;999;Altri beni e materiali di consumo n.a.c.;19/09/2023
2743;1;9999999;183;183;CONTARINA S.P.A.;Z3E39950B4;14/09/2023;1194;0;169;1;Spese correnti;3;Acquisto di beni e servizi;2;Acquisto di servizi;5;Utenze e canoni;999;Utenze e canoni per altri servizi n.a.c.;19/09/2023
2744;1;9999999;60;60;EDILVERDE S.R.L.;Z82398837C;14/09/2023;1300;0;150;1;Spese correnti;3;Acquisto di beni e servizi;1;Acquisto di beni;2;Altri beni di consumo;999;Altri beni e materiali di consumo n.a.c.;19/09/2023
2745;1;9999999;4.453,60;4.453,60;Societa' Cooperativa PORTABAGAGLI MULTISERVICE;Z3A3B6CA4B;14/09/2023;1344;1;525;1;Spese correnti;3;Acquisto di beni e servizi;2;Acquisto di servizi;99;Altri servizi;999;Altri servizi diversi n.a.c.;19/09/2023
2746;1;9999999;13,2;13,2;FASTWEB SPA;Z742CA65BF;14/09/2023;1346;1;321;1;Spese correnti;3;Acquisto di beni e servizi;2;Acquisto di servizi;5;Utenze e canoni;1;Telefonia fissa;19/09/2023
2747;1;9999999;265,65;265,65;FASTWEB SPA;Z742CA65BF;14/09/2023;1801;1;322;1;Spese correnti;3;Acquisto di beni e servizi;2;Acquisto di servizi;5;Utenze e canoni;1;Telefonia fissa;19/09/2023
2748;1;9999999;13,36;13,36;FASTWEB SPA;Z742CA65BF;14/09/2023;2790;1;323;1;Spese correnti;3;Acquisto di beni e servizi;2;Acquisto di servizi;5;Utenze e canoni;1;Telefonia fissa;19/09/2023
2749;1;9999999;13,2;13,2;FASTWEB SPA;Z742CA65BF;14/09/2023;2792;1;324;1;Spese correnti;3;Acquisto di beni e servizi;2;Acquisto di servizi;5;Utenze e canoni;1;Telefonia fissa;19/09/2023
2750;1;9999999;97,08;97,08;FASTWEB SPA;Z742CA65BF;14/09/2023;2973;1;325;1;Spese correnti;3;Acquisto di beni e servizi;2;Acquisto di servizi;5;Utenze e canoni;1;Telefonia fissa;19/09/2023
2751;1;9999999;3.500,00;3.500,00;Societa' Cooperativa PORTABAGAGLI MULTISERVICE;Z323853107;14/09/2023;2980;0;2;1;Spese correnti;3;Acquisto di beni e servizi;2;Acquisto di servizi;9;Manutenzione ordinaria e riparazioni;8;Manutenzione ordinaria e riparazioni di beni immobili;19/09/2023
2752;1;9999999;95,26;95,26;FASTWEB SPA;Z742CA65BF;14/09/2023;4020;1;326;1;Spese correnti;3;Acquisto di beni e servizi;2;Acquisto di servizi;5;Utenze e canoni;1;Telefonia fissa;19/09/2023
2753;1;9999999;3.246,11;3.246,11;Societa' Cooperativa PORTABAGAGLI MULTISERVICE;Z323853107;14/09/2023;4030;0;1007;1;Spese correnti;3;Acquisto di beni e servizi;2;Acquisto di servizi;9;Manutenzione ordinaria e riparazioni;8;Manutenzione ordinaria e riparazioni di beni immobili;19/09/2023
2754;1;9999999;13,18;13,18;FASTWEB SPA;Z742CA65BF;14/09/2023;4527;1;327;1;Spese correnti;3;Acquisto di beni e servizi;2;Acquisto di servizi;5;Utenze e canoni;1;Telefonia fissa;19/09/2023
2755;1;9999999;50;50;EDILVERDE S.R.L.;Z82398837C;14/09/2023;5620;2;148;1;Spese correnti;3;Acquisto di beni e servizi;1;Acquisto di beni;2;Altri beni di consumo;999;Altri beni e materiali di consumo n.a.c.;19/09/2023
2756;1;9999999;70;70;EDILVERDE S.R.L.;Z82398837C;14/09/2023;5640;0;151;1;Spese correnti;3;Acquisto di beni e servizi;1;Acquisto di beni;2;Altri beni di consumo;999;Altri beni e materiali di consumo n.a.c.;19/09/2023
2757;1;9999999;13,18;13,18;FASTWEB SPA;Z742CA65BF;14/09/2023;6642;0;328;1;Spese correnti;3;Acquisto di beni e servizi;2;Acquisto di servizi;5;Utenze e canoni;1;Telefonia fissa;19/09/2023
2758;1;9999999;376,12;376,12;KUWAIT PETROLEUM ITALIA SPA;Z9C36EAB07;15/09/2023;1307;0;270;1;Spese correnti;3;Acquisto di beni e servizi;1;Acquisto di beni;2;Altri beni di consumo;2;Carburanti, combustibili e lubrificanti;19/09/2023
2759;1;9999999;1.085,63;1.085,63;SHARP ELECTRONICS ITALIA SPA;7286031EF9;15/09/2023;1813;0;130;1;Spese correnti;3;Acquisto di beni e servizi;2;Acquisto di servizi;7;Utilizzo di beni di terzi;4;Noleggi di hardware;19/09/2023
2760;1;9999999;300,85;300,85;KUWAIT PETROLEUM ITALIA SPA;Z9C36EAB07;15/09/2023;2197;0;271;1;Spese correnti;3;Acquisto di beni e servizi;1;Acquisto di beni;2;Altri beni di consumo;2;Carburanti, combustibili e lubrificanti;19/09/2023
2761;1;9999999;155,25;155,25;KUWAIT PETROLEUM ITALIA SPA;Z9C36EAB07;15/09/2023;8132;0;272;1;Spese correnti;3;Acquisto di beni e servizi;1;Acquisto di beni;2;Altri beni di consumo;2;Carburanti, combustibili e lubrificanti;19/09/2023
2763;1;9999999;30;30;BANCOPOSTA; ;15/09/2023;820;0;127;1;Spese correnti;3;Acquisto di beni e servizi;2;Acquisto di servizi;17;Servizi finanziari;2;Oneri per servizio di tesoreria;19/09/2023
2765;1;9999999;822;822;POSTE ITALIANE SPA;ZCE3502180;15/09/2023;1793;0;288;1;Spese correnti;3;Acquisto di beni e servizi;2;Acquisto di servizi;16;Servizi amministrativi;2;Spese postali;19/09/2023
2766;1;9999999;15.089,48;15.089,48;CODESS SOCIALE-COOP. ONLUS;9120417633;15/09/2023;8250;0;578;1;Spese correnti;3;Acquisto di beni e servizi;2;Acquisto di servizi;15;Contratti di servizio pubblico;9;Contratti di servizio di assistenza sociale domiciliare;19/09/2023
2773;1;9999999;4.292,21;4.292,21;COOP. ITACA Soc.Coop.Soc.Onlus;8693218E6C;20/09/2023;8204;4;453;1;Spese correnti;3;Acquisto di beni e servizi;2;Acquisto di servizi;99;Altri servizi;999;Altri servizi diversi n.a.c.;22/09/2023
2774;1;9999999;353,8;353,8;INIZIATIVE UNINDUSTRIA SRL; ;20/09/2023;8204;4;758;1;Spese correnti;3;Acquisto di beni e servizi;2;Acquisto di servizi;99;Altri servizi;999;Altri servizi diversi n.a.c.;22/09/2023
2775;1;9999999;6.888,00;6.888,00;KIRIKU Societa' cooperativa sociale onlus;ZA33AD6EE0;20/09/2023;8242;0;480;1;Spese correnti;3;Acquisto di beni e servizi;2;Acquisto di servizi;99;Altri servizi;999;Altri servizi diversi n.a.c.;22/09/2023
2776;1;9999999;7.114,12;7.114,12;VILLANOVA COSTRUZIONI SRL;96608880FC;20/09/2023;13218;0;999;2;Spese in conto capitale;2;Investimenti fissi lordi e acquisto di terreni;1;Beni materiali;9;Beni immobili;3;Fabbricati ad uso scolastico;22/09/2023
2777;1;9999999;3.000,00;3.000,00;PREGANZIOL ASSE T; ;20/09/2023;9461;0;464;1;Spese correnti;4;Trasferimenti correnti;3;Trasferimenti correnti a Imprese;99;Trasferimenti correnti a altre imprese;999;Trasferimenti correnti a altre imprese;22/09/2023
2778;1;9999999;70.697,68;70.697,68;VILLANOVA COSTRUZIONI SRL;9487674444;20/09/2023;13215;0;678;2;Spese in conto capitale;2;Investimenti fissi lordi e acquisto di terreni;1;Beni materiali;9;Beni immobili;3;Fabbricati ad uso scolastico;22/09/2023
2779;1;9999999;30.408,42;30.408,42;VILLANOVA COSTRUZIONI SRL;9487674444;20/09/2023;13218;0;999;2;Spese in conto capitale;2;Investimenti fissi lordi e acquisto di terreni;1;Beni materiali;9;Beni immobili;3;Fabbricati ad uso scolastico;22/09/2023
2780;1;9999999;227,4;227,4;OMESSO NOMINATIVO NEL RISPETTO DELLA NORMATIVA SULLA PROTEZIONE DATI PERSONALI; ;20/09/2023;8361;0;766;1;Spese correnti;4;Trasferimenti correnti;2;Trasferimenti correnti a Famiglie;2;Interventi assistenziali;999;Altri assegni e sussidi assistenziali;22/09/2023
2781;1;9999999;10.000,00;10.000,00;OMESSO NOMINATIVO NEL RISPETTO DELLA NORMATIVA SULLA PROTEZIONE DATI PERSONALI; ;20/09/2023;9445;0;1074;1;Spese correnti;4;Trasferimenti correnti;3;Trasferimenti correnti a Imprese;99;Trasferimenti correnti a altre imprese;999;Trasferimenti correnti a altre imprese;22/09/2023
2782;1;9999999;3.311,00;3.311,00;OMESSO NOMINATIVO NEL RISPETTO DELLA NORMATIVA SULLA PROTEZIONE DATI PERSONALI; ;20/09/2023;9445;0;1074;1;Spese correnti;4;Trasferimenti correnti;3;Trasferimenti correnti a Imprese;99;Trasferimenti correnti a altre imprese;999;Trasferimenti correnti a altre imprese;22/09/2023
2785;1;9999999;11.294,41;11.294,41;AMMINISTRATORI COMUNALI; ;20/09/2023;74;0;141;1;Spese correnti;3;Acquisto di beni e servizi;2;Acquisto di servizi;1;Organi e incarichi istituzionali dell'amministrazione;1;Organi istituzionali dell'amministrazione - Indennità;25/09/2023
2877;1;9999999;106,68;106,68;ABACO S.P.A.;9,44E+58;21/09/2023;1010;0;1259;1;Spese correnti;3;Acquisto di beni e servizi;2;Acquisto di servizi;3;Aggi di riscossione;999;Altri aggi di riscossione n.a.c.;26/09/2023
2878;1;9999999;1.285,90;1.285,90;ABACO S.P.A.;9,44E+58;21/09/2023;1010;0;1259;1;Spese correnti;3;Acquisto di beni e servizi;2;Acquisto di servizi;3;Aggi di riscossione;999;Altri aggi di riscossione n.a.c.;26/09/2023
2879;1;9999999;735,9;735,9;STUDIO A.S.A. DEI DOTTORI SERENA E TOMASI;9977611910;21/09/2023;15930;3;637;2;Spese in conto capitale;2;Investimenti fissi lordi e acquisto di terreni;1;Beni materiali;9;Beni immobili;12;Infrastrutture stradali;26/09/2023
2880;1;9999999;0,18;0,18;AGENZIA DELLE ENTRATE-RISCOSSIONE; ;26/09/2023;2351;1;370;1;Spese correnti;3;Acquisto di beni e servizi;2;Acquisto di servizi;3;Aggi di riscossione;999;Altri aggi di riscossione n.a.c.;29/09/2023
2881;1;9999999;1,27;1,27;AGENZIA DELLE ENTRATE-RISCOSSIONE; ;26/09/2023;2351;1;173;1;Spese correnti;3;Acquisto di beni e servizi;2;Acquisto di servizi;3;Aggi di riscossione;999;Altri aggi di riscossione n.a.c.;29/09/2023
2882;1;9999999;7,92;7,92;AGENZIA DELLE ENTRATE-RISCOSSIONE; ;26/09/2023;2351;1;249;1;Spese correnti;3;Acquisto di beni e servizi;2;Acquisto di servizi;3;Aggi di riscossione;999;Altri aggi di riscossione n.a.c.;29/09/2023
2883;1;9999999;4,77;4,77;AGENZIA DELLE ENTRATE-RISCOSSIONE; ;26/09/2023;2351;1;249;1;Spese correnti;3;Acquisto di beni e servizi;2;Acquisto di servizi;3;Aggi di riscossione;999;Altri aggi di riscossione n.a.c.;29/09/2023
2884;1;9999999;0,32;0,32;AGENZIA DELLE ENTRATE-RISCOSSIONE; ;26/09/2023;2351;1;249;1;Spese correnti;3;Acquisto di beni e servizi;2;Acquisto di servizi;3;Aggi di riscossione;999;Altri aggi di riscossione n.a.c.;29/09/2023
2885;1;9999999;0,18;0,18;AGENZIA DELLE ENTRATE-RISCOSSIONE; ;26/09/2023;2351;1;228;1;Spese correnti;3;Acquisto di beni e servizi;2;Acquisto di servizi;3;Aggi di riscossione;999;Altri aggi di riscossione n.a.c.;29/09/2023
2886;1;9999999;1,68;1,68;AGENZIA DELLE ENTRATE-RISCOSSIONE; ;26/09/2023;2351;1;458;1;Spese correnti;3;Acquisto di beni e servizi;2;Acquisto di servizi;3;Aggi di riscossione;999;Altri aggi di riscossione n.a.c.;29/09/2023
2887;1;9999999;3,89;3,89;AGENZIA DELLE ENTRATE-RISCOSSIONE; ;26/09/2023;2351;1;292;1;Spese correnti;3;Acquisto di beni e servizi;2;Acquisto di servizi;3;Aggi di riscossione;999;Altri aggi di riscossione n.a.c.;29/09/2023
2888;1;9999999;0,6;0,6;AGENZIA DELLE ENTRATE-RISCOSSIONE; ;26/09/2023;2351;1;1531;1;Spese correnti;3;Acquisto di beni e servizi;2;Acquisto di servizi;3;Aggi di riscossione;999;Altri aggi di riscossione n.a.c.;29/09/2023
2889;1;9999999;0,26;0,26;AGENZIA DELLE ENTRATE-RISCOSSIONE; ;26/09/2023;2351;1;249;1;Spese correnti;3;Acquisto di beni e servizi;2;Acquisto di servizi;3;Aggi di riscossione;999;Altri aggi di riscossione n.a.c.;29/09/2023
2890;1;9999999;11,38;11,38;AGENZIA DELLE ENTRATE-RISCOSSIONE; ;26/09/2023;2351;1;249;1;Spese correnti;3;Acquisto di beni e servizi;2;Acquisto di servizi;3;Aggi di riscossione;999;Altri aggi di riscossione n.a.c.;29/09/2023
2891;1;9999999;2,24;2,24;AGENZIA DELLE ENTRATE-RISCOSSIONE; ;26/09/2023;2351;1;370;1;Spese correnti;3;Acquisto di beni e servizi;2;Acquisto di servizi;3;Aggi di riscossione;999;Altri aggi di riscossione n.a.c.;29/09/2023
2892;1;9999999;0,18;0,18;AGENZIA DELLE ENTRATE-RISCOSSIONE; ;26/09/2023;2351;1;292;1;Spese correnti;3;Acquisto di beni e servizi;2;Acquisto di servizi;3;Aggi di riscossione;999;Altri aggi di riscossione n.a.c.;29/09/2023
2893;1;9999999;2,52;2,52;AGENZIA DELLE ENTRATE-RISCOSSIONE; ;26/09/2023;2351;1;249;1;Spese correnti;3;Acquisto di beni e servizi;2;Acquisto di servizi;3;Aggi di riscossione;999;Altri aggi di riscossione n.a.c.;29/09/2023
2894;1;9999999;1,57;1,57;AGENZIA DELLE ENTRATE-RISCOSSIONE; ;26/09/2023;2351;1;249;1;Spese correnti;3;Acquisto di beni e servizi;2;Acquisto di servizi;3;Aggi di riscossione;999;Altri aggi di riscossione n.a.c.;29/09/2023
2895;1;9999999;0,06;0,06;AGENZIA DELLE ENTRATE-RISCOSSIONE; ;26/09/2023;1010;0;982;1;Spese correnti;3;Acquisto di beni e servizi;2;Acquisto di servizi;3;Aggi di riscossione;999;Altri aggi di riscossione n.a.c.;29/09/2023
2896;1;9999999;58,31;58,31;AGENZIA DELLE ENTRATE-RISCOSSIONE; ;26/09/2023;1010;0;250;1;Spese correnti;3;Acquisto di beni e servizi;2;Acquisto di servizi;3;Aggi di riscossione;999;Altri aggi di riscossione n.a.c.;29/09/2023
2897;1;9999999;1,17;1,17;AGENZIA DELLE ENTRATE-RISCOSSIONE; ;26/09/2023;1010;0;250;1;Spese correnti;3;Acquisto di beni e servizi;2;Acquisto di servizi;3;Aggi di riscossione;999;Altri aggi di riscossione n.a.c.;29/09/2023
2898;1;9999999;4,78;4,78;AGENZIA DELLE ENTRATE-RISCOSSIONE; ;26/09/2023;1010;0;250;1;Spese correnti;3;Acquisto di beni e servizi;2;Acquisto di servizi;3;Aggi di riscossione;999;Altri aggi di riscossione n.a.c.;29/09/2023
2899;1;9999999;15,83;477,02;VERITAS  S.P.A.; ;27/09/2023;1801;0;203;1;Spese correnti;3;Acquisto di beni e servizi;2;Acquisto di servizi;5;Utenze e canoni;5;Acqua;29/09/2023
2899;2;9999999;71,04;477,02;VERITAS  S.P.A.; ;27/09/2023;1801;0;203;1;Spese correnti;3;Acquisto di beni e servizi;2;Acquisto di servizi;5;Utenze e canoni;5;Acqua;29/09/2023
2899;3;9999999;96,35;477,02;VERITAS  S.P.A.; ;27/09/2023;1801;0;203;1;Spese correnti;3;Acquisto di beni e servizi;2;Acquisto di servizi;5;Utenze e canoni;5;Acqua;29/09/2023
2899;4;9999999;293,8;477,02;VERITAS  S.P.A.; ;27/09/2023;1801;0;203;1;Spese correnti;3;Acquisto di beni e servizi;2;Acquisto di servizi;5;Utenze e canoni;5;Acqua;29/09/2023
2900;1;9999999;160,64;160,64;VERITAS  S.P.A.; ;27/09/2023;2790;0;222;1;Spese correnti;3;Acquisto di beni e servizi;2;Acquisto di servizi;5;Utenze e canoni;5;Acqua;29/09/2023
2901;1;9999999;112,32;112,32;VERITAS  S.P.A.; ;27/09/2023;2792;0;223;1;Spese correnti;3;Acquisto di beni e servizi;2;Acquisto di servizi;5;Utenze e canoni;5;Acqua;29/09/2023
2902;1;9999999;33,49;1.210,01;VERITAS  S.P.A.; ;27/09/2023;2973;0;224;1;Spese correnti;3;Acquisto di beni e servizi;2;Acquisto di servizi;5;Utenze e canoni;5;Acqua;29/09/2023
2902;2;9999999;53,05;1.210,01;VERITAS  S.P.A.; ;27/09/2023;2973;0;224;1;Spese correnti;3;Acquisto di beni e servizi;2;Acquisto di servizi;5;Utenze e canoni;5;Acqua;29/09/2023
2902;3;9999999;53,05;1.210,01;VERITAS  S.P.A.; ;27/09/2023;2973;0;224;1;Spese correnti;3;Acquisto di beni e servizi;2;Acquisto di servizi;5;Utenze e canoni;5;Acqua;29/09/2023
2902;4;9999999;53,05;1.210,01;VERITAS  S.P.A.; ;27/09/2023;2973;0;224;1;Spese correnti;3;Acquisto di beni e servizi;2;Acquisto di servizi;5;Utenze e canoni;5;Acqua;29/09/2023
2902;5;9999999;53,05;1.210,01;VERITAS  S.P.A.; ;27/09/2023;2973;0;224;1;Spese correnti;3;Acquisto di beni e servizi;2;Acquisto di servizi;5;Utenze e canoni;5;Acqua;29/09/2023
2902;6;9999999;53,05;1.210,01;VERITAS  S.P.A.; ;27/09/2023;2973;0;224;1;Spese correnti;3;Acquisto di beni e servizi;2;Acquisto di servizi;5;Utenze e canoni;5;Acqua;29/09/2023
2902;7;9999999;55,88;1.210,01;VERITAS  S.P.A.; ;27/09/2023;2973;0;224;1;Spese correnti;3;Acquisto di beni e servizi;2;Acquisto di servizi;5;Utenze e canoni;5;Acqua;29/09/2023
2902;8;9999999;74,86;1.210,01;VERITAS  S.P.A.; ;27/09/2023;2973;0;224;1;Spese correnti;3;Acquisto di beni e servizi;2;Acquisto di servizi;5;Utenze e canoni;5;Acqua;29/09/2023
2902;9;9999999;114,83;1.210,01;VERITAS  S.P.A.; ;27/09/2023;2973;0;224;1;Spese correnti;3;Acquisto di beni e servizi;2;Acquisto di servizi;5;Utenze e canoni;5;Acqua;29/09/2023
2902;10;9999999;213,85;1.210,01;VERITAS  S.P.A.; ;27/09/2023;2973;0;224;1;Spese correnti;3;Acquisto di beni e servizi;2;Acquisto di servizi;5;Utenze e canoni;5;Acqua;29/09/2023
2902;11;9999999;451,85;1.210,01;VERITAS  S.P.A.; ;27/09/2023;2973;0;224;1;Spese correnti;3;Acquisto di beni e servizi;2;Acquisto di servizi;5;Utenze e canoni;5;Acqua;29/09/2023
2903;1;9999999;53,05;4.349,60;VERITAS  S.P.A.; ;27/09/2023;4020;0;204;1;Spese correnti;3;Acquisto di beni e servizi;2;Acquisto di servizi;5;Utenze e canoni;5;Acqua;29/09/2023
2903;2;9999999;59,46;4.349,60;VERITAS  S.P.A.; ;27/09/2023;4020;0;204;1;Spese correnti;3;Acquisto di beni e servizi;2;Acquisto di servizi;5;Utenze e canoni;5;Acqua;29/09/2023
2903;3;9999999;4.237,09;4.349,60;VERITAS  S.P.A.; ;27/09/2023;4020;0;204;1;Spese correnti;3;Acquisto di beni e servizi;2;Acquisto di servizi;5;Utenze e canoni;5;Acqua;29/09/2023
2904;1;9999999;963,41;963,41;LEGGERE S.R.L.;Z673A59373;27/09/2023;4506;0;478;1;Spese correnti;3;Acquisto di beni e servizi;1;Acquisto di beni;1;Giornali, riviste e pubblicazioni;2;Pubblicazioni;29/09/2023
2905;1;9999999;127,4;127,4;VERITAS  S.P.A.; ;27/09/2023;4527;0;225;1;Spese correnti;3;Acquisto di beni e servizi;2;Acquisto di servizi;5;Utenze e canoni;5;Acqua;29/09/2023
2906;1;9999999;40,37;349,97;VERITAS  S.P.A.; ;27/09/2023;5051;0;205;1;Spese correnti;3;Acquisto di beni e servizi;2;Acquisto di servizi;5;Utenze e canoni;5;Acqua;29/09/2023
2906;2;9999999;86,25;349,97;VERITAS  S.P.A.; ;27/09/2023;5051;0;205;1;Spese correnti;3;Acquisto di beni e servizi;2;Acquisto di servizi;5;Utenze e canoni;5;Acqua;29/09/2023
2906;3;9999999;223,35;349,97;VERITAS  S.P.A.; ;27/09/2023;5051;0;205;1;Spese correnti;3;Acquisto di beni e servizi;2;Acquisto di servizi;5;Utenze e canoni;5;Acqua;29/09/2023
2907;1;9999999;12,72;105,92;VERITAS  S.P.A.; ;27/09/2023;6461;0;226;1;Spese correnti;3;Acquisto di beni e servizi;2;Acquisto di servizi;5;Utenze e canoni;5;Acqua;29/09/2023
2907;2;9999999;15,83;105,92;VERITAS  S.P.A.; ;27/09/2023;6461;0;226;1;Spese correnti;3;Acquisto di beni e servizi;2;Acquisto di servizi;5;Utenze e canoni;5;Acqua;29/09/2023
2907;3;9999999;19,66;105,92;VERITAS  S.P.A.; ;27/09/2023;6461;0;226;1;Spese correnti;3;Acquisto di beni e servizi;2;Acquisto di servizi;5;Utenze e canoni;5;Acqua;29/09/2023
2907;4;9999999;57,71;105,92;VERITAS  S.P.A.; ;27/09/2023;6461;0;226;1;Spese correnti;3;Acquisto di beni e servizi;2;Acquisto di servizi;5;Utenze e canoni;5;Acqua;29/09/2023
2908;1;9999999;12,72;242,13;VERITAS  S.P.A.; ;27/09/2023;6905;0;206;1;Spese correnti;3;Acquisto di beni e servizi;2;Acquisto di servizi;5;Utenze e canoni;5;Acqua;29/09/2023
2908;2;9999999;12,72;242,13;VERITAS  S.P.A.; ;27/09/2023;6905;0;206;1;Spese correnti;3;Acquisto di beni e servizi;2;Acquisto di servizi;5;Utenze e canoni;5;Acqua;29/09/2023
2908;3;9999999;13,52;242,13;VERITAS  S.P.A.; ;27/09/2023;6905;0;206;1;Spese correnti;3;Acquisto di beni e servizi;2;Acquisto di servizi;5;Utenze e canoni;5;Acqua;29/09/2023
2908;4;9999999;14,15;242,13;VERITAS  S.P.A.; ;27/09/2023;6905;0;206;1;Spese correnti;3;Acquisto di beni e servizi;2;Acquisto di servizi;5;Utenze e canoni;5;Acqua;29/09/2023
2908;5;9999999;14,31;242,13;VERITAS  S.P.A.; ;27/09/2023;6905;0;206;1;Spese correnti;3;Acquisto di beni e servizi;2;Acquisto di servizi;5;Utenze e canoni;5;Acqua;29/09/2023
2908;6;9999999;14,31;242,13;VERITAS  S.P.A.; ;27/09/2023;6905;0;206;1;Spese correnti;3;Acquisto di beni e servizi;2;Acquisto di servizi;5;Utenze e canoni;5;Acqua;29/09/2023
2908;7;9999999;17,76;242,13;VERITAS  S.P.A.; ;27/09/2023;6905;0;206;1;Spese correnti;3;Acquisto di beni e servizi;2;Acquisto di servizi;5;Utenze e canoni;5;Acqua;29/09/2023
2908;8;9999999;17,76;242,13;VERITAS  S.P.A.; ;27/09/2023;6905;0;206;1;Spese correnti;3;Acquisto di beni e servizi;2;Acquisto di servizi;5;Utenze e canoni;5;Acqua;29/09/2023
2908;9;9999999;17,76;242,13;VERITAS  S.P.A.; ;27/09/2023;6905;0;206;1;Spese correnti;3;Acquisto di beni e servizi;2;Acquisto di servizi;5;Utenze e canoni;5;Acqua;29/09/2023
2908;10;9999999;21,55;242,13;VERITAS  S.P.A.; ;27/09/2023;6905;0;206;1;Spese correnti;3;Acquisto di beni e servizi;2;Acquisto di servizi;5;Utenze e canoni;5;Acqua;29/09/2023
2908;11;9999999;85,57;242,13;VERITAS  S.P.A.; ;27/09/2023;6905;0;206;1;Spese correnti;3;Acquisto di beni e servizi;2;Acquisto di servizi;5;Utenze e canoni;5;Acqua;29/09/2023
2909;1;9999999;14,31;131,29;VERITAS  S.P.A.; ;27/09/2023;7431;0;207;1;Spese correnti;3;Acquisto di beni e servizi;2;Acquisto di servizi;5;Utenze e canoni;5;Acqua;29/09/2023
2909;2;9999999;19,66;131,29;VERITAS  S.P.A.; ;27/09/2023;7431;0;207;1;Spese correnti;3;Acquisto di beni e servizi;2;Acquisto di servizi;5;Utenze e canoni;5;Acqua;29/09/2023
2909;3;9999999;25,37;131,29;VERITAS  S.P.A.; ;27/09/2023;7431;0;207;1;Spese correnti;3;Acquisto di beni e servizi;2;Acquisto di servizi;5;Utenze e canoni;5;Acqua;29/09/2023
2909;4;9999999;27,26;131,29;VERITAS  S.P.A.; ;27/09/2023;7431;0;207;1;Spese correnti;3;Acquisto di beni e servizi;2;Acquisto di servizi;5;Utenze e canoni;5;Acqua;29/09/2023
2909;5;9999999;44,69;131,29;VERITAS  S.P.A.; ;27/09/2023;7431;0;207;1;Spese correnti;3;Acquisto di beni e servizi;2;Acquisto di servizi;5;Utenze e canoni;5;Acqua;29/09/2023
2910;1;9999999;74,88;181,98;VERITAS  S.P.A.; ;27/09/2023;7552;1;227;1;Spese correnti;3;Acquisto di beni e servizi;2;Acquisto di servizi;5;Utenze e canoni;5;Acqua;29/09/2023
2910;2;9999999;107,1;181,98;VERITAS  S.P.A.; ;27/09/2023;7552;1;227;1;Spese correnti;3;Acquisto di beni e servizi;2;Acquisto di servizi;5;Utenze e canoni;5;Acqua;29/09/2023
2911;1;9999999;142;142;TKACHUK LILIYA;ZA73C3D9A8;27/09/2023;8204;4;717;1;Spese correnti;3;Acquisto di beni e servizi;2;Acquisto di servizi;99;Altri servizi;999;Altri servizi diversi n.a.c.;29/09/2023
2912;1;9999999;62.554,47;62.554,47;AZIENDA ULSS N.2 - MARCA TREVIGIANA; ;27/09/2023;8360;0;774;1;Spese correnti;4;Trasferimenti correnti;1;Trasferimenti correnti a Amministrazioni Pubbliche;2;Trasferimenti correnti a Amministrazioni Locali;11;Trasferimenti correnti a Aziende sanitarie locali  n.a.f.;29/09/2023
2914;1;9999999;2.287,50;2.287,50;BANCA MONTE DEI PASCHI DI SIENA S.P.A.;ZA926715C5;27/09/2023;820;0;1464;1;Spese correnti;3;Acquisto di beni e servizi;2;Acquisto di servizi;17;Servizi finanziari;2;Oneri per servizio di tesoreria;28/09/2023
2915;1;9999999;3;3;BANCA MONTE DEI PASCHI DI SIENA S.P.A.; ;29/09/2023;820;0;0;1;Spese correnti;3;Acquisto di beni e servizi;2;Acquisto di servizi;17;Servizi finanziari;2;Oneri per servizio di tesoreria;02/10/2023
2916;1;9999999;4.948,32;4.948,32;AVV. LOLLI ALESSANDRO;ZE927FDB0B;29/09/2023;500;0;528;1;Spese correnti;3;Acquisto di beni e servizi;2;Acquisto di servizi;11;Prestazioni professionali e specialistiche;6;Patrocinio legale;03/10/2023
2917;1;9999999;111,79;111,79;ENEL ENERGIA SPA;9619395FDC;29/09/2023;1346;0;482;1;Spese correnti;3;Acquisto di beni e servizi;2;Acquisto di servizi;5;Utenze e canoni;4;Energia elettrica;03/10/2023
2918;1;9999999;44,48;4.077,00;ENEL ENERGIA SPA;9619395FDC;29/09/2023;1801;0;483;1;Spese correnti;3;Acquisto di beni e servizi;2;Acquisto di servizi;5;Utenze e canoni;4;Energia elettrica;03/10/2023
2918;2;9999999;149,3;4.077,00;ENEL ENERGIA SPA;9619395FDC;29/09/2023;1801;0;483;1;Spese correnti;3;Acquisto di beni e servizi;2;Acquisto di servizi;5;Utenze e canoni;4;Energia elettrica;03/10/2023
2918;3;9999999;344,3;4.077,00;ENEL ENERGIA SPA;9619395FDC;29/09/2023;1801;0;483;1;Spese correnti;3;Acquisto di beni e servizi;2;Acquisto di servizi;5;Utenze e canoni;4;Energia elettrica;03/10/2023
2918;4;9999999;769,67;4.077,00;ENEL ENERGIA SPA;9619395FDC;29/09/2023;1801;0;483;1;Spese correnti;3;Acquisto di beni e servizi;2;Acquisto di servizi;5;Utenze e canoni;4;Energia elettrica;03/10/2023
2918;5;9999999;841,06;4.077,00;ENEL ENERGIA SPA;9619395FDC;29/09/2023;1801;0;483;1;Spese correnti;3;Acquisto di beni e servizi;2;Acquisto di servizi;5;Utenze e canoni;4;Energia elettrica;03/10/2023
2918;6;9999999;1.928,19;4.077,00;ENEL ENERGIA SPA;9619395FDC;29/09/2023;1801;0;483;1;Spese correnti;3;Acquisto di beni e servizi;2;Acquisto di servizi;5;Utenze e canoni;4;Energia elettrica;03/10/2023
2919;1;9999999;74,66;74,66;ENEL ENERGIA SPA;Z5A3AB0AFF;29/09/2023;2790;0;641;1;Spese correnti;3;Acquisto di beni e servizi;2;Acquisto di servizi;5;Utenze e canoni;4;Energia elettrica;03/10/2023
2920;1;9999999;118,61;249,42;ENEL ENERGIA SPA;9619395FDC;29/09/2023;2973;0;484;1;Spese correnti;3;Acquisto di beni e servizi;2;Acquisto di servizi;5;Utenze e canoni;4;Energia elettrica;03/10/2023
2920;2;9999999;130,81;249,42;ENEL ENERGIA SPA;9619395FDC;29/09/2023;2973;0;484;1;Spese correnti;3;Acquisto di beni e servizi;2;Acquisto di servizi;5;Utenze e canoni;4;Energia elettrica;03/10/2023
2921;1;9999999;121,45;121,45;ENEL ENERGIA SPA;Z5A3AB0AFF;29/09/2023;2973;0;640;1;Spese correnti;3;Acquisto di beni e servizi;2;Acquisto di servizi;5;Utenze e canoni;4;Energia elettrica;03/10/2023
2922;1;9999999;240,01;240,01;SERENISSIMA RISTORAZIONE SPA;932853027C;29/09/2023;4261;0;732;1;Spese correnti;3;Acquisto di beni e servizi;2;Acquisto di servizi;15;Contratti di servizio pubblico;6;Contratti di servizio per le mense scolastiche;03/10/2023
2923;1;9999999;1.216,22;1.216,22;ENEL ENERGIA SPA;9619395FDC;29/09/2023;4527;0;485;1;Spese correnti;3;Acquisto di beni e servizi;2;Acquisto di servizi;5;Utenze e canoni;4;Energia elettrica;03/10/2023
2924;1;9999999;53,94;53,94;ENEL ENERGIA SPA;9619395FDC;29/09/2023;4686;1;486;1;Spese correnti;3;Acquisto di beni e servizi;2;Acquisto di servizi;5;Utenze e canoni;4;Energia elettrica;03/10/2023
2925;1;9999999;195,2;195,2;MAZZON MARCO SRL;Z663C70E70;29/09/2023;5750;0;760;1;Spese correnti;3;Acquisto di beni e servizi;2;Acquisto di servizi;7;Utilizzo di beni di terzi;999;Altre spese sostenute per utilizzo di beni di terzi n.a.c.;03/10/2023
2926;1;9999999;-210;1.139,24;ENEL ENERGIA SPA;9619395FDC;29/09/2023;5930;0;481;1;Spese correnti;3;Acquisto di beni e servizi;2;Acquisto di servizi;5;Utenze e canoni;4;Energia elettrica;03/10/2023
2926;2;9999999;-63,27;1.139,24;ENEL ENERGIA SPA;9619395FDC;29/09/2023;5930;0;481;1;Spese correnti;3;Acquisto di beni e servizi;2;Acquisto di servizi;5;Utenze e canoni;4;Energia elettrica;03/10/2023
2926;3;9999999;2,73;1.139,24;ENEL ENERGIA SPA;9619395FDC;29/09/2023;5930;0;481;1;Spese correnti;3;Acquisto di beni e servizi;2;Acquisto di servizi;5;Utenze e canoni;4;Energia elettrica;03/10/2023
2926;4;9999999;3,26;1.139,24;ENEL ENERGIA SPA;9619395FDC;29/09/2023;5930;0;481;1;Spese correnti;3;Acquisto di beni e servizi;2;Acquisto di servizi;5;Utenze e canoni;4;Energia elettrica;03/10/2023
2926;5;9999999;5,22;1.139,24;ENEL ENERGIA SPA;9619395FDC;29/09/2023;5930;0;481;1;Spese correnti;3;Acquisto di beni e servizi;2;Acquisto di servizi;5;Utenze e canoni;4;Energia elettrica;03/10/2023
2926;6;9999999;6,21;1.139,24;ENEL ENERGIA SPA;9619395FDC;29/09/2023;5930;0;481;1;Spese correnti;3;Acquisto di beni e servizi;2;Acquisto di servizi;5;Utenze e canoni;4;Energia elettrica;03/10/2023
2926;7;9999999;6,95;1.139,24;ENEL ENERGIA SPA;9619395FDC;29/09/2023;5930;0;481;1;Spese correnti;3;Acquisto di beni e servizi;2;Acquisto di servizi;5;Utenze e canoni;4;Energia elettrica;03/10/2023
2926;8;9999999;7,75;1.139,24;ENEL ENERGIA SPA;9619395FDC;29/09/2023;5930;0;481;1;Spese correnti;3;Acquisto di beni e servizi;2;Acquisto di servizi;5;Utenze e canoni;4;Energia elettrica;03/10/2023
2926;9;9999999;8,66;1.139,24;ENEL ENERGIA SPA;9619395FDC;29/09/2023;5930;0;481;1;Spese correnti;3;Acquisto di beni e servizi;2;Acquisto di servizi;5;Utenze e canoni;4;Energia elettrica;03/10/2023
2926;10;9999999;9,94;1.139,24;ENEL ENERGIA SPA;9619395FDC;29/09/2023;5930;0;481;1;Spese correnti;3;Acquisto di beni e servizi;2;Acquisto di servizi;5;Utenze e canoni;4;Energia elettrica;03/10/2023
2926;11;9999999;11;1.139,24;ENEL ENERGIA SPA;9619395FDC;29/09/2023;5930;0;481;1;Spese correnti;3;Acquisto di beni e servizi;2;Acquisto di servizi;5;Utenze e canoni;4;Energia elettrica;03/10/2023
2926;12;9999999;19,68;1.139,24;ENEL ENERGIA SPA;9619395FDC;29/09/2023;5930;0;481;1;Spese correnti;3;Acquisto di beni e servizi;2;Acquisto di servizi;5;Utenze e canoni;4;Energia elettrica;03/10/2023
2926;13;9999999;19,95;1.139,24;ENEL ENERGIA SPA;9619395FDC;29/09/2023;5930;0;481;1;Spese correnti;3;Acquisto di beni e servizi;2;Acquisto di servizi;5;Utenze e canoni;4;Energia elettrica;03/10/2023
2926;14;9999999;22,91;1.139,24;ENEL ENERGIA SPA;9619395FDC;29/09/2023;5930;0;481;1;Spese correnti;3;Acquisto di beni e servizi;2;Acquisto di servizi;5;Utenze e canoni;4;Energia elettrica;03/10/2023
2926;15;9999999;23,18;1.139,24;ENEL ENERGIA SPA;9619395FDC;29/09/2023;5930;0;481;1;Spese correnti;3;Acquisto di beni e servizi;2;Acquisto di servizi;5;Utenze e canoni;4;Energia elettrica;03/10/2023
2926;16;9999999;23,96;1.139,24;ENEL ENERGIA SPA;9619395FDC;29/09/2023;5930;0;481;1;Spese correnti;3;Acquisto di beni e servizi;2;Acquisto di servizi;5;Utenze e canoni;4;Energia elettrica;03/10/2023
2926;17;9999999;25,28;1.139,24;ENEL ENERGIA SPA;9619395FDC;29/09/2023;5930;0;481;1;Spese correnti;3;Acquisto di beni e servizi;2;Acquisto di servizi;5;Utenze e canoni;4;Energia elettrica;03/10/2023
2926;18;9999999;28,78;1.139,24;ENEL ENERGIA SPA;9619395FDC;29/09/2023;5930;0;481;1;Spese correnti;3;Acquisto di beni e servizi;2;Acquisto di servizi;5;Utenze e canoni;4;Energia elettrica;03/10/2023
2926;19;9999999;29,45;1.139,24;ENEL ENERGIA SPA;9619395FDC;29/09/2023;5930;0;481;1;Spese correnti;3;Acquisto di beni e servizi;2;Acquisto di servizi;5;Utenze e canoni;4;Energia elettrica;03/10/2023
2926;20;9999999;30,74;1.139,24;ENEL ENERGIA SPA;9619395FDC;29/09/2023;5930;0;481;1;Spese correnti;3;Acquisto di beni e servizi;2;Acquisto di servizi;5;Utenze e canoni;4;Energia elettrica;03/10/2023
2926;21;9999999;30,74;1.139,24;ENEL ENERGIA SPA;9619395FDC;29/09/2023;5930;0;481;1;Spese correnti;3;Acquisto di beni e servizi;2;Acquisto di servizi;5;Utenze e canoni;4;Energia elettrica;03/10/2023
2926;22;9999999;33,17;1.139,24;ENEL ENERGIA SPA;9619395FDC;29/09/2023;5930;0;481;1;Spese correnti;3;Acquisto di beni e servizi;2;Acquisto di servizi;5;Utenze e canoni;4;Energia elettrica;03/10/2023
2926;23;9999999;33,17;1.139,24;ENEL ENERGIA SPA;9619395FDC;29/09/2023;5930;0;481;1;Spese correnti;3;Acquisto di beni e servizi;2;Acquisto di servizi;5;Utenze e canoni;4;Energia elettrica;03/10/2023
2926;24;9999999;33,93;1.139,24;ENEL ENERGIA SPA;9619395FDC;29/09/2023;5930;0;481;1;Spese correnti;3;Acquisto di beni e servizi;2;Acquisto di servizi;5;Utenze e canoni;4;Energia elettrica;03/10/2023
2926;25;9999999;40,03;1.139,24;ENEL ENERGIA SPA;9619395FDC;29/09/2023;5930;0;481;1;Spese correnti;3;Acquisto di beni e servizi;2;Acquisto di servizi;5;Utenze e canoni;4;Energia elettrica;03/10/2023
2926;26;9999999;41,26;1.139,24;ENEL ENERGIA SPA;9619395FDC;29/09/2023;5930;0;481;1;Spese correnti;3;Acquisto di beni e servizi;2;Acquisto di servizi;5;Utenze e canoni;4;Energia elettrica;03/10/2023
2926;27;9999999;44,24;1.139,24;ENEL ENERGIA SPA;9619395FDC;29/09/2023;5930;0;481;1;Spese correnti;3;Acquisto di beni e servizi;2;Acquisto di servizi;5;Utenze e canoni;4;Energia elettrica;03/10/2023
2926;28;9999999;45,54;1.139,24;ENEL ENERGIA SPA;9619395FDC;29/09/2023;5930;0;481;1;Spese correnti;3;Acquisto di beni e servizi;2;Acquisto di servizi;5;Utenze e canoni;4;Energia elettrica;03/10/2023
2926;29;9999999;45,54;1.139,24;ENEL ENERGIA SPA;9619395FDC;29/09/2023;5930;0;481;1;Spese correnti;3;Acquisto di beni e servizi;2;Acquisto di servizi;5;Utenze e canoni;4;Energia elettrica;03/10/2023
2926;30;9999999;49,23;1.139,24;ENEL ENERGIA SPA;9619395FDC;29/09/2023;5930;0;481;1;Spese correnti;3;Acquisto di beni e servizi;2;Acquisto di servizi;5;Utenze e canoni;4;Energia elettrica;03/10/2023
2926;31;9999999;55,52;1.139,24;ENEL ENERGIA SPA;9619395FDC;29/09/2023;5930;0;481;1;Spese correnti;3;Acquisto di beni e servizi;2;Acquisto di servizi;5;Utenze e canoni;4;Energia elettrica;03/10/2023
2926;32;9999999;66,25;1.139,24;ENEL ENERGIA SPA;9619395FDC;29/09/2023;5930;0;481;1;Spese correnti;3;Acquisto di beni e servizi;2;Acquisto di servizi;5;Utenze e canoni;4;Energia elettrica;03/10/2023
2926;33;9999999;70,54;1.139,24;ENEL ENERGIA SPA;9619395FDC;29/09/2023;5930;0;481;1;Spese correnti;3;Acquisto di beni e servizi;2;Acquisto di servizi;5;Utenze e canoni;4;Energia elettrica;03/10/2023
2926;34;9999999;73,7;1.139,24;ENEL ENERGIA SPA;9619395FDC;29/09/2023;5930;0;481;1;Spese correnti;3;Acquisto di beni e servizi;2;Acquisto di servizi;5;Utenze e canoni;4;Energia elettrica;03/10/2023
2926;35;9999999;75,44;1.139,24;ENEL ENERGIA SPA;9619395FDC;29/09/2023;5930;0;481;1;Spese correnti;3;Acquisto di beni e servizi;2;Acquisto di servizi;5;Utenze e canoni;4;Energia elettrica;03/10/2023
2926;36;9999999;76,19;1.139,24;ENEL ENERGIA SPA;9619395FDC;29/09/2023;5930;0;481;1;Spese correnti;3;Acquisto di beni e servizi;2;Acquisto di servizi;5;Utenze e canoni;4;Energia elettrica;03/10/2023
2926;37;9999999;76,19;1.139,24;ENEL ENERGIA SPA;9619395FDC;29/09/2023;5930;0;481;1;Spese correnti;3;Acquisto di beni e servizi;2;Acquisto di servizi;5;Utenze e canoni;4;Energia elettrica;03/10/2023
2926;38;9999999;76,99;1.139,24;ENEL ENERGIA SPA;9619395FDC;29/09/2023;5930;0;481;1;Spese correnti;3;Acquisto di beni e servizi;2;Acquisto di servizi;5;Utenze e canoni;4;Energia elettrica;03/10/2023
2926;39;9999999;77,51;1.139,24;ENEL ENERGIA SPA;9619395FDC;29/09/2023;5930;0;481;1;Spese correnti;3;Acquisto di beni e servizi;2;Acquisto di servizi;5;Utenze e canoni;4;Energia elettrica;03/10/2023
2926;40;9999999;81,68;1.139,24;ENEL ENERGIA SPA;9619395FDC;29/09/2023;5930;0;481;1;Spese correnti;3;Acquisto di beni e servizi;2;Acquisto di servizi;5;Utenze e canoni;4;Energia elettrica;03/10/2023
2927;1;9999999;81,96;9.359,36;ENEL ENERGIA SPA;9619395FDC;29/09/2023;5930;0;481;1;Spese correnti;3;Acquisto di beni e servizi;2;Acquisto di servizi;5;Utenze e canoni;4;Energia elettrica;03/10/2023
2927;2;9999999;82,74;9.359,36;ENEL ENERGIA SPA;9619395FDC;29/09/2023;5930;0;481;1;Spese correnti;3;Acquisto di beni e servizi;2;Acquisto di servizi;5;Utenze e canoni;4;Energia elettrica;03/10/2023
2927;3;9999999;84,31;9.359,36;ENEL ENERGIA SPA;9619395FDC;29/09/2023;5930;0;481;1;Spese correnti;3;Acquisto di beni e servizi;2;Acquisto di servizi;5;Utenze e canoni;4;Energia elettrica;03/10/2023
2927;4;9999999;88,4;9.359,36;ENEL ENERGIA SPA;9619395FDC;29/09/2023;5930;0;481;1;Spese correnti;3;Acquisto di beni e servizi;2;Acquisto di servizi;5;Utenze e canoni;4;Energia elettrica;03/10/2023
2927;5;9999999;93,22;9.359,36;ENEL ENERGIA SPA;9619395FDC;29/09/2023;5930;0;481;1;Spese correnti;3;Acquisto di beni e servizi;2;Acquisto di servizi;5;Utenze e canoni;4;Energia elettrica;03/10/2023
2927;6;9999999;109,45;9.359,36;ENEL ENERGIA SPA;9619395FDC;29/09/2023;5930;0;481;1;Spese correnti;3;Acquisto di beni e servizi;2;Acquisto di servizi;5;Utenze e canoni;4;Energia elettrica;03/10/2023
2927;7;9999999;111,26;9.359,36;ENEL ENERGIA SPA;9619395FDC;29/09/2023;5930;0;481;1;Spese correnti;3;Acquisto di beni e servizi;2;Acquisto di servizi;5;Utenze e canoni;4;Energia elettrica;03/10/2023
2927;8;9999999;137,19;9.359,36;ENEL ENERGIA SPA;9619395FDC;29/09/2023;5930;0;481;1;Spese correnti;3;Acquisto di beni e servizi;2;Acquisto di servizi;5;Utenze e canoni;4;Energia elettrica;03/10/2023
2927;9;9999999;145,45;9.359,36;ENEL ENERGIA SPA;9619395FDC;29/09/2023;5930;0;481;1;Spese correnti;3;Acquisto di beni e servizi;2;Acquisto di servizi;5;Utenze e canoni;4;Energia elettrica;03/10/2023
2927;10;9999999;146;9.359,36;ENEL ENERGIA SPA;9619395FDC;29/09/2023;5930;0;481;1;Spese correnti;3;Acquisto di beni e servizi;2;Acquisto di servizi;5;Utenze e canoni;4;Energia elettrica;03/10/2023
2927;11;9999999;146,79;9.359,36;ENEL ENERGIA SPA;9619395FDC;29/09/2023;5930;0;481;1;Spese correnti;3;Acquisto di beni e servizi;2;Acquisto di servizi;5;Utenze e canoni;4;Energia elettrica;03/10/2023
2927;12;9999999;150,99;9.359,36;ENEL ENERGIA SPA;9619395FDC;29/09/2023;5930;0;481;1;Spese correnti;3;Acquisto di beni e servizi;2;Acquisto di servizi;5;Utenze e canoni;4;Energia elettrica;03/10/2023
2927;13;9999999;151,49;9.359,36;ENEL ENERGIA SPA;9619395FDC;29/09/2023;5930;0;481;1;Spese correnti;3;Acquisto di beni e servizi;2;Acquisto di servizi;5;Utenze e canoni;4;Energia elettrica;03/10/2023
2927;14;9999999;168,13;9.359,36;ENEL ENERGIA SPA;9619395FDC;29/09/2023;5930;0;481;1;Spese correnti;3;Acquisto di beni e servizi;2;Acquisto di servizi;5;Utenze e canoni;4;Energia elettrica;03/10/2023
2927;15;9999999;171,67;9.359,36;ENEL ENERGIA SPA;9619395FDC;29/09/2023;5930;0;481;1;Spese correnti;3;Acquisto di beni e servizi;2;Acquisto di servizi;5;Utenze e canoni;4;Energia elettrica;03/10/2023
2927;16;9999999;173,42;9.359,36;ENEL ENERGIA SPA;9619395FDC;29/09/2023;5930;0;481;1;Spese correnti;3;Acquisto di beni e servizi;2;Acquisto di servizi;5;Utenze e canoni;4;Energia elettrica;03/10/2023
2927;17;9999999;179,66;9.359,36;ENEL ENERGIA SPA;9619395FDC;29/09/2023;5930;0;481;1;Spese correnti;3;Acquisto di beni e servizi;2;Acquisto di servizi;5;Utenze e canoni;4;Energia elettrica;03/10/2023
2927;18;9999999;180,96;9.359,36;ENEL ENERGIA SPA;9619395FDC;29/09/2023;5930;0;481;1;Spese correnti;3;Acquisto di beni e servizi;2;Acquisto di servizi;5;Utenze e canoni;4;Energia elettrica;03/10/2023
2927;19;9999999;182,39;9.359,36;ENEL ENERGIA SPA;9619395FDC;29/09/2023;5930;0;481;1;Spese correnti;3;Acquisto di beni e servizi;2;Acquisto di servizi;5;Utenze e canoni;4;Energia elettrica;03/10/2023
2927;20;9999999;219,45;9.359,36;ENEL ENERGIA SPA;9619395FDC;29/09/2023;5930;0;481;1;Spese correnti;3;Acquisto di beni e servizi;2;Acquisto di servizi;5;Utenze e canoni;4;Energia elettrica;03/10/2023
2927;21;9999999;252,69;9.359,36;ENEL ENERGIA SPA;9619395FDC;29/09/2023;5930;0;481;1;Spese correnti;3;Acquisto di beni e servizi;2;Acquisto di servizi;5;Utenze e canoni;4;Energia elettrica;03/10/2023
2927;22;9999999;283,98;9.359,36;ENEL ENERGIA SPA;9619395FDC;29/09/2023;5930;0;481;1;Spese correnti;3;Acquisto di beni e servizi;2;Acquisto di servizi;5;Utenze e canoni;4;Energia elettrica;03/10/2023
2927;23;9999999;338,18;9.359,36;ENEL ENERGIA SPA;9619395FDC;29/09/2023;5930;0;481;1;Spese correnti;3;Acquisto di beni e servizi;2;Acquisto di servizi;5;Utenze e canoni;4;Energia elettrica;03/10/2023
2927;24;9999999;399,2;9.359,36;ENEL ENERGIA SPA;9619395FDC;29/09/2023;5930;0;481;1;Spese correnti;3;Acquisto di beni e servizi;2;Acquisto di servizi;5;Utenze e canoni;4;Energia elettrica;03/10/2023
2927;25;9999999;402,98;9.359,36;ENEL ENERGIA SPA;9619395FDC;29/09/2023;5930;0;481;1;Spese correnti;3;Acquisto di beni e servizi;2;Acquisto di servizi;5;Utenze e canoni;4;Energia elettrica;03/10/2023
2927;26;9999999;419,91;9.359,36;ENEL ENERGIA SPA;9619395FDC;29/09/2023;5930;0;481;1;Spese correnti;3;Acquisto di beni e servizi;2;Acquisto di servizi;5;Utenze e canoni;4;Energia elettrica;03/10/2023
2927;27;9999999;452,64;9.359,36;ENEL ENERGIA SPA;9619395FDC;29/09/2023;5930;0;481;1;Spese correnti;3;Acquisto di beni e servizi;2;Acquisto di servizi;5;Utenze e canoni;4;Energia elettrica;03/10/2023
2927;28;9999999;484,17;9.359,36;ENEL ENERGIA SPA;9619395FDC;29/09/2023;5930;0;481;1;Spese correnti;3;Acquisto di beni e servizi;2;Acquisto di servizi;5;Utenze e canoni;4;Energia elettrica;03/10/2023
2927;29;9999999;489,98;9.359,36;ENEL ENERGIA SPA;9619395FDC;29/09/2023;5930;0;481;1;Spese correnti;3;Acquisto di beni e servizi;2;Acquisto di servizi;5;Utenze e canoni;4;Energia elettrica;03/10/2023
2927;30;9999999;493,2;9.359,36;ENEL ENERGIA SPA;9619395FDC;29/09/2023;5930;0;481;1;Spese correnti;3;Acquisto di beni e servizi;2;Acquisto di servizi;5;Utenze e canoni;4;Energia elettrica;03/10/2023
2927;31;9999999;536,14;9.359,36;ENEL ENERGIA SPA;9619395FDC;29/09/2023;5930;0;481;1;Spese correnti;3;Acquisto di beni e servizi;2;Acquisto di servizi;5;Utenze e canoni;4;Energia elettrica;03/10/2023
2927;32;9999999;639,96;9.359,36;ENEL ENERGIA SPA;9619395FDC;29/09/2023;5930;0;481;1;Spese correnti;3;Acquisto di beni e servizi;2;Acquisto di servizi;5;Utenze e canoni;4;Energia elettrica;03/10/2023
2927;33;9999999;679,64;9.359,36;ENEL ENERGIA SPA;9619395FDC;29/09/2023;5930;0;481;1;Spese correnti;3;Acquisto di beni e servizi;2;Acquisto di servizi;5;Utenze e canoni;4;Energia elettrica;03/10/2023
2927;34;9999999;681,76;9.359,36;ENEL ENERGIA SPA;9619395FDC;29/09/2023;5930;0;481;1;Spese correnti;3;Acquisto di beni e servizi;2;Acquisto di servizi;5;Utenze e canoni;4;Energia elettrica;03/10/2023
2928;1;9999999;11,32;719,49;ENEL ENERGIA SPA;9619395FDC;29/09/2023;5931;0;488;1;Spese correnti;3;Acquisto di beni e servizi;2;Acquisto di servizi;5;Utenze e canoni;4;Energia elettrica;03/10/2023
2928;2;9999999;18,93;719,49;ENEL ENERGIA SPA;9619395FDC;29/09/2023;5931;0;488;1;Spese correnti;3;Acquisto di beni e servizi;2;Acquisto di servizi;5;Utenze e canoni;4;Energia elettrica;03/10/2023
2928;3;9999999;48,73;719,49;ENEL ENERGIA SPA;9619395FDC;29/09/2023;5931;0;488;1;Spese correnti;3;Acquisto di beni e servizi;2;Acquisto di servizi;5;Utenze e canoni;4;Energia elettrica;03/10/2023
2928;4;9999999;69,75;719,49;ENEL ENERGIA SPA;9619395FDC;29/09/2023;5931;0;488;1;Spese correnti;3;Acquisto di beni e servizi;2;Acquisto di servizi;5;Utenze e canoni;4;Energia elettrica;03/10/2023
2928;5;9999999;81,98;719,49;ENEL ENERGIA SPA;9619395FDC;29/09/2023;5931;0;488;1;Spese correnti;3;Acquisto di beni e servizi;2;Acquisto di servizi;5;Utenze e canoni;4;Energia elettrica;03/10/2023
2928;6;9999999;87,33;719,49;ENEL ENERGIA SPA;9619395FDC;29/09/2023;5931;0;488;1;Spese correnti;3;Acquisto di beni e servizi;2;Acquisto di servizi;5;Utenze e canoni;4;Energia elettrica;03/10/2023
2928;7;9999999;110,08;719,49;ENEL ENERGIA SPA;9619395FDC;29/09/2023;5931;0;488;1;Spese correnti;3;Acquisto di beni e servizi;2;Acquisto di servizi;5;Utenze e canoni;4;Energia elettrica;03/10/2023
2928;8;9999999;122,85;719,49;ENEL ENERGIA SPA;9619395FDC;29/09/2023;5931;0;488;1;Spese correnti;3;Acquisto di beni e servizi;2;Acquisto di servizi;5;Utenze e canoni;4;Energia elettrica;03/10/2023
2928;9;9999999;168,52;719,49;ENEL ENERGIA SPA;9619395FDC;29/09/2023;5931;0;488;1;Spese correnti;3;Acquisto di beni e servizi;2;Acquisto di servizi;5;Utenze e canoni;4;Energia elettrica;03/10/2023
2929;1;9999999;56,27;123,25;ENEL ENERGIA SPA;9619395FDC;29/09/2023;6461;0;487;1;Spese correnti;3;Acquisto di beni e servizi;2;Acquisto di servizi;5;Utenze e canoni;4;Energia elettrica;03/10/2023
2929;2;9999999;66,98;123,25;ENEL ENERGIA SPA;9619395FDC;29/09/2023;6461;0;487;1;Spese correnti;3;Acquisto di beni e servizi;2;Acquisto di servizi;5;Utenze e canoni;4;Energia elettrica;03/10/2023
